Dept/Family,Entity,Expense Type,Expense Area,Supplier,Payment Date, Amount ,SME,UNSPCC Code,UNSPCC Description
"Ministry of Housing, Communities and Local Government",Homes England,ROADS AND CAR PARKS,Development,BARTON GRANGE LANDSCAPES,10/05/2021,840,L,72101500,Building maintenance and repair services
"Ministry of Housing, Communities and Local Government",Homes England,Land Registry Fees,Corporate Resources,HM LAND REGISTRY,21/05/2021,354,G,80131700,Escrow and title services
"Ministry of Housing, Communities and Local Government",Homes England,Land Registry Fees,Corporate Resources,HM LAND REGISTRY,27/05/2021,327,G,80131700,Escrow and title services
"Ministry of Housing, Communities and Local Government",Homes England,CAPITAL GRANTS TO RPs,Investment,FIRST CHOICE HOMES OLDHAM LIMITED,19/05/2021,9000,L,,Grants
"Ministry of Housing, Communities and Local Government",Homes England,CAPITAL GRANTS TO RPs,Investment,FIRST CHOICE HOMES OLDHAM LIMITED,19/05/2021,9000,L,,Grants
"Ministry of Housing, Communities and Local Government",Homes England,CAPITAL GRANTS TO RPs,Investment,FIRST CHOICE HOMES OLDHAM LIMITED,26/05/2021,35942,L,,Grants
"Ministry of Housing, Communities and Local Government",Homes England,CAPITAL GRANTS TO RPs,Investment,FIRST CHOICE HOMES OLDHAM LIMITED,26/05/2021,9000,L,,Grants
"Ministry of Housing, Communities and Local Government",Homes England,CAPITAL GRANTS TO RPs,Investment,FIRST CHOICE HOMES OLDHAM LIMITED,26/05/2021,9000,L,,Grants
"Ministry of Housing, Communities and Local Government",Homes England,CAPITAL GRANTS TO RPs,Investment,FIRST CHOICE HOMES OLDHAM LIMITED,28/05/2021,55500,L,,Grants
"Ministry of Housing, Communities and Local Government",Homes England,CAPITAL GRANTS TO RPs,Investment,FIRST CHOICE HOMES OLDHAM LIMITED,28/05/2021,18500,L,,Grants
"Ministry of Housing, Communities and Local Government",Homes England,CAPITAL GRANTS TO RPs,Investment,SAGE HOUSING LIMITED,07/05/2021,61875,M,,Grants
"Ministry of Housing, Communities and Local Government",Homes England,CAPITAL GRANTS TO RPs,Investment,SAGE HOUSING LIMITED,07/05/2021,49375,M,,Grants
"Ministry of Housing, Communities and Local Government",Homes England,CAPITAL GRANTS TO RPs,Investment,KEELMAN HOMES,10/05/2021,10000,L,,Grants
"Ministry of Housing, Communities and Local Government",Homes England,CAPITAL GRANTS TO RPs,Investment,KEELMAN HOMES,12/05/2021,8750,L,,Grants
"Ministry of Housing, Communities and Local Government",Homes England,CAPITAL GRANTS TO RPs,Investment,KEELMAN HOMES,18/05/2021,8750,L,,Grants
"Ministry of Housing, Communities and Local Government",Homes England,CAPITAL GRANTS TO RPs,Investment,KEELMAN HOMES,27/05/2021,23813,L,,Grants
"Ministry of Housing, Communities and Local Government",Homes England,CAPITAL GRANTS TO RPs,Investment,KEELMAN HOMES,27/05/2021,21000,L,,Grants
"Ministry of Housing, Communities and Local Government",Homes England,CAPITAL GRANTS TO RPs,Investment,BROMFORD HOME OWNERSHIP LTD,10/05/2021,25766,L,,Grants
"Ministry of Housing, Communities and Local Government",Homes England,CAPITAL GRANTS TO RPs,Investment,SOUTH LAKES HOUSING,10/05/2021,80250,L,,Grants
"Ministry of Housing, Communities and Local Government",Homes England,CAPITAL GRANTS TO RPs,Investment,THE GUINNESS PARTNERSHIP LIMITED,25/05/2021,100000,L,,Grants
"Ministry of Housing, Communities and Local Government",Homes England,CAPITAL GRANTS TO RPs,Investment,BRIDGE-IT HOUSING UK TEAM LTD,28/05/2021,13342,S,,Grants
"Ministry of Housing, Communities and Local Government",Homes England,CAPITAL GRANTS TO RPs,Investment,J & M RESIDENTIAL LETTINGS LIMITED,10/05/2021,5000,L,,Grants
"Ministry of Housing, Communities and Local Government",Homes England,CAPITAL GRANTS TO RPs,Investment,DEVON AND CORNWALL HOUSING LIMITED,24/05/2021,10000,L,,Grants
"Ministry of Housing, Communities and Local Government",Homes England,CAPITAL GRANTS TO RPs,Investment,DEVON AND CORNWALL HOUSING LIMITED,25/05/2021,35000,L,,Grants
"Ministry of Housing, Communities and Local Government",Homes England,CAPITAL GRANTS TO RPs,Investment,DEVON AND CORNWALL HOUSING LIMITED,25/05/2021,14000,L,,Grants
"Ministry of Housing, Communities and Local Government",Homes England,CAPITAL GRANTS TO RPs,Investment,SOVEREIGN HOUSING ASSOCIATION LTD,21/05/2021,7500,L,,Grants
"Ministry of Housing, Communities and Local Government",Homes England,CAPITAL GRANTS TO RPs,Investment,NOTTINGHAM CITY HOMES REGISTERED PROVIDER LIM,04/05/2021,12500,L,,Grants
"Ministry of Housing, Communities and Local Government",Homes England,CAPITAL GRANTS TO RPs,Investment,CLARION HOUSING ASSOCIATION LIMITED,17/05/2021,10000,L,,Grants
"Ministry of Housing, Communities and Local Government",Homes England,CAPITAL GRANTS TO RPs,Investment,P3 HOUSING LTD,05/05/2021,16946,L,,Grants
"Ministry of Housing, Communities and Local Government",Homes England,CAPITAL GRANTS TO RPs,Investment,P3 HOUSING LTD,05/05/2021,14001,L,,Grants
"Ministry of Housing, Communities and Local Government",Homes England,CAPITAL GRANTS TO RPs,Investment,P3 HOUSING LTD,07/05/2021,15557,L,,Grants
"Ministry of Housing, Communities and Local Government",Homes England,CAPITAL GRANTS TO RPs,Investment,P3 HOUSING LTD,07/05/2021,18829,L,,Grants
"Ministry of Housing, Communities and Local Government",Homes England,CAPITAL GRANTS TO RPs,Investment,P3 HOUSING LTD,12/05/2021,1625,L,,Grants
"Ministry of Housing, Communities and Local Government",Homes England,CAPITAL GRANTS TO RPs,Investment,P3 HOUSING LTD,12/05/2021,2240,L,,Grants
"Ministry of Housing, Communities and Local Government",Homes England,CAPITAL GRANTS TO RPs,Investment,P3 HOUSING LTD,12/05/2021,1883,L,,Grants
"Ministry of Housing, Communities and Local Government",Homes England,CAPITAL GRANTS TO RPs,Investment,P3 HOUSING LTD,12/05/2021,1556,L,,Grants
"Ministry of Housing, Communities and Local Government",Homes England,CAPITAL GRANTS TO RPs,Investment,P3 HOUSING LTD,21/05/2021,1542,L,,Grants
"Ministry of Housing, Communities and Local Government",Homes England,CAPITAL GRANTS TO RPs,Investment,TORUS62 LIMITED,19/05/2021,9000,L,,Grants
"Ministry of Housing, Communities and Local Government",Homes England,CAP GRNTS TO LOCAL AUTHORITIES,Investment,BCP COUNCIL,04/05/2021,4153,G,,Grants
"Ministry of Housing, Communities and Local Government",Homes England,CAPITAL GRANTS TO RPs,Investment,CITIZEN HOUSING GROUP LTD,10/05/2021,31500,L,,Grants
"Ministry of Housing, Communities and Local Government",Homes England,CAPITAL GRANTS TO RPs,Investment,CITIZEN HOUSING GROUP LTD,10/05/2021,31500,L,,Grants
"Ministry of Housing, Communities and Local Government",Homes England,CAPITAL GRANTS TO RPs,Investment,CITIZEN HOUSING GROUP LTD,18/05/2021,35000,L,,Grants
"Ministry of Housing, Communities and Local Government",Homes England,CAPITAL GRANTS TO RPs,Investment,CITIZEN HOUSING GROUP LTD,18/05/2021,35000,L,,Grants
"Ministry of Housing, Communities and Local Government",Homes England,CAPITAL GRANTS TO RPs,Investment,CITIZEN HOUSING GROUP LTD,19/05/2021,3500,L,,Grants
"Ministry of Housing, Communities and Local Government",Homes England,CAPITAL GRANTS TO RPs,Investment,CITIZEN HOUSING GROUP LTD,19/05/2021,3500,L,,Grants
"Ministry of Housing, Communities and Local Government",Homes England,CAPITAL GRANTS TO RPs,Investment,CITIZEN HOUSING GROUP LTD,26/05/2021,31500,L,,Grants
"Ministry of Housing, Communities and Local Government",Homes England,CAPITAL GRANTS TO RPs,Investment,CITIZEN HOUSING GROUP LTD,27/05/2021,35000,L,,Grants
"Ministry of Housing, Communities and Local Government",Homes England,CAPITAL GRANTS TO RPs,Investment,CITIZEN HOUSING GROUP LTD,28/05/2021,3500,L,,Grants
"Ministry of Housing, Communities and Local Government",Homes England,CAP GRNTS TO LOCAL AUTHORITIES,Investment,SUNDERLAND CITY COUNCIL,06/05/2021,9375,G,,Grants
"Ministry of Housing, Communities and Local Government",Homes England,CAP GRNTS TO LOCAL AUTHORITIES,Investment,SUNDERLAND CITY COUNCIL,14/05/2021,12000,G,,Grants
"Ministry of Housing, Communities and Local Government",Homes England,CAP GRNTS TO LOCAL AUTHORITIES,Investment,SUNDERLAND CITY COUNCIL,18/05/2021,10500,G,,Grants
"Ministry of Housing, Communities and Local Government",Homes England,CAP GRNTS TO LOCAL AUTHORITIES,Investment,SUNDERLAND CITY COUNCIL,21/05/2021,7500,G,,Grants
"Ministry of Housing, Communities and Local Government",Homes England,CAP GRNTS TO LOCAL AUTHORITIES,Investment,SUNDERLAND CITY COUNCIL,21/05/2021,9375,G,,Grants
"Ministry of Housing, Communities and Local Government",Homes England,CAP GRNTS TO LOCAL AUTHORITIES,Investment,SUNDERLAND CITY COUNCIL,21/05/2021,5000,G,,Grants
"Ministry of Housing, Communities and Local Government",Homes England,CAP GRNTS TO LOCAL AUTHORITIES,Investment,SUNDERLAND CITY COUNCIL,21/05/2021,1680,G,,Grants
"Ministry of Housing, Communities and Local Government",Homes England,CAP GRNTS TO LOCAL AUTHORITIES,Investment,SUNDERLAND CITY COUNCIL,24/05/2021,10000,G,,Grants
"Ministry of Housing, Communities and Local Government",Homes England,CAP GRNTS TO LOCAL AUTHORITIES,Investment,SUNDERLAND CITY COUNCIL,27/05/2021,8750,G,,Grants
"Ministry of Housing, Communities and Local Government",Homes England,CAP GRNTS TO LOCAL AUTHORITIES,Investment,SUNDERLAND CITY COUNCIL,28/05/2021,5000,G,,Grants
"Ministry of Housing, Communities and Local Government",Homes England,CAP GRNTS TO LOCAL AUTHORITIES,Investment,NORTH NORFOLK DISTRICT COUNCIL,05/05/2021,15750,G,,Grants
"Ministry of Housing, Communities and Local Government",Homes England,CAP GRNTS TO LOCAL AUTHORITIES,Investment,NORTH NORFOLK DISTRICT COUNCIL,05/05/2021,15750,G,,Grants
"Ministry of Housing, Communities and Local Government",Homes England,CAP GRNTS TO LOCAL AUTHORITIES,Investment,NORTH NORFOLK DISTRICT COUNCIL,05/05/2021,15750,G,,Grants
"Ministry of Housing, Communities and Local Government",Homes England,CAP GRNTS TO LOCAL AUTHORITIES,Investment,NORTH NORFOLK DISTRICT COUNCIL,06/05/2021,17500,G,,Grants
"Ministry of Housing, Communities and Local Government",Homes England,CAP GRNTS TO LOCAL AUTHORITIES,Investment,NORTH NORFOLK DISTRICT COUNCIL,06/05/2021,17500,G,,Grants
"Ministry of Housing, Communities and Local Government",Homes England,CAP GRNTS TO LOCAL AUTHORITIES,Investment,NORTH NORFOLK DISTRICT COUNCIL,06/05/2021,17500,G,,Grants
"Ministry of Housing, Communities and Local Government",Homes England,CAP GRNTS TO LOCAL AUTHORITIES,Investment,BEDFORD BOROUGH COUNCIL,04/05/2021,1085500,G,,Grants
"Ministry of Housing, Communities and Local Government",Homes England,CAPITAL GRANTS TO RPs,Investment,TORVISTA HOMES LIMITED,10/05/2021,31500,L,,Grants
"Ministry of Housing, Communities and Local Government",Homes England,CAPITAL GRANTS TO RPs,Investment,TORVISTA HOMES LIMITED,13/05/2021,35000,L,,Grants
"Ministry of Housing, Communities and Local Government",Homes England,FENCE MAINTENANCE,MPP,GARDENSTYLE LTD,04/05/2021,5934.01,S,72101500,Building maintenance and repair services
"Ministry of Housing, Communities and Local Government",Homes England,STAFF WELFARE,Development,OFFICE TEAM GROUP - IN ADMINISTRATION,27/05/2021,360,L,44120000,Office supplies
"Ministry of Housing, Communities and Local Government",Homes England,PLANNING APPLICATIONS,Development,STAFFORDSHIRE COUNTY COUNCIL,25/05/2021,372,G,80131500,Lease and rental of property or building
"Ministry of Housing, Communities and Local Government",Homes England,ESTATE GENERAL MAINTENANCE,Development,IDVERDE LIMITED,06/05/2021,507.73,L,72101500,Building maintenance and repair services
"Ministry of Housing, Communities and Local Government",Homes England,LAND REMEDIATION,MPP,ENVIRONMENT AGENCY,19/05/2021,2035,G,72101500,Building maintenance and repair services
"Ministry of Housing, Communities and Local Government",Homes England,LEGAL FEES (PROGRAMME - CDEL),MPP,ENVIRONMENT AGENCY,05/05/2021,1800,G,72101500,Building maintenance and repair services
"Ministry of Housing, Communities and Local Government",Homes England,PROGRAMME RELATED EXPENSES,Development,ENVIRONMENT AGENCY,11/05/2021,1447.8,G,72101500,Building maintenance and repair services
"Ministry of Housing, Communities and Local Government",Homes England,ESTATE GENERAL MAINTENANCE,Development,LOWTHER FORESTRY GROUP,07/05/2021,4515.58,S,72101500,Building maintenance and repair services
"Ministry of Housing, Communities and Local Government",Homes England,ESTATE GENERAL MAINTENANCE,Development,LOWTHER FORESTRY GROUP,07/05/2021,4287.65,S,72101500,Building maintenance and repair services
"Ministry of Housing, Communities and Local Government",Homes England,IRON MOUNTAIN-STORAGE,Corporate Resources,IRON MOUNTAIN (UK) LTD,20/05/2021,7143.74,L,78131800,Specialized warehousing and storage
"Ministry of Housing, Communities and Local Government",Homes England,POSTAGE/COURIERS,Development,MK LONDON LINK,06/05/2021,720.9,S,78102200,Postal and small parcel and courier services
"Ministry of Housing, Communities and Local Government",Homes England,POSTAGE/COURIERS,Development,MK LONDON LINK,06/05/2021,1048.82,S,78102200,Postal and small parcel and courier services
"Ministry of Housing, Communities and Local Government",Homes England,POSTAGE/COURIERS,Development,MK LONDON LINK,06/05/2021,2215.86,S,78102200,Postal and small parcel and courier services
"Ministry of Housing, Communities and Local Government",Homes England,CLEANING,Development,CRAWLEY BOROUGH COUNCIL,19/05/2021,2340,G,76111500,General building and office cleaining and maintenance services
"Ministry of Housing, Communities and Local Government",Homes England,RENT,Development,CRAWLEY BOROUGH COUNCIL,19/05/2021,10360,G,80131500,Lease and rental of property or building
"Ministry of Housing, Communities and Local Government",Homes England,SERVICE CHARGES,Development,CRAWLEY BOROUGH COUNCIL,19/05/2021,5832.5,G,80131500,Lease and rental of property or building
"Ministry of Housing, Communities and Local Government",Homes England,OTHER PROFESSIONAL FEES,Development,NETWORK RAIL INFRASTRUCTURE LTD,06/05/2021,2912.94,L,81101500,Civil Engineering
"Ministry of Housing, Communities and Local Government",Homes England,INSURANCES,Development,COVENTRY CITY COUNCIL,11/05/2021,3153.91,G,80131500,Lease and rental of property or building
"Ministry of Housing, Communities and Local Government",Homes England,CAP GRNTS TO LOCAL AUTHORITIES,Investment,SUNDERLAND CITY COUNCIL,28/05/2021,389932.68,G,,Grants
"Ministry of Housing, Communities and Local Government",Homes England,CAP GRNTS TO LOCAL AUTHORITIES,Investment,CORNWALL COUNCIL,25/05/2021,11704.04,G,,Grants
"Ministry of Housing, Communities and Local Government",Homes England,CAP GRNTS TO LOCAL AUTHORITIES,Investment,CUMBRIA COUNTY COUNCIL,26/05/2021,146774.01,G,,Grants
"Ministry of Housing, Communities and Local Government",Homes England,CAP GRNTS TO LOCAL AUTHORITIES,Investment,DEVON COUNTY COUNCIL,26/05/2021,38557.78,G,,Grants
"Ministry of Housing, Communities and Local Government",Homes England,CAP GRNTS TO LOCAL AUTHORITIES,Investment,CAMBRIDGE CITY COUNCIL,27/05/2021,353194.48,G,,Grants
"Ministry of Housing, Communities and Local Government",Homes England,ENGINEERING FEES,MPP,THE LAND TRUST,10/05/2021,3475.75,M,77101500,Environmental auditing
"Ministry of Housing, Communities and Local Government",Homes England,CAP GRNTS TO LOCAL AUTHORITIES,Investment,MANCHESTER CITY COUNCIL,20/05/2021,30825,G,,Grants
"Ministry of Housing, Communities and Local Government",Homes England,CAP GRNTS TO LOCAL AUTHORITIES,Investment,MANCHESTER CITY COUNCIL,20/05/2021,30825,G,,Grants
"Ministry of Housing, Communities and Local Government",Homes England,CAP GRNTS TO LOCAL AUTHORITIES,Investment,MANCHESTER CITY COUNCIL,20/05/2021,30825,G,,Grants
"Ministry of Housing, Communities and Local Government",Homes England,CAP GRNTS TO LOCAL AUTHORITIES,Investment,MANCHESTER CITY COUNCIL,20/05/2021,30825,G,,Grants
"Ministry of Housing, Communities and Local Government",Homes England,CAP GRNTS TO LOCAL AUTHORITIES,Investment,OLDHAM COUNCIL,17/05/2021,9098,G,,Grants
"Ministry of Housing, Communities and Local Government",Homes England,CAP GRNTS TO LOCAL AUTHORITIES,Investment,WIGAN COUNCIL,07/05/2021,1140000,G,,Grants
"Ministry of Housing, Communities and Local Government",Homes England,CAP GRNTS TO LOCAL AUTHORITIES,Investment,WIGAN COUNCIL,13/05/2021,4724,G,,Grants
"Ministry of Housing, Communities and Local Government",Homes England,CAP GRNTS TO LOCAL AUTHORITIES,Investment,WIGAN COUNCIL,13/05/2021,13950,G,,Grants
"Ministry of Housing, Communities and Local Government",Homes England,CAP GRNTS TO LOCAL AUTHORITIES,Investment,WIGAN COUNCIL,13/05/2021,7030,G,,Grants
"Ministry of Housing, Communities and Local Government",Homes England,CAP GRNTS TO LOCAL AUTHORITIES,Investment,WIGAN COUNCIL,14/05/2021,370,G,,Grants
"Ministry of Housing, Communities and Local Government",Homes England,CAP GRNTS TO LOCAL AUTHORITIES,Investment,WIGAN COUNCIL,20/05/2021,8200,G,,Grants
"Ministry of Housing, Communities and Local Government",Homes England,CAP GRNTS TO LOCAL AUTHORITIES,Investment,WIGAN COUNCIL,24/05/2021,15500,G,,Grants
"Ministry of Housing, Communities and Local Government",Homes England,CAP GRNTS TO LOCAL AUTHORITIES,Investment,WIGAN COUNCIL,27/05/2021,18788,G,,Grants
"Ministry of Housing, Communities and Local Government",Homes England,CAP GRNTS TO LOCAL AUTHORITIES,Investment,SOUTH TYNESIDE COUNCIL,04/05/2021,16250,G,,Grants
"Ministry of Housing, Communities and Local Government",Homes England,CAP GRNTS TO LOCAL AUTHORITIES,Investment,SOUTH TYNESIDE COUNCIL,21/05/2021,14625,G,,Grants
"Ministry of Housing, Communities and Local Government",Homes England,CAP GRNTS TO LOCAL AUTHORITIES,Investment,SOUTH TYNESIDE COUNCIL,25/05/2021,16250,G,,Grants
"Ministry of Housing, Communities and Local Government",Homes England,PLANNING APPLICATIONS,Development,DUDLEY METROPOLITAN BOROUGH COUNCIL,24/05/2021,550,G,80121600,Business law services
"Ministry of Housing, Communities and Local Government",Homes England,CAP GRNTS TO LOCAL AUTHORITIES,Investment,THE COUNCIL OF THE BOROUGH OF KIRKLEES,21/05/2021,20250,G,,Grants
"Ministry of Housing, Communities and Local Government",Homes England,CAP GRNTS TO LOCAL AUTHORITIES,Investment,THE COUNCIL OF THE BOROUGH OF KIRKLEES,25/05/2021,22500,G,,Grants
"Ministry of Housing, Communities and Local Government",Homes England,CAP GRNTS TO LOCAL AUTHORITIES,Investment,LEEDS CITY COUNCIL,18/05/2021,25000,G,,Grants
"Ministry of Housing, Communities and Local Government",Homes England,CAP GRNTS TO LOCAL AUTHORITIES,Investment,LEEDS CITY COUNCIL,18/05/2021,25000,G,,Grants
"Ministry of Housing, Communities and Local Government",Homes England,CAP GRNTS TO LOCAL AUTHORITIES,Investment,HARTLEPOOL BOROUGH COUNCIL,17/05/2021,9250,G,,Grants
"Ministry of Housing, Communities and Local Government",Homes England,CAP GRNTS TO LOCAL AUTHORITIES,Investment,THE COUNTY COUNCIL OF DURHAM,10/05/2021,10500,G,,Grants
"Ministry of Housing, Communities and Local Government",Homes England,CAP GRNTS TO LOCAL AUTHORITIES,Investment,THE COUNTY COUNCIL OF DURHAM,14/05/2021,12000,G,,Grants
"Ministry of Housing, Communities and Local Government",Homes England,CAP GRNTS TO LOCAL AUTHORITIES,Investment,THE COUNTY COUNCIL OF DURHAM,18/05/2021,12000,G,,Grants
"Ministry of Housing, Communities and Local Government",Homes England,CAP GRNTS TO LOCAL AUTHORITIES,Investment,THE COUNTY COUNCIL OF DURHAM,18/05/2021,10500,G,,Grants
"Ministry of Housing, Communities and Local Government",Homes England,CAP GRNTS TO LOCAL AUTHORITIES,Investment,NORTHUMBERLAND COUNTY COUNCIL,07/05/2021,22500,G,,Grants
"Ministry of Housing, Communities and Local Government",Homes England,CAP GRNTS TO LOCAL AUTHORITIES,Investment,NORTHUMBERLAND COUNTY COUNCIL,11/05/2021,7500,G,,Grants
"Ministry of Housing, Communities and Local Government",Homes England,CAP GRNTS TO LOCAL AUTHORITIES,Investment,NORTHUMBERLAND COUNTY COUNCIL,12/05/2021,22500,G,,Grants
"Ministry of Housing, Communities and Local Government",Homes England,CAP GRNTS TO LOCAL AUTHORITIES,Investment,NORTHUMBERLAND COUNTY COUNCIL,26/05/2021,22500,G,,Grants
"Ministry of Housing, Communities and Local Government",Homes England,CAP GRNTS TO LOCAL AUTHORITIES,Investment,CITY OF YORK COUNCIL,04/05/2021,10625,G,,Grants
"Ministry of Housing, Communities and Local Government",Homes England,CAP GRNTS TO LOCAL AUTHORITIES,Investment,CITY OF YORK COUNCIL,07/05/2021,14875,G,,Grants
"Ministry of Housing, Communities and Local Government",Homes England,CAP GRNTS TO LOCAL AUTHORITIES,Investment,CITY OF YORK COUNCIL,07/05/2021,14875,G,,Grants
"Ministry of Housing, Communities and Local Government",Homes England,CAP GRNTS TO LOCAL AUTHORITIES,Investment,CITY OF YORK COUNCIL,07/05/2021,17000,G,,Grants
"Ministry of Housing, Communities and Local Government",Homes England,CAP GRNTS TO LOCAL AUTHORITIES,Investment,CITY OF YORK COUNCIL,21/05/2021,14875,G,,Grants
"Ministry of Housing, Communities and Local Government",Homes England,CAP GRNTS TO LOCAL AUTHORITIES,Investment,CITY OF YORK COUNCIL,28/05/2021,10625,G,,Grants
"Ministry of Housing, Communities and Local Government",Homes England,CAP GRNTS TO LOCAL AUTHORITIES,Investment,CITY OF YORK COUNCIL,28/05/2021,10625,G,,Grants
"Ministry of Housing, Communities and Local Government",Homes England,CAP GRNTS TO LOCAL AUTHORITIES,Investment,DERBY CITY COUNCIL,06/05/2021,3000,G,,Grants
"Ministry of Housing, Communities and Local Government",Homes England,CAP GRNTS TO LOCAL AUTHORITIES,Investment,NORTH SOMERSET COUNCIL,25/05/2021,260409.73,G,,Grants
"Ministry of Housing, Communities and Local Government",Homes England,CAP GRNTS TO LOCAL AUTHORITIES,Investment,CENTRAL BEDFORDSHIRE COUNCIL,07/05/2021,17500,G,,Grants
"Ministry of Housing, Communities and Local Government",Homes England,CAP GRNTS TO LOCAL AUTHORITIES,Investment,CENTRAL BEDFORDSHIRE COUNCIL,07/05/2021,17500,G,,Grants
"Ministry of Housing, Communities and Local Government",Homes England,CAP GRNTS TO LOCAL AUTHORITIES,Investment,SOUTHEND-ON-SEA BOROUGH COUNCIL,10/05/2021,40600,G,,Grants
"Ministry of Housing, Communities and Local Government",Homes England,CAP GRNTS TO LOCAL AUTHORITIES,Investment,SOUTHEND-ON-SEA BOROUGH COUNCIL,10/05/2021,40600,G,,Grants
"Ministry of Housing, Communities and Local Government",Homes England,CAP GRNTS TO LOCAL AUTHORITIES,Investment,MILTON KEYNES COUNCIL,06/05/2021,1705,G,,Grants
"Ministry of Housing, Communities and Local Government",Homes England,CAP GRNTS TO LOCAL AUTHORITIES,Investment,MILTON KEYNES COUNCIL,06/05/2021,1705,G,,Grants
"Ministry of Housing, Communities and Local Government",Homes England,CAP GRNTS TO LOCAL AUTHORITIES,Investment,MILTON KEYNES COUNCIL,07/05/2021,1705,G,,Grants
"Ministry of Housing, Communities and Local Government",Homes England,CAP GRNTS TO LOCAL AUTHORITIES,Investment,MILTON KEYNES COUNCIL,12/05/2021,1705,G,,Grants
"Ministry of Housing, Communities and Local Government",Homes England,CAP GRNTS TO LOCAL AUTHORITIES,Investment,MILTON KEYNES COUNCIL,12/05/2021,1705,G,,Grants
"Ministry of Housing, Communities and Local Government",Homes England,CAP GRNTS TO LOCAL AUTHORITIES,Investment,BRIGHTON & HOVE CITY COUNCIL,11/05/2021,2920,G,,Grants
"Ministry of Housing, Communities and Local Government",Homes England,CAP GRNTS TO LOCAL AUTHORITIES,Investment,BRIGHTON & HOVE CITY COUNCIL,11/05/2021,26280,G,,Grants
"Ministry of Housing, Communities and Local Government",Homes England,CAP GRNTS TO LOCAL AUTHORITIES,Investment,BRIGHTON & HOVE CITY COUNCIL,11/05/2021,2920,G,,Grants
"Ministry of Housing, Communities and Local Government",Homes England,CAP GRNTS TO LOCAL AUTHORITIES,Investment,BRIGHTON & HOVE CITY COUNCIL,11/05/2021,29200,G,,Grants
"Ministry of Housing, Communities and Local Government",Homes England,CAP GRNTS TO LOCAL AUTHORITIES,Investment,BRIGHTON & HOVE CITY COUNCIL,11/05/2021,2920,G,,Grants
"Ministry of Housing, Communities and Local Government",Homes England,CAP GRNTS TO LOCAL AUTHORITIES,Investment,BRIGHTON & HOVE CITY COUNCIL,12/05/2021,26280,G,,Grants
"Ministry of Housing, Communities and Local Government",Homes England,CAP GRNTS TO LOCAL AUTHORITIES,Investment,BRIGHTON & HOVE CITY COUNCIL,12/05/2021,2920,G,,Grants
"Ministry of Housing, Communities and Local Government",Homes England,CAP GRNTS TO LOCAL AUTHORITIES,Investment,BRIGHTON & HOVE CITY COUNCIL,12/05/2021,2920,G,,Grants
"Ministry of Housing, Communities and Local Government",Homes England,CAP GRNTS TO LOCAL AUTHORITIES,Investment,BRIGHTON & HOVE CITY COUNCIL,12/05/2021,26280,G,,Grants
"Ministry of Housing, Communities and Local Government",Homes England,CAP GRNTS TO LOCAL AUTHORITIES,Investment,BRIGHTON & HOVE CITY COUNCIL,12/05/2021,2920,G,,Grants
"Ministry of Housing, Communities and Local Government",Homes England,CAP GRNTS TO LOCAL AUTHORITIES,Investment,BRIGHTON & HOVE CITY COUNCIL,12/05/2021,26280,G,,Grants
"Ministry of Housing, Communities and Local Government",Homes England,CAP GRNTS TO LOCAL AUTHORITIES,Investment,BRIGHTON & HOVE CITY COUNCIL,12/05/2021,2920,G,,Grants
"Ministry of Housing, Communities and Local Government",Homes England,CAP GRNTS TO LOCAL AUTHORITIES,Investment,BRIGHTON & HOVE CITY COUNCIL,12/05/2021,26280,G,,Grants
"Ministry of Housing, Communities and Local Government",Homes England,CAP GRNTS TO LOCAL AUTHORITIES,Investment,BRIGHTON & HOVE CITY COUNCIL,12/05/2021,26280,G,,Grants
"Ministry of Housing, Communities and Local Government",Homes England,CAP GRNTS TO LOCAL AUTHORITIES,Investment,BRIGHTON & HOVE CITY COUNCIL,12/05/2021,26280,G,,Grants
"Ministry of Housing, Communities and Local Government",Homes England,CAP GRNTS TO LOCAL AUTHORITIES,Investment,BRIGHTON & HOVE CITY COUNCIL,12/05/2021,26280,G,,Grants
"Ministry of Housing, Communities and Local Government",Homes England,CAP GRNTS TO LOCAL AUTHORITIES,Investment,BRIGHTON & HOVE CITY COUNCIL,20/05/2021,26280,G,,Grants
"Ministry of Housing, Communities and Local Government",Homes England,CAP GRNTS TO LOCAL AUTHORITIES,Investment,BRIGHTON & HOVE CITY COUNCIL,20/05/2021,26280,G,,Grants
"Ministry of Housing, Communities and Local Government",Homes England,CAP GRNTS TO LOCAL AUTHORITIES,Investment,BRIGHTON & HOVE CITY COUNCIL,20/05/2021,29200,G,,Grants
"Ministry of Housing, Communities and Local Government",Homes England,CAP GRNTS TO LOCAL AUTHORITIES,Investment,BRIGHTON & HOVE CITY COUNCIL,20/05/2021,2920,G,,Grants
"Ministry of Housing, Communities and Local Government",Homes England,CAP GRNTS TO LOCAL AUTHORITIES,Investment,BRIGHTON & HOVE CITY COUNCIL,25/05/2021,2920,G,,Grants
"Ministry of Housing, Communities and Local Government",Homes England,CAP GRNTS TO LOCAL AUTHORITIES,Investment,EXETER CITY COUNCIL,04/05/2021,40343,G,,Grants
"Ministry of Housing, Communities and Local Government",Homes England,CAP GRNTS TO LOCAL AUTHORITIES,Investment,EXETER CITY COUNCIL,05/05/2021,44825,G,,Grants
"Ministry of Housing, Communities and Local Government",Homes England,CAP GRNTS TO LOCAL AUTHORITIES,Investment,STEVENGE BOROUGH COUNCIL,24/05/2021,18800,G,,Grants
"Ministry of Housing, Communities and Local Government",Homes England,CAP GRNTS TO LOCAL AUTHORITIES,Investment,CITY OF LINCOLN COUNCIL,10/05/2021,27471,G,,Grants
"Ministry of Housing, Communities and Local Government",Homes England,CAP GRNTS TO LOCAL AUTHORITIES,Investment,CITY OF LINCOLN COUNCIL,10/05/2021,27471,G,,Grants
"Ministry of Housing, Communities and Local Government",Homes England,CAP GRNTS TO LOCAL AUTHORITIES,Investment,CITY OF LINCOLN COUNCIL,26/05/2021,24723,G,,Grants
"Ministry of Housing, Communities and Local Government",Homes England,CAP GRNTS TO LOCAL AUTHORITIES,Investment,CITY OF LINCOLN COUNCIL,26/05/2021,24725,G,,Grants
"Ministry of Housing, Communities and Local Government",Homes England,CAP GRNTS TO LOCAL AUTHORITIES,Investment,NORTHAMPTON BOROUGH COUNCIL,13/05/2021,40665,G,,Grants
"Ministry of Housing, Communities and Local Government",Homes England,CAP GRNTS TO LOCAL AUTHORITIES,Investment,NORTHAMPTON BOROUGH COUNCIL,13/05/2021,40665,G,,Grants
"Ministry of Housing, Communities and Local Government",Homes England,CAP GRNTS TO LOCAL AUTHORITIES,Investment,NORTHAMPTON BOROUGH COUNCIL,13/05/2021,40665,G,,Grants
"Ministry of Housing, Communities and Local Government",Homes England,CAP GRNTS TO LOCAL AUTHORITIES,Investment,NORTHAMPTON BOROUGH COUNCIL,13/05/2021,40665,G,,Grants
"Ministry of Housing, Communities and Local Government",Homes England,CAP GRNTS TO LOCAL AUTHORITIES,Investment,NORTHAMPTON BOROUGH COUNCIL,13/05/2021,40665,G,,Grants
"Ministry of Housing, Communities and Local Government",Homes England,CAP GRNTS TO LOCAL AUTHORITIES,Investment,NORTHAMPTON BOROUGH COUNCIL,13/05/2021,40665,G,,Grants
"Ministry of Housing, Communities and Local Government",Homes England,CAP GRNTS TO LOCAL AUTHORITIES,Investment,NORTHAMPTON BOROUGH COUNCIL,13/05/2021,40665,G,,Grants
"Ministry of Housing, Communities and Local Government",Homes England,CAP GRNTS TO LOCAL AUTHORITIES,Investment,NORTHAMPTON BOROUGH COUNCIL,13/05/2021,40665,G,,Grants
"Ministry of Housing, Communities and Local Government",Homes England,CAP GRNTS TO LOCAL AUTHORITIES,Investment,NORTHAMPTON BOROUGH COUNCIL,13/05/2021,40665,G,,Grants
"Ministry of Housing, Communities and Local Government",Homes England,CAP GRNTS TO LOCAL AUTHORITIES,Investment,NORTHAMPTON BOROUGH COUNCIL,13/05/2021,40665,G,,Grants
"Ministry of Housing, Communities and Local Government",Homes England,CAP GRNTS TO LOCAL AUTHORITIES,Investment,NORTHAMPTON BOROUGH COUNCIL,13/05/2021,40665,G,,Grants
"Ministry of Housing, Communities and Local Government",Homes England,CAP GRNTS TO LOCAL AUTHORITIES,Investment,NORTHAMPTON BOROUGH COUNCIL,13/05/2021,40665,G,,Grants
"Ministry of Housing, Communities and Local Government",Homes England,CAP GRNTS TO LOCAL AUTHORITIES,Investment,NORTHAMPTON BOROUGH COUNCIL,13/05/2021,40665,G,,Grants
"Ministry of Housing, Communities and Local Government",Homes England,CAP GRNTS TO LOCAL AUTHORITIES,Investment,NORTHAMPTON BOROUGH COUNCIL,13/05/2021,40665,G,,Grants
"Ministry of Housing, Communities and Local Government",Homes England,CAP GRNTS TO LOCAL AUTHORITIES,Investment,NORTHAMPTON BOROUGH COUNCIL,14/05/2021,45183,G,,Grants
"Ministry of Housing, Communities and Local Government",Homes England,CAP GRNTS TO LOCAL AUTHORITIES,Investment,NORTHAMPTON BOROUGH COUNCIL,14/05/2021,45183,G,,Grants
"Ministry of Housing, Communities and Local Government",Homes England,CAP GRNTS TO LOCAL AUTHORITIES,Investment,NORTHAMPTON BOROUGH COUNCIL,14/05/2021,45183,G,,Grants
"Ministry of Housing, Communities and Local Government",Homes England,CAP GRNTS TO LOCAL AUTHORITIES,Investment,NORTHAMPTON BOROUGH COUNCIL,14/05/2021,45183,G,,Grants
"Ministry of Housing, Communities and Local Government",Homes England,CAP GRNTS TO LOCAL AUTHORITIES,Investment,NORTHAMPTON BOROUGH COUNCIL,14/05/2021,45183,G,,Grants
"Ministry of Housing, Communities and Local Government",Homes England,CAP GRNTS TO LOCAL AUTHORITIES,Investment,NORTHAMPTON BOROUGH COUNCIL,14/05/2021,45183,G,,Grants
"Ministry of Housing, Communities and Local Government",Homes England,CAP GRNTS TO LOCAL AUTHORITIES,Investment,NORTHAMPTON BOROUGH COUNCIL,14/05/2021,45183,G,,Grants
"Ministry of Housing, Communities and Local Government",Homes England,CAP GRNTS TO LOCAL AUTHORITIES,Investment,NORTHAMPTON BOROUGH COUNCIL,14/05/2021,45183,G,,Grants
"Ministry of Housing, Communities and Local Government",Homes England,CAP GRNTS TO LOCAL AUTHORITIES,Investment,NORTHAMPTON BOROUGH COUNCIL,14/05/2021,45183,G,,Grants
"Ministry of Housing, Communities and Local Government",Homes England,CAP GRNTS TO LOCAL AUTHORITIES,Investment,NORTHAMPTON BOROUGH COUNCIL,14/05/2021,45183,G,,Grants
"Ministry of Housing, Communities and Local Government",Homes England,CAP GRNTS TO LOCAL AUTHORITIES,Investment,NORTHAMPTON BOROUGH COUNCIL,14/05/2021,45183,G,,Grants
"Ministry of Housing, Communities and Local Government",Homes England,CAP GRNTS TO LOCAL AUTHORITIES,Investment,NORTHAMPTON BOROUGH COUNCIL,14/05/2021,45183,G,,Grants
"Ministry of Housing, Communities and Local Government",Homes England,CAP GRNTS TO LOCAL AUTHORITIES,Investment,NORTHAMPTON BOROUGH COUNCIL,14/05/2021,45183,G,,Grants
"Ministry of Housing, Communities and Local Government",Homes England,CAP GRNTS TO LOCAL AUTHORITIES,Investment,NORTHAMPTON BOROUGH COUNCIL,14/05/2021,45183,G,,Grants
"Ministry of Housing, Communities and Local Government",Homes England,CAP GRNTS TO LOCAL AUTHORITIES,Investment,THE COUNCIL OF THE BOROUGH OF HARROGATE,06/05/2021,13750,G,,Grants
"Ministry of Housing, Communities and Local Government",Homes England,CAP GRNTS TO LOCAL AUTHORITIES,Investment,THE COUNCIL OF THE BOROUGH OF HARROGATE,06/05/2021,13750,G,,Grants
"Ministry of Housing, Communities and Local Government",Homes England,CAP GRNTS TO LOCAL AUTHORITIES,Investment,THE COUNCIL OF THE BOROUGH OF HARROGATE,25/05/2021,32500,G,,Grants
"Ministry of Housing, Communities and Local Government",Homes England,CAP GRNTS TO LOCAL AUTHORITIES,Investment,THE COUNCIL OF THE BOROUGH OF HARROGATE,25/05/2021,32500,G,,Grants
"Ministry of Housing, Communities and Local Government",Homes England,CAP GRNTS TO LOCAL AUTHORITIES,Investment,THE COUNCIL OF THE BOROUGH OF HARROGATE,25/05/2021,32500,G,,Grants
"Ministry of Housing, Communities and Local Government",Homes England,CAP GRNTS TO LOCAL AUTHORITIES,Investment,RYEDALE DISTRICT COUNCIL,06/05/2021,30600,G,,Grants
"Ministry of Housing, Communities and Local Government",Homes England,CAP GRNTS TO LOCAL AUTHORITIES,Investment,RYEDALE DISTRICT COUNCIL,25/05/2021,34000,G,,Grants
"Ministry of Housing, Communities and Local Government",Homes England,CAP GRNTS TO LOCAL AUTHORITIES,Investment,RYEDALE DISTRICT COUNCIL,25/05/2021,135828,G,,Grants
"Ministry of Housing, Communities and Local Government",Homes England,BUILDINGS-VACANT RATES,MPP,CHERWELL DISTRICT COUNCIL,20/05/2021,264.54,G,80131500,Lease and rental of property or building
"Ministry of Housing, Communities and Local Government",Homes England,CAP GRNTS TO LOCAL AUTHORITIES,Investment,OXFORD CITY COUNCIL,28/05/2021,13500,G,,Grants
"Ministry of Housing, Communities and Local Government",Homes England,CAP GRNTS TO LOCAL AUTHORITIES,Investment,CANNOCK CHASE DISTRICT COUNCIL,18/05/2021,28750,G,,Grants
"Ministry of Housing, Communities and Local Government",Homes England,ENGINEERING CONSULTANTS,Development,ATKINS LTD,20/05/2021,83879.24,L,80131800,Real estate management services
"Ministry of Housing, Communities and Local Government",Homes England,PLANNING APPLICATIONS,MPP,ATKINS LTD,28/05/2021,3724.8,L,80131800,Real estate management services
"Ministry of Housing, Communities and Local Government",Homes England,RESERVOIRS REPAIR & MAINT,Development,ATKINS LTD,07/05/2021,7908,L,80131800,Real estate management services
"Ministry of Housing, Communities and Local Government",Homes England,RESERVOIRS REPAIR & MAINT,Development,ATKINS LTD,07/05/2021,1908,L,80131800,Real estate management services
"Ministry of Housing, Communities and Local Government",Homes England,ESTATE GENERAL MAINTENANCE,Development,AJP LOGISTICS LIMITED,17/05/2021,3048,S,81102200,Transport Engineering
"Ministry of Housing, Communities and Local Government",Homes England,CONTRACT WORKS,Development,WESTERN POWER DISTRIBUTION,19/05/2021,292.07,L,72101500,Building maintenance and repair services
"Ministry of Housing, Communities and Local Government",Homes England,CAR LEASING - HIRE CHARGES,Investment,ALPHABET (GB) LTD,11/05/2021,292.5,L,25101500,Passenger motor vehicles
"Ministry of Housing, Communities and Local Government",Homes England,FENCE MAINTENANCE,Development,AEWC LIMITED,17/05/2021,1986.96,S,77101500,Environmental auditing
"Ministry of Housing, Communities and Local Government",Homes England,CONTRACT WORKS,MPP,AE YATES LTD,12/05/2021,133430.45,M,72141500,Land preparation services
"Ministry of Housing, Communities and Local Government",Homes England,CAR LEASING - HIRE CHARGES,Development,ARVAL UK LIMITED,11/05/2021,2627.58,L,25101500,Passenger motor vehicles
"Ministry of Housing, Communities and Local Government",Homes England,CAR LEASING - HIRE CHARGES,Development,ARVAL UK LIMITED,11/05/2021,3345.58,L,25101500,Passenger motor vehicles
"Ministry of Housing, Communities and Local Government",Homes England,CAR LEASING - HIRE CHARGES,Development,ARVAL UK LIMITED,20/05/2021,2472.73,L,25101500,Passenger motor vehicles
"Ministry of Housing, Communities and Local Government",Homes England,CAR LEASING - HIRE CHARGES,Development,ARVAL UK LIMITED,20/05/2021,3514.7,L,25101500,Passenger motor vehicles
"Ministry of Housing, Communities and Local Government",Homes England,CAR LEASING - HIRE CHARGES,Development,ARVAL UK LIMITED,20/05/2021,2109.36,L,25101500,Passenger motor vehicles
"Ministry of Housing, Communities and Local Government",Homes England,CAR LEASING - HIRE CHARGES,Development,ARVAL UK LIMITED,20/05/2021,3151.38,L,25101500,Passenger motor vehicles
"Ministry of Housing, Communities and Local Government",Homes England,CAR LEASING - HIRE CHARGES,MPP,ARVAL UK LIMITED,21/05/2021,1981.44,L,25101500,Passenger motor vehicles
"Ministry of Housing, Communities and Local Government",Homes England,CAR LEASING - HIRE CHARGES,MPP,ARVAL UK LIMITED,21/05/2021,2699.42,L,25101500,Passenger motor vehicles
"Ministry of Housing, Communities and Local Government",Homes England,CAR LEASING - HIRE CHARGES,Development,ARVAL UK LIMITED,21/05/2021,2201.28,L,25101500,Passenger motor vehicles
"Ministry of Housing, Communities and Local Government",Homes England,CAR LEASING - HIRE CHARGES,Development,ARVAL UK LIMITED,21/05/2021,2984.05,L,25101500,Passenger motor vehicles
"Ministry of Housing, Communities and Local Government",Homes England,CAR LEASING - HIRE CHARGES,Investment,ARVAL UK LIMITED,21/05/2021,2167.58,L,25101500,Passenger motor vehicles
"Ministry of Housing, Communities and Local Government",Homes England,CAR LEASING - HIRE CHARGES,Investment,ARVAL UK LIMITED,21/05/2021,2799.31,L,25101500,Passenger motor vehicles
"Ministry of Housing, Communities and Local Government",Homes England,CAR LEASING - HIRE CHARGES,Development,ARVAL UK LIMITED,26/05/2021,2196.31,L,25101500,Passenger motor vehicles
"Ministry of Housing, Communities and Local Government",Homes England,CAR LEASING - HIRE CHARGES,Development,ARVAL UK LIMITED,26/05/2021,3367.31,L,25101500,Passenger motor vehicles
"Ministry of Housing, Communities and Local Government",Homes England,EXTERNAL BUILDING MAINTENANCE,MPP,ALLIUM ENVIRONMENTAL LTD,11/05/2021,288,S,77101500,Environmental auditing
"Ministry of Housing, Communities and Local Government",Homes England,HEALTH & SAFETY SURVEYS,MPP,ALLIUM ENVIRONMENTAL LTD,27/05/2021,342,S,77101500,Environmental auditing
"Ministry of Housing, Communities and Local Government",Homes England,MANAGEMENT COSTS,MPP,ALLIUM ENVIRONMENTAL LTD,11/05/2021,288,S,77101500,Environmental auditing
"Ministry of Housing, Communities and Local Government",Homes England,OTHER PROFESSIONAL FEES,MPP,AURORA HEALTH PHYSICS SERVICES LTD,26/05/2021,11779.2,S,77101500,Environmental auditing
"Ministry of Housing, Communities and Local Government",Homes England,LANDSCAPE MAINT-BUILT ESTATE,Development,ALBEN LANDSCAPES LIMITED,06/05/2021,1569.6,S,72101500,Building maintenance and repair services
"Ministry of Housing, Communities and Local Government",Homes England,CONTRACT WORKS,Development,A BUCKLER (HAULAGE) LTD,28/05/2021,10317.32,S,72141500,Land preparation services
"Ministry of Housing, Communities and Local Government",Homes England,TRAINING COURSES & CONFERENCES,MPP,AZT CONSULTANCY,25/05/2021,300,S,86101800,In service training and manpower development
"Ministry of Housing, Communities and Local Government",Homes England,AGENCY STAFF,Corporate Resources,ALLEN LANE LIMITED,07/05/2021,3795,M,80111600,Temporary personnel services
"Ministry of Housing, Communities and Local Government",Homes England,AGENCY STAFF,Corporate Resources,ALLEN LANE LIMITED,07/05/2021,3795,M,80111600,Temporary personnel services
"Ministry of Housing, Communities and Local Government",Homes England,AGENCY STAFF,Corporate Resources,ALLEN LANE LIMITED,07/05/2021,3630,M,80111600,Temporary personnel services
"Ministry of Housing, Communities and Local Government",Homes England,AGENCY STAFF,Corporate Resources,ALLEN LANE LIMITED,07/05/2021,3795,M,80111600,Temporary personnel services
"Ministry of Housing, Communities and Local Government",Homes England,AGENCY STAFF,Corporate Resources,ALLEN LANE LIMITED,07/05/2021,7590,M,80111600,Temporary personnel services
"Ministry of Housing, Communities and Local Government",Homes England,AGENCY STAFF,Corporate Resources,ALLEN LANE LIMITED,07/05/2021,3795,M,80111600,Temporary personnel services
"Ministry of Housing, Communities and Local Government",Homes England,AGENCY STAFF,Corporate Resources,ALLEN LANE LIMITED,11/05/2021,4290,M,80111600,Temporary personnel services
"Ministry of Housing, Communities and Local Government",Homes England,AGENCY STAFF,Corporate Resources,ALLEN LANE LIMITED,11/05/2021,1980,M,80111600,Temporary personnel services
"Ministry of Housing, Communities and Local Government",Homes England,AGENCY STAFF,Corporate Resources,ALLEN LANE LIMITED,13/05/2021,7590,M,80111600,Temporary personnel services
"Ministry of Housing, Communities and Local Government",Homes England,AGENCY STAFF,Corporate Resources,ALLEN LANE LIMITED,13/05/2021,3036,M,80111600,Temporary personnel services
"Ministry of Housing, Communities and Local Government",Homes England,AGENCY STAFF,Corporate Resources,ALLEN LANE LIMITED,13/05/2021,6072,M,80111600,Temporary personnel services
"Ministry of Housing, Communities and Local Government",Homes England,AGENCY STAFF,Corporate Resources,ALLEN LANE LIMITED,13/05/2021,3036,M,80111600,Temporary personnel services
"Ministry of Housing, Communities and Local Government",Homes England,AGENCY STAFF,Corporate Resources,ALLEN LANE LIMITED,13/05/2021,3432,M,80111600,Temporary personnel services
"Ministry of Housing, Communities and Local Government",Homes England,AGENCY STAFF,Corporate Resources,ALLEN LANE LIMITED,13/05/2021,3036,M,80111600,Temporary personnel services
"Ministry of Housing, Communities and Local Government",Homes England,AGENCY STAFF,Corporate Resources,ALLEN LANE LIMITED,13/05/2021,3036,M,80111600,Temporary personnel services
"Ministry of Housing, Communities and Local Government",Homes England,AGENCY STAFF,Corporate Resources,ALLEN LANE LIMITED,13/05/2021,2904,M,80111600,Temporary personnel services
"Ministry of Housing, Communities and Local Government",Homes England,AGENCY STAFF,Corporate Resources,ALLEN LANE LIMITED,24/05/2021,3795,M,80111600,Temporary personnel services
"Ministry of Housing, Communities and Local Government",Homes England,AGENCY STAFF,Corporate Resources,ALLEN LANE LIMITED,24/05/2021,3795,M,80111600,Temporary personnel services
"Ministry of Housing, Communities and Local Government",Homes England,AGENCY STAFF,Corporate Resources,ALLEN LANE LIMITED,24/05/2021,4290,M,80111600,Temporary personnel services
"Ministry of Housing, Communities and Local Government",Homes England,AGENCY STAFF,Corporate Resources,ALLEN LANE LIMITED,24/05/2021,4620,M,80111600,Temporary personnel services
"Ministry of Housing, Communities and Local Government",Homes England,AGENCY STAFF,Corporate Resources,ALLEN LANE LIMITED,24/05/2021,3630,M,80111600,Temporary personnel services
"Ministry of Housing, Communities and Local Government",Homes England,AGENCY STAFF,Corporate Resources,ALLEN LANE LIMITED,24/05/2021,3795,M,80111600,Temporary personnel services
"Ministry of Housing, Communities and Local Government",Homes England,AGENCY STAFF,Corporate Resources,ALLEN LANE LIMITED,24/05/2021,6831,M,80111600,Temporary personnel services
"Ministry of Housing, Communities and Local Government",Homes England,AGENCY STAFF,Corporate Resources,ALLEN LANE LIMITED,24/05/2021,3795,M,80111600,Temporary personnel services
"Ministry of Housing, Communities and Local Government",Homes England,AGENCY STAFF,Corporate Resources,ALLEN LANE LIMITED,24/05/2021,2178,M,80111600,Temporary personnel services
"Ministry of Housing, Communities and Local Government",Homes England,AGENCY STAFF,Corporate Resources,ALLEN LANE LIMITED,24/05/2021,3795,M,80111600,Temporary personnel services
"Ministry of Housing, Communities and Local Government",Homes England,AGENCY STAFF,Corporate Resources,ALLEN LANE LIMITED,24/05/2021,9315,M,80111600,Temporary personnel services
"Ministry of Housing, Communities and Local Government",Homes England,AGENCY STAFF,Corporate Resources,ALLEN LANE LIMITED,28/05/2021,3795,M,80111600,Temporary personnel services
"Ministry of Housing, Communities and Local Government",Homes England,AGENCY STAFF,Corporate Resources,ALLEN LANE LIMITED,28/05/2021,3415.5,M,80111600,Temporary personnel services
"Ministry of Housing, Communities and Local Government",Homes England,AGENCY STAFF,Corporate Resources,ALLEN LANE LIMITED,28/05/2021,4290,M,80111600,Temporary personnel services
"Ministry of Housing, Communities and Local Government",Homes England,AGENCY STAFF,Corporate Resources,ALLEN LANE LIMITED,28/05/2021,2640,M,80111600,Temporary personnel services
"Ministry of Housing, Communities and Local Government",Homes England,AGENCY STAFF,Corporate Resources,ALLEN LANE LIMITED,28/05/2021,3630,M,80111600,Temporary personnel services
"Ministry of Housing, Communities and Local Government",Homes England,AGENCY STAFF,Corporate Resources,ALLEN LANE LIMITED,28/05/2021,3795,M,80111600,Temporary personnel services
"Ministry of Housing, Communities and Local Government",Homes England,AGENCY STAFF,Corporate Resources,ALLEN LANE LIMITED,28/05/2021,3795,M,80111600,Temporary personnel services
"Ministry of Housing, Communities and Local Government",Homes England,AGENCY STAFF,Corporate Resources,ALLEN LANE LIMITED,28/05/2021,3795,M,80111600,Temporary personnel services
"Ministry of Housing, Communities and Local Government",Homes England,AGENCY STAFF,Corporate Resources,ALLEN LANE LIMITED,28/05/2021,13972.5,M,80111600,Temporary personnel services
"Ministry of Housing, Communities and Local Government",Homes England,ESTATE GENERAL MAINTENANCE,Development,AIREDALE FORESTRY,14/05/2021,278.22,S,72101500,Building maintenance and repair services
"Ministry of Housing, Communities and Local Government",Homes England,ESTATE GENERAL MAINTENANCE,MPP,AIREDALE FORESTRY,14/05/2021,613.9,S,72101500,Building maintenance and repair services
"Ministry of Housing, Communities and Local Government",Homes England,ESTATE GENERAL MAINTENANCE,MPP,AIREDALE FORESTRY,14/05/2021,535.88,S,72101500,Building maintenance and repair services
"Ministry of Housing, Communities and Local Government",Homes England,ESTATE GENERAL MAINTENANCE,MPP,AIREDALE FORESTRY,18/05/2021,394.13,S,72101500,Building maintenance and repair services
"Ministry of Housing, Communities and Local Government",Homes England,ESTATE GENERAL MAINTENANCE,MPP,AIREDALE FORESTRY,18/05/2021,815.71,S,72101500,Building maintenance and repair services
"Ministry of Housing, Communities and Local Government",Homes England,LANDSCAPE MAINT-BUILT ESTATE,Development,AIREDALE FORESTRY,14/05/2021,487.97,S,72101500,Building maintenance and repair services
"Ministry of Housing, Communities and Local Government",Homes England,DISPOSAL FEES - LEGAL,MPP,ASHFORDS,04/05/2021,976.8,L,80121600,Business law services
"Ministry of Housing, Communities and Local Government",Homes England,DISPOSAL FEES - LEGAL,MPP,ASHFORDS,04/05/2021,636.6,L,80121600,Business law services
"Ministry of Housing, Communities and Local Government",Homes England,DISPOSAL FEES - LEGAL,MPP,ASHFORDS,28/05/2021,1063.2,L,80121600,Business law services
"Ministry of Housing, Communities and Local Government",Homes England,LEGAL FEES (PROGRAMME - CDEL),MPP,ASHFORDS,07/05/2021,2586,L,80121600,Business law services
"Ministry of Housing, Communities and Local Government",Homes England,LEGAL FEES (PROGRAMME - RDEL),MPP,ASHFORDS,04/05/2021,603.6,L,80121600,Business law services
"Ministry of Housing, Communities and Local Government",Homes England,PROF FEES EQUITY CAPITALISED,Investment,ASHFORDS,07/05/2021,21414,L,80121600,Business law services
"Ministry of Housing, Communities and Local Government",Homes England,ENGINEERING FEES,Development,APEX ENGINEERING SERVICES LTD,28/05/2021,498,S,81101500,Civil Engineering
"Ministry of Housing, Communities and Local Government",Homes England,ENGINEERING FEES,Development,APEX ENGINEERING SERVICES LTD,28/05/2021,10080,S,81101500,Civil Engineering
"Ministry of Housing, Communities and Local Government",Homes England,CAR LEASING - HIRE CHARGES,Development,ARNOLD CLARK FINANCE LIMITED,10/05/2021,311.78,L,25101500,Passenger motor vehicles
"Ministry of Housing, Communities and Local Government",Homes England,CAR LEASING - HIRE CHARGES,Development,ARNOLD CLARK FINANCE LIMITED,10/05/2021,254.11,L,25101500,Passenger motor vehicles
"Ministry of Housing, Communities and Local Government",Homes England,CAR LEASING - HIRE CHARGES,Investment,ARNOLD CLARK FINANCE LIMITED,10/05/2021,304.68,L,25101500,Passenger motor vehicles
"Ministry of Housing, Communities and Local Government",Homes England,CAR LEASING - HIRE CHARGES,Investment,ARNOLD CLARK FINANCE LIMITED,10/05/2021,264.66,L,25101500,Passenger motor vehicles
"Ministry of Housing, Communities and Local Government",Homes England,CAR LEASING - HIRE CHARGES,Investment,ARNOLD CLARK FINANCE LIMITED,10/05/2021,311.5,L,25101500,Passenger motor vehicles
"Ministry of Housing, Communities and Local Government",Homes England,CAR LEASING - HIRE CHARGES,Investment,ARNOLD CLARK FINANCE LIMITED,21/05/2021,2665.51,L,25101500,Passenger motor vehicles
"Ministry of Housing, Communities and Local Government",Homes England,CAR LEASING - HIRE CHARGES,Investment,ARNOLD CLARK FINANCE LIMITED,21/05/2021,3369.67,L,25101500,Passenger motor vehicles
"Ministry of Housing, Communities and Local Government",Homes England,CAR LEASING - HIRE CHARGES,Investment,ARNOLD CLARK FINANCE LIMITED,21/05/2021,2730.82,L,25101500,Passenger motor vehicles
"Ministry of Housing, Communities and Local Government",Homes England,CAR LEASING - HIRE CHARGES,Investment,ARNOLD CLARK FINANCE LIMITED,21/05/2021,3395.08,L,25101500,Passenger motor vehicles
"Ministry of Housing, Communities and Local Government",Homes England,CAR LEASING - HIRE CHARGES,Development,ARNOLD CLARK FINANCE LIMITED,21/05/2021,2191.18,L,25101500,Passenger motor vehicles
"Ministry of Housing, Communities and Local Government",Homes England,CAR LEASING - HIRE CHARGES,Development,ARNOLD CLARK FINANCE LIMITED,21/05/2021,2442.45,L,25101500,Passenger motor vehicles
"Ministry of Housing, Communities and Local Government",Homes England,ENGINEERING FEES,MPP,AYLESBURY MAINS LTD,14/05/2021,1576.8,S,72101500,Building maintenance and repair services
"Ministry of Housing, Communities and Local Government",Homes England,DISPOSAL FEES - LEGAL,MPP,BERWIN LEIGHTON PAISNER,24/05/2021,2330.64,L,80121600,Business law services
"Ministry of Housing, Communities and Local Government",Homes England,LEGAL FEES (PROGRAMME - RDEL),Investment,BERWIN LEIGHTON PAISNER,05/05/2021,8100,L,80121600,Business law services
"Ministry of Housing, Communities and Local Government",Homes England,LEGAL FEES (PROGRAMME - RDEL),Investment,BERWIN LEIGHTON PAISNER,05/05/2021,8400,L,80121600,Business law services
"Ministry of Housing, Communities and Local Government",Homes England,LEGAL FEES (PROGRAMME - RDEL),Investment,BERWIN LEIGHTON PAISNER,05/05/2021,8460,L,80121600,Business law services
"Ministry of Housing, Communities and Local Government",Homes England,LEGAL FEES (PROGRAMME - RDEL),MPP,BERWIN LEIGHTON PAISNER,07/05/2021,396,L,80121600,Business law services
"Ministry of Housing, Communities and Local Government",Homes England,LEGAL FEES (PROGRAMME - RDEL),Investment,BERWIN LEIGHTON PAISNER,24/05/2021,1200,L,80121600,Business law services
"Ministry of Housing, Communities and Local Government",Homes England,LEGAL FEES (PROGRAMME - RDEL),Investment,BERWIN LEIGHTON PAISNER,24/05/2021,3600,L,80121600,Business law services
"Ministry of Housing, Communities and Local Government",Homes England,OTHER PROF FESS (NON-ASSET),Investment,BERWIN LEIGHTON PAISNER,21/05/2021,26400,L,80121600,Business law services
"Ministry of Housing, Communities and Local Government",Homes England,MISC PROFESSIONAL FEES,Service Design And Transformation,BJSS LIMITED,10/05/2021,147581.1,L,80101500,Business and corporate management consultation services�
"Ministry of Housing, Communities and Local Government",Homes England,MISC PROFESSIONAL FEES,Service Design And Transformation,BJSS LIMITED,18/05/2021,59522.1,L,80101500,Business and corporate management consultation services�
"Ministry of Housing, Communities and Local Government",Homes England,MISC PROFESSIONAL FEES,Service Design And Transformation,BJSS LIMITED,20/05/2021,67340.7,L,80101500,Business and corporate management consultation services�
"Ministry of Housing, Communities and Local Government",Homes England,DISPOSAL FEES - LEGAL,MPP,BROWNE JACOBSON LLP,05/05/2021,3600,L,80121600,Business law services
"Ministry of Housing, Communities and Local Government",Homes England,DISPOSAL FEES - LEGAL,MPP,BROWNE JACOBSON LLP,05/05/2021,4928,L,80121600,Business law services
"Ministry of Housing, Communities and Local Government",Homes England,DISPOSAL FEES - LEGAL,MPP,BROWNE JACOBSON LLP,10/05/2021,5151.56,L,80121600,Business law services
"Ministry of Housing, Communities and Local Government",Homes England,DISPOSAL FEES - LEGAL,MPP,BROWNE JACOBSON LLP,11/05/2021,4524.6,L,80121600,Business law services
"Ministry of Housing, Communities and Local Government",Homes England,LEGAL FEES (PROGRAMME - CDEL),Development,BROWNE JACOBSON LLP,06/05/2021,4293,L,80121600,Business law services
"Ministry of Housing, Communities and Local Government",Homes England,LEGAL FEES (PROGRAMME - CDEL),MPP,BROWNE JACOBSON LLP,06/05/2021,1839,L,80121600,Business law services
"Ministry of Housing, Communities and Local Government",Homes England,LEGAL FEES (PROGRAMME - RDEL),MPP,BROWNE JACOBSON LLP,04/05/2021,1140,L,80121600,Business law services
"Ministry of Housing, Communities and Local Government",Homes England,LEGAL FEES (PROGRAMME - RDEL),Development,BROWNE JACOBSON LLP,04/05/2021,17357.16,L,80121600,Business law services
"Ministry of Housing, Communities and Local Government",Homes England,LEGAL FEES (PROGRAMME - RDEL),Development,BROWNE JACOBSON LLP,05/05/2021,5689.8,L,80121600,Business law services
"Ministry of Housing, Communities and Local Government",Homes England,LEGAL FEES (PROGRAMME - RDEL),MPP,BROWNE JACOBSON LLP,06/05/2021,1352.4,L,80121600,Business law services
"Ministry of Housing, Communities and Local Government",Homes England,LEGAL FEES (PROGRAMME - RDEL),Development,BROWNE JACOBSON LLP,06/05/2021,2076,L,80121600,Business law services
"Ministry of Housing, Communities and Local Government",Homes England,LEGAL FEES (PROGRAMME - RDEL),Development,BROWNE JACOBSON LLP,17/05/2021,1825.2,L,80121600,Business law services
"Ministry of Housing, Communities and Local Government",Homes England,LEGAL FEES (PROGRAMME - RDEL),Development,BROWNE JACOBSON LLP,19/05/2021,2400,L,80121600,Business law services
"Ministry of Housing, Communities and Local Government",Homes England,LEGAL FEES (PROGRAMME - RDEL),MPP,BROWNE JACOBSON LLP,28/05/2021,4800,L,80121600,Business law services
"Ministry of Housing, Communities and Local Government",Homes England,LEGAL FEES (PROGRAMME - RDEL),MPP,BROWNE JACOBSON LLP,28/05/2021,1680,L,80121600,Business law services
"Ministry of Housing, Communities and Local Government",Homes England,PROF FEES LOANS CAPITALISED,Investment,BROWNE JACOBSON LLP,28/05/2021,6000,L,80121600,Business law services
"Ministry of Housing, Communities and Local Government",Homes England,MASTERPLANNING FEES,Development,BUILDING DESIGN PARTNERSHIP,26/05/2021,36000,L,80131800,Real estate management services
"Ministry of Housing, Communities and Local Government",Homes England,RI - MONIITORING SURVEYOR FEES,Investment,BUILDING DESIGN PARTNERSHIP,28/05/2021,2160,L,80131800,Real estate management services
"Ministry of Housing, Communities and Local Government",Homes England,RI - MONIITORING SURVEYOR FEES,Investment,BUILDING DESIGN PARTNERSHIP,28/05/2021,2760,L,80131800,Real estate management services
"Ministry of Housing, Communities and Local Government",Homes England,RENT PAYABLE,Development,CANAL & RIVER TRUST,24/05/2021,789,L,80131500,Lease and rental of property or building
"Ministry of Housing, Communities and Local Government",Homes England,RENT PAYABLE,Development,CANAL & RIVER TRUST,24/05/2021,400.5,L,80131500,Lease and rental of property or building
"Ministry of Housing, Communities and Local Government",Homes England,ST FUND LOANS ADDITIONS,Investment,BROADFIELD HOMES LTD,04/05/2021,32855.27,L,,Loans
"Ministry of Housing, Communities and Local Government",Homes England,ESTATE GENERAL MAINTENANCE,Development,BEECHWOOD TREES AND LANDSCAPES LTD,18/05/2021,5070,S,72102900,Building maintenance and repair services
"Ministry of Housing, Communities and Local Government",Homes England,ENGINEERING FEES,Development,STANTEC UK LIMITED,21/05/2021,58322.9,L,80131800,Real estate management services
"Ministry of Housing, Communities and Local Government",Homes England,ENGINEERING FEES,Development,STANTEC UK LIMITED,21/05/2021,42900,L,80131800,Real estate management services
"Ministry of Housing, Communities and Local Government",Homes England,OTHER PROFESSIONAL FEES,MPP,STANTEC UK LIMITED,07/05/2021,4782,L,80131800,Real estate management services
"Ministry of Housing, Communities and Local Government",Homes England,AGENCY STAFF,Development,BADENOCH & CLARK,06/05/2021,2097,L,80111600,Temporary personnel services
"Ministry of Housing, Communities and Local Government",Homes England,AGENCY STAFF,Development,BADENOCH & CLARK,12/05/2021,2097,L,80111600,Temporary personnel services
"Ministry of Housing, Communities and Local Government",Homes England,AGENCY STAFF,Development,BADENOCH & CLARK,24/05/2021,1677.6,L,80111600,Temporary personnel services
"Ministry of Housing, Communities and Local Government",Homes England,AGENCY STAFF,Development,BADENOCH & CLARK,24/05/2021,1957.2,L,80111600,Temporary personnel services
"Ministry of Housing, Communities and Local Government",Homes England,AGENCY STAFF,Development,BADENOCH & CLARK,24/05/2021,1957.2,L,80111600,Temporary personnel services
"Ministry of Housing, Communities and Local Government",Homes England,AGENCY STAFF,Development,BADENOCH & CLARK,26/05/2021,2097,L,80111600,Temporary personnel services
"Ministry of Housing, Communities and Local Government",Homes England,AGENCY STAFF,Development,BADENOCH & CLARK,27/05/2021,2446.5,L,80111600,Temporary personnel services
"Ministry of Housing, Communities and Local Government",Homes England,PROJECT MANAGEMENT,Development,RIDER LEVETT BUCKNALL UK LTD,05/05/2021,4080,L,80131800,Real estate management services
"Ministry of Housing, Communities and Local Government",Homes England,HOME WORKERS,Corporate Resources,BRITISH TELECOMMUNICATIONS PLC,24/05/2021,1208.4,L,83111500,Local and long distance telephone communications
"Ministry of Housing, Communities and Local Government",Homes England,HOME WORKERS,Corporate Resources,BRITISH TELECOMMUNICATIONS PLC,28/05/2021,1148.4,L,83111500,Local and long distance telephone communications
"Ministry of Housing, Communities and Local Government",Homes England,MOBILES,Corporate Resources,BRITISH TELECOMMUNICATIONS PLC,04/05/2021,401.66,L,83111500,Local and long distance telephone communications
"Ministry of Housing, Communities and Local Government",Homes England,BUILDINGS-ELECTRICITY,Development,BRITISH GAS BUSINESS,14/05/2021,795.32,L,83101800,Electric utilities
"Ministry of Housing, Communities and Local Government",Homes England,L&OD STRATEGIC - HR USE ONLY,Corporate Resources,BRAVE PRODUCTIONS LIMITED,13/05/2021,9120,S,86101800,In service training and manpower development
"Ministry of Housing, Communities and Local Government",Homes England,CAP GRNTS TO LOCAL AUTHORITIES,Investment,BRISTOL CITY COUNCIL,25/05/2021,683187,G,,Grants
"Ministry of Housing, Communities and Local Government",Homes England,OTHER LTF LOAN ADDITIONS,Investment,BL CW Developments Limited,26/05/2021,2105049.18,S,,Loans
"Ministry of Housing, Communities and Local Government",Homes England,ST FUND LOANS ADDITIONS,Investment,BRYNKINALT FARMING LTD,07/05/2021,322020,L,,Loans
"Ministry of Housing, Communities and Local Government",Homes England,LANDSCAPE MAINT-BUILT ESTATE,MPP,BRANCHWALKERS NE LANDSCAPES,17/05/2021,600,S,72101500,Building maintenance and repair services
"Ministry of Housing, Communities and Local Government",Homes England,ST FUND LOANS ADDITIONS,Investment,BUCHANAN ESTATES LIMITED,25/05/2021,258433.15,S,,Loans
"Ministry of Housing, Communities and Local Government",Homes England,ESTATE GENERAL MAINTENANCE,Development,NJL BOXGREEN,04/05/2021,600,S,72101500,Building maintenance and repair services
"Ministry of Housing, Communities and Local Government",Homes England,ESTATE GENERAL MAINTENANCE,Development,NJL BOXGREEN,17/05/2021,750,S,72101500,Building maintenance and repair services
"Ministry of Housing, Communities and Local Government",Homes England,ESTATE GENERAL MAINTENANCE,Development,NJL BOXGREEN,17/05/2021,1170,S,72101500,Building maintenance and repair services
"Ministry of Housing, Communities and Local Government",Homes England,ESTATE GENERAL MAINTENANCE,Development,NJL BOXGREEN,17/05/2021,1440,S,72101500,Building maintenance and repair services
"Ministry of Housing, Communities and Local Government",Homes England,ESTATE GENERAL MAINTENANCE,Development,NJL BOXGREEN,17/05/2021,3931.2,S,72101500,Building maintenance and repair services
"Ministry of Housing, Communities and Local Government",Homes England,ST FUND LOANS ADDITIONS,Investment,BROADLEAF NORWICH ROAD LIMITED,20/05/2021,133663.49,L,,Loans
"Ministry of Housing, Communities and Local Government",Homes England,ST FUND LOANS ADDITIONS,Investment,BARCLAYS BANK PLC,04/05/2021,3060,L,,Loans
"Ministry of Housing, Communities and Local Government",Homes England,MISC PROFESSIONAL FEES,Development,BRADLEY HALL LIMITED,25/05/2021,22458.55,S,80131800,Real estate management services
"Ministry of Housing, Communities and Local Government",Homes England,ST FUND LOANS ADDITIONS,Investment,BE21 LTD,18/05/2021,156421,L,,Loans
"Ministry of Housing, Communities and Local Government",Homes England,ST FUND LOANS ADDITIONS,Investment,BELFIELD KINGSKERSWELL LLP,13/05/2021,411000,S,,Loans
"Ministry of Housing, Communities and Local Government",Homes England,LT FUND LOANS (PS) ADDITIONS,Investment,BXS LIMITED PARTNERSHIP,04/05/2021,5439785,M,,Loans
"Ministry of Housing, Communities and Local Government",Homes England,PROF FEES LOANS CAPITALISED,Investment,BNP PARIBAS REAL ESTATE,04/05/2021,1080,L,80131800,Real estate management services
"Ministry of Housing, Communities and Local Government",Homes England,RI - MONIITORING SURVEYOR FEES,Investment,BNP PARIBAS REAL ESTATE,04/05/2021,1080,L,80131800,Real estate management services
"Ministry of Housing, Communities and Local Government",Homes England,RI - MONIITORING SURVEYOR FEES,Investment,BNP PARIBAS REAL ESTATE,04/05/2021,960,L,80131800,Real estate management services
"Ministry of Housing, Communities and Local Government",Homes England,RI - MONIITORING SURVEYOR FEES,Investment,BNP PARIBAS REAL ESTATE,04/05/2021,1020,L,80131800,Real estate management services
"Ministry of Housing, Communities and Local Government",Homes England,RI - MONIITORING SURVEYOR FEES,Investment,BNP PARIBAS REAL ESTATE,04/05/2021,1020,L,80131800,Real estate management services
"Ministry of Housing, Communities and Local Government",Homes England,RI - MONIITORING SURVEYOR FEES,Investment,BNP PARIBAS REAL ESTATE,04/05/2021,1020,L,80131800,Real estate management services
"Ministry of Housing, Communities and Local Government",Homes England,RI - MONIITORING SURVEYOR FEES,Investment,BNP PARIBAS REAL ESTATE,04/05/2021,600,L,80131800,Real estate management services
"Ministry of Housing, Communities and Local Government",Homes England,RI - MONIITORING SURVEYOR FEES,Investment,BNP PARIBAS REAL ESTATE,04/05/2021,720,L,80131800,Real estate management services
"Ministry of Housing, Communities and Local Government",Homes England,RI - MONIITORING SURVEYOR FEES,Investment,BNP PARIBAS REAL ESTATE,04/05/2021,840,L,80131800,Real estate management services
"Ministry of Housing, Communities and Local Government",Homes England,RI - MONIITORING SURVEYOR FEES,Investment,BNP PARIBAS REAL ESTATE,04/05/2021,840,L,80131800,Real estate management services
"Ministry of Housing, Communities and Local Government",Homes England,RI - MONIITORING SURVEYOR FEES,Investment,BNP PARIBAS REAL ESTATE,04/05/2021,840,L,80131800,Real estate management services
"Ministry of Housing, Communities and Local Government",Homes England,RI - MONIITORING SURVEYOR FEES,Development,BNP PARIBAS REAL ESTATE,04/05/2021,780,L,80131800,Real estate management services
"Ministry of Housing, Communities and Local Government",Homes England,RI - MONIITORING SURVEYOR FEES,Investment,BNP PARIBAS REAL ESTATE,05/05/2021,1920,L,80131800,Real estate management services
"Ministry of Housing, Communities and Local Government",Homes England,RI - MONIITORING SURVEYOR FEES,Investment,BNP PARIBAS REAL ESTATE,07/05/2021,720,L,80131800,Real estate management services
"Ministry of Housing, Communities and Local Government",Homes England,RI - MONIITORING SURVEYOR FEES,Investment,BNP PARIBAS REAL ESTATE,07/05/2021,1170,L,80131800,Real estate management services
"Ministry of Housing, Communities and Local Government",Homes England,RI - MONIITORING SURVEYOR FEES,Investment,BNP PARIBAS REAL ESTATE,07/05/2021,840,L,80131800,Real estate management services
"Ministry of Housing, Communities and Local Government",Homes England,RI - MONIITORING SURVEYOR FEES,Investment,BNP PARIBAS REAL ESTATE,10/05/2021,840,L,80131800,Real estate management services
"Ministry of Housing, Communities and Local Government",Homes England,RI - MONIITORING SURVEYOR FEES,Investment,BNP PARIBAS REAL ESTATE,11/05/2021,1140,L,80131800,Real estate management services
"Ministry of Housing, Communities and Local Government",Homes England,RI - MONIITORING SURVEYOR FEES,Investment,BNP PARIBAS REAL ESTATE,12/05/2021,1050,L,80131800,Real estate management services
"Ministry of Housing, Communities and Local Government",Homes England,RI - MONIITORING SURVEYOR FEES,Investment,BNP PARIBAS REAL ESTATE,13/05/2021,720,L,80131800,Real estate management services
"Ministry of Housing, Communities and Local Government",Homes England,RI - MONIITORING SURVEYOR FEES,Investment,BNP PARIBAS REAL ESTATE,18/05/2021,1680,L,80131800,Real estate management services
"Ministry of Housing, Communities and Local Government",Homes England,L&OD STRATEGIC - HR USE ONLY,Corporate Resources,BELBIN ASSOCIATES,28/05/2021,15714,S,86101800,In service training and manpower development
"Ministry of Housing, Communities and Local Government",Homes England,ESTATE GENERAL MAINTENANCE,Development,BROOKFIELD CONTRACTING & FARMING LTD,12/05/2021,321.99,S,72101500,Building maintenance and repair services
"Ministry of Housing, Communities and Local Government",Homes England,ESTATE GENERAL MAINTENANCE,Development,BROOKFIELD CONTRACTING & FARMING LTD,18/05/2021,321.99,S,72101500,Building maintenance and repair services
"Ministry of Housing, Communities and Local Government",Homes England,ESTATE GENERAL MAINTENANCE,Development,BROOKFIELD CONTRACTING & FARMING LTD,18/05/2021,321.99,S,72101500,Building maintenance and repair services
"Ministry of Housing, Communities and Local Government",Homes England,ESTATE GENERAL MAINTENANCE,Development,BROOKFIELD CONTRACTING & FARMING LTD,18/05/2021,321.99,S,72101500,Building maintenance and repair services
"Ministry of Housing, Communities and Local Government",Homes England,LANDSCAPE MAINT-BUILT ESTATE,Development,BROOKFIELD CONTRACTING & FARMING LTD,18/05/2021,465.46,S,72101500,Building maintenance and repair services
"Ministry of Housing, Communities and Local Government",Homes England,LEGAL FEES (PROGRAMME - RDEL),Investment,BOND DICKINSON LLP,07/05/2021,17625.6,L,80121600,Business law services
"Ministry of Housing, Communities and Local Government",Homes England,LEGAL FEES (PROGRAMME - RDEL),Investment,BOND DICKINSON LLP,27/05/2021,1680,L,80121600,Business law services
"Ministry of Housing, Communities and Local Government",Homes England,ESTATE GENERAL MAINTENANCE,MPP,G BURLEY & SONS LTD,19/05/2021,292.4,S,72101500,Building maintenance and repair services
"Ministry of Housing, Communities and Local Government",Homes England,ESTATE GENERAL MAINTENANCE,Development,G BURLEY & SONS LTD,24/05/2021,420,S,72101500,Building maintenance and repair services
"Ministry of Housing, Communities and Local Government",Homes England,LANDSCAPE MAINT-BUILT ESTATE,Development,G BURLEY & SONS LTD,19/05/2021,259.99,S,72101500,Building maintenance and repair services
"Ministry of Housing, Communities and Local Government",Homes England,MISC PROFESSIONAL FEES,Development,BERRYS,07/05/2021,2577.6,S,80131800,Real estate management services
"Ministry of Housing, Communities and Local Government",Homes England,MISC PROFESSIONAL FEES,Development,BERRYS,19/05/2021,958.8,S,80131800,Real estate management services
"Ministry of Housing, Communities and Local Government",Homes England,MISC PROFESSIONAL FEES,Development,BERRYS,24/05/2021,4170,S,80131800,Real estate management services
"Ministry of Housing, Communities and Local Government",Homes England,CAP GRNTS TO PRIVATE SECTOR,Investment,THE MERIDIAN RESIDENTS MANAGEMENT COMPANY LTD,04/05/2021,398398.89,S,,Grants
"Ministry of Housing, Communities and Local Government",Homes England,CAP GRNTS TO PRIVATE SECTOR,Investment,REVOLUTION PROPERTY MANAGEMENT LTD,12/05/2021,802038.9,S,,Grants
"Ministry of Housing, Communities and Local Government",Homes England,CAP GRNTS TO PRIVATE SECTOR,Investment,ESTATE SERVICE (SOUTHERN) LTD,25/05/2021,5017249.81,S,,Grants
"Ministry of Housing, Communities and Local Government",Homes England,CAP GRNTS TO PRIVATE SECTOR,Investment,SDL ESTATE MANAGEMENT LIMITED,10/05/2021,182654,S,,Grants
"Ministry of Housing, Communities and Local Government",Homes England,CAP GRNTS TO PRIVATE SECTOR,Investment,PARK HOUSE (LEEDS) MANAGEMENT LIMITED,11/05/2021,138981.6,S,,Grants
"Ministry of Housing, Communities and Local Government",Homes England,CAP GRNTS TO PRIVATE SECTOR,Investment,RMG,14/05/2021,202142,L,,Grants
"Ministry of Housing, Communities and Local Government",Homes England,CAP GRNTS TO PRIVATE SECTOR,Investment,DUNPHYS CHARTERED SURVEYORS,13/05/2021,149622,S,,Grants
"Ministry of Housing, Communities and Local Government",Homes England,CAP GRNTS TO PRIVATE SECTOR,Investment,LIV GROUP,18/05/2021,148857,S,,Grants
"Ministry of Housing, Communities and Local Government",Homes England,CAP GRNTS TO PRIVATE SECTOR,Investment,LOWRY OUTLET LIMITED,04/05/2021,402512,S,,Grants
"Ministry of Housing, Communities and Local Government",Homes England,CAP GRNTS TO PRIVATE SECTOR,Investment,RMG,11/05/2021,450855,L,,Grants
"Ministry of Housing, Communities and Local Government",Homes England,CAP GRNTS TO PRIVATE SECTOR,Investment,ADVENT 1 MANAGEMENT COMPANY LIMITED,20/05/2021,918990,S,,Grants
"Ministry of Housing, Communities and Local Government",Homes England,CAP GRNTS TO PRIVATE SECTOR,Investment,EWS LTD,05/05/2021,246906,S,,Grants
"Ministry of Housing, Communities and Local Government",Homes England,MASTERPLANNING FEES,MPP,CAMPBELL REITH,13/05/2021,43487.96,M,77101500,Environmental auditing
"Ministry of Housing, Communities and Local Government",Homes England,MISC PROFESSIONAL FEES,MPP,CAMPBELL REITH,10/05/2021,2100,M,77101500,Environmental auditing
"Ministry of Housing, Communities and Local Government",Homes England,MISC PROFESSIONAL FEES,MPP,CAMPBELL REITH,11/05/2021,840,M,77101500,Environmental auditing
"Ministry of Housing, Communities and Local Government",Homes England,MISC PROFESSIONAL FEES,MPP,CAMPBELL REITH,12/05/2021,82854.26,M,77101500,Environmental auditing
"Ministry of Housing, Communities and Local Government",Homes England,MISC PROFESSIONAL FEES,MPP,CAMPBELL REITH,20/05/2021,3456.3,M,77101500,Environmental auditing
"Ministry of Housing, Communities and Local Government",Homes England,OTHER PROFESSIONAL FEES,Development,CAMPBELL REITH,04/05/2021,2953.42,M,77101500,Environmental auditing
"Ministry of Housing, Communities and Local Government",Homes England,OTHER PROFESSIONAL FEES,MPP,CAMPBELL REITH,05/05/2021,30000,M,77101500,Environmental auditing
"Ministry of Housing, Communities and Local Government",Homes England,OTHER PROFESSIONAL FEES,MPP,CAMPBELL REITH,06/05/2021,26220,M,77101500,Environmental auditing
"Ministry of Housing, Communities and Local Government",Homes England,OTHER PROFESSIONAL FEES,MPP,CAMPBELL REITH,28/05/2021,4680,M,77101500,Environmental auditing
"Ministry of Housing, Communities and Local Government",Homes England,PLANNING APPLICATIONS,Development,CAMPBELL REITH,14/05/2021,2854.8,M,77101500,Environmental auditing
"Ministry of Housing, Communities and Local Government",Homes England,PLANNING APPLICATIONS,Development,CAMPBELL REITH,27/05/2021,314.4,M,77101500,Environmental auditing
"Ministry of Housing, Communities and Local Government",Homes England,PROJECT MANAGEMENT,MPP,CAMPBELL REITH,04/05/2021,1792.8,M,77101500,Environmental auditing
"Ministry of Housing, Communities and Local Government",Homes England,RI - MONIITORING SURVEYOR FEES,Investment,CAMPBELL REITH,05/05/2021,1302,M,77101500,Environmental auditing
"Ministry of Housing, Communities and Local Government",Homes England,RI - MONIITORING SURVEYOR FEES,Investment,CAMPBELL REITH,06/05/2021,1320,M,77101500,Environmental auditing
"Ministry of Housing, Communities and Local Government",Homes England,RI - MONIITORING SURVEYOR FEES,Investment,CAMPBELL REITH,11/05/2021,1320,M,77101500,Environmental auditing
"Ministry of Housing, Communities and Local Government",Homes England,RI - MONIITORING SURVEYOR FEES,Investment,CAMPBELL REITH,25/05/2021,2280,M,77101500,Environmental auditing
"Ministry of Housing, Communities and Local Government",Homes England,RI - MONIITORING SURVEYOR FEES,Investment,CAMPBELL REITH,25/05/2021,1320,M,77101500,Environmental auditing
"Ministry of Housing, Communities and Local Government",Homes England,RI - MONIITORING SURVEYOR FEES,Investment,CAMPBELL REITH,27/05/2021,1260,M,77101500,Environmental auditing
"Ministry of Housing, Communities and Local Government",Homes England,RI - MONIITORING SURVEYOR FEES,Investment,CAMPBELL REITH,27/05/2021,1302,M,77101500,Environmental auditing
"Ministry of Housing, Communities and Local Government",Homes England,RI - SITE VALUATION FEES,Investment,CARTER JONAS,06/05/2021,12000,L,80131800,Real estate management services
"Ministry of Housing, Communities and Local Government",Homes England,VALUATION FEES,Development,CARTER JONAS,04/05/2021,233487.6,L,80131800,Real estate management services
"Ministry of Housing, Communities and Local Government",Homes England,VALUATION FEES,Development,CARTER JONAS,12/05/2021,8400,L,80131800,Real estate management services
"Ministry of Housing, Communities and Local Government",Homes England,VALUATION FEES,Development,CARTER JONAS,28/05/2021,1080,L,80131800,Real estate management services
"Ministry of Housing, Communities and Local Government",Homes England,GAS,Development,CORONA ENERGY,13/05/2021,250.19,L,83101600,Oil and gas utilities
"Ministry of Housing, Communities and Local Government",Homes England,GAS,Development,CORONA ENERGY,13/05/2021,606.91,L,83101600,Oil and gas utilities
"Ministry of Housing, Communities and Local Government",Homes England,GAS,Development,CORONA ENERGY,13/05/2021,405.91,L,83101600,Oil and gas utilities
"Ministry of Housing, Communities and Local Government",Homes England,GAS,Development,CORONA ENERGY,13/05/2021,984.66,L,83101600,Oil and gas utilities
"Ministry of Housing, Communities and Local Government",Homes England,GAS,Development,CORONA ENERGY,13/05/2021,375.58,L,83101600,Oil and gas utilities
"Ministry of Housing, Communities and Local Government",Homes England,GAS,Development,CORONA ENERGY,13/05/2021,911.07,L,83101600,Oil and gas utilities
"Ministry of Housing, Communities and Local Government",Homes England,GAS,Development,CORONA ENERGY,13/05/2021,1436.95,L,83101600,Oil and gas utilities
"Ministry of Housing, Communities and Local Government",Homes England,GAS,Development,CORONA ENERGY,13/05/2021,360.3,L,83101600,Oil and gas utilities
"Ministry of Housing, Communities and Local Government",Homes England,GAS,Development,CORONA ENERGY,13/05/2021,874.02,L,83101600,Oil and gas utilities
"Ministry of Housing, Communities and Local Government",Homes England,GAS,Development,CORONA ENERGY,13/05/2021,576.52,L,83101600,Oil and gas utilities
"Ministry of Housing, Communities and Local Government",Homes England,GAS,Development,CORONA ENERGY,18/05/2021,622.07,L,83101600,Oil and gas utilities
"Ministry of Housing, Communities and Local Government",Homes England,GAS,Development,CORONA ENERGY,18/05/2021,488.45,L,83101600,Oil and gas utilities
"Ministry of Housing, Communities and Local Government",Homes England,GAS,Development,CORONA ENERGY,21/05/2021,415.35,L,83101600,Oil and gas utilities
"Ministry of Housing, Communities and Local Government",Homes England,GAS,Development,CORONA ENERGY,27/05/2021,1228.76,L,83101600,Oil and gas utilities
"Ministry of Housing, Communities and Local Government",Homes England,GAS,Development,CORONA ENERGY,27/05/2021,1081.62,L,83101600,Oil and gas utilities
"Ministry of Housing, Communities and Local Government",Homes England,COMMUNIC LICENCES,Executive Office,THE COPYRIGHT LICENSING AGENCY,19/05/2021,16854.58,L,93151517,License or registration fee�
"Ministry of Housing, Communities and Local Government",Homes England,ESTATE GENERAL MAINTENANCE,Development,C A STAMP GROUNDS & AGRICULTURE,13/05/2021,492,S,72153501,Building exterior cleaning service  
"Ministry of Housing, Communities and Local Government",Homes England,ST FUND LOANS ADDITIONS,Investment,CREATE DEVELOPMENTS (LONGRIDGE) LTD,11/05/2021,365712,L,,Loans
"Ministry of Housing, Communities and Local Government",Homes England,DATA CENTRE,Corporate Resources,CROWN HOSTING DATA CENTRES LIMITED,19/05/2021,1860,L,81112100,Internet services
"Ministry of Housing, Communities and Local Government",Homes England,DATA CENTRE,Corporate Resources,CROWN HOSTING DATA CENTRES LIMITED,19/05/2021,2717.61,L,81112100,Internet services
"Ministry of Housing, Communities and Local Government",Homes England,DATA CENTRE,Corporate Resources,CROWN HOSTING DATA CENTRES LIMITED,19/05/2021,1222.92,L,81112100,Internet services
"Ministry of Housing, Communities and Local Government",Homes England,L&OD STRATEGIC - HR USE ONLY,Corporate Resources,COACHING CULTURE LTD.,12/05/2021,5940,S,86101800,In service training and manpower development
"Ministry of Housing, Communities and Local Government",Homes England,ST FUND LOANS ADDITIONS,Investment,CAMPBELL HOMES DEVELOPMENTS LIMITED,20/05/2021,103066,L,,Loans
"Ministry of Housing, Communities and Local Government",Homes England,ST FUND LOANS ADDITIONS,Investment,C&M CONTRACTORS (MANCHESTER) LTD,11/05/2021,160416.7,S,,Loans
"Ministry of Housing, Communities and Local Government",Homes England,ST FUND LOANS ADDITIONS,Investment,CLL (HOLLINS LANE) LTD,18/05/2021,80428.2,L,,Loans
"Ministry of Housing, Communities and Local Government",Homes England,LAND REMEDIATION,Development,CAMBRIDGE ARCHAEOLOGY UNIT,11/05/2021,22311,L,80131800,Real estate management services
"Ministry of Housing, Communities and Local Government",Homes England,SECURITY,Development,COAST 2 COAST SECURITY LTD,13/05/2021,9230.18,M,92121500,Guard services
"Ministry of Housing, Communities and Local Government",Homes England,SECURITY,Development,COAST 2 COAST SECURITY LTD,14/05/2021,9232.58,M,92121500,Guard services
"Ministry of Housing, Communities and Local Government",Homes England,PROF FEES LOANS CAPITALISED,Investment,COLLIERS INTERNATIONAL PROPERTY CONSULTANTS,05/05/2021,810,S,80131800,Real estate management services
"Ministry of Housing, Communities and Local Government",Homes England,PROF FEES LOANS CAPITALISED,Investment,COLLIERS INTERNATIONAL PROPERTY CONSULTANTS,13/05/2021,1980,S,80131800,Real estate management services
"Ministry of Housing, Communities and Local Government",Homes England,PROF FEES LOANS CAPITALISED,Investment,COLLIERS INTERNATIONAL PROPERTY CONSULTANTS,14/05/2021,6300,S,80131800,Real estate management services
"Ministry of Housing, Communities and Local Government",Homes England,RI - MONIITORING SURVEYOR FEES,Investment,COLLIERS INTERNATIONAL PROPERTY CONSULTANTS,05/05/2021,810,S,80131800,Real estate management services
"Ministry of Housing, Communities and Local Government",Homes England,RI - MONIITORING SURVEYOR FEES,Investment,COLLIERS INTERNATIONAL PROPERTY CONSULTANTS,05/05/2021,810,S,80131800,Real estate management services
"Ministry of Housing, Communities and Local Government",Homes England,RI - MONIITORING SURVEYOR FEES,Investment,COLLIERS INTERNATIONAL PROPERTY CONSULTANTS,05/05/2021,900,S,80131800,Real estate management services
"Ministry of Housing, Communities and Local Government",Homes England,RI - MONIITORING SURVEYOR FEES,Investment,COLLIERS INTERNATIONAL PROPERTY CONSULTANTS,28/05/2021,810,S,80131800,Real estate management services
"Ministry of Housing, Communities and Local Government",Homes England,RI - MONIITORING SURVEYOR FEES,Development,COLLIERS INTERNATIONAL PROPERTY CONSULTANTS,28/05/2021,900,S,80131800,Real estate management services
"Ministry of Housing, Communities and Local Government",Homes England,LAND REMEDIATION,Development,COGNITION LAND & WATER,18/05/2021,205940.59,S,72141500,Land preparation services
"Ministry of Housing, Communities and Local Government",Homes England,LEGAL FEES (PROGRAMME - RDEL),Development,CLARKE WILLMOTT LLP,07/05/2021,500.4,M,80121600,Business law services
"Ministry of Housing, Communities and Local Government",Homes England,LEGAL FEES (PROGRAMME - RDEL),Development,CLARKE WILLMOTT LLP,07/05/2021,500.4,M,80121600,Business law services
"Ministry of Housing, Communities and Local Government",Homes England,LEGAL FEES (PROGRAMME - RDEL),Development,CLARKE WILLMOTT LLP,07/05/2021,500.4,M,80121600,Business law services
"Ministry of Housing, Communities and Local Government",Homes England,LEGAL FEES (PROGRAMME - RDEL),MPP,CLARKE WILLMOTT LLP,14/05/2021,2402.4,M,80121600,Business law services
"Ministry of Housing, Communities and Local Government",Homes England,LEGAL FEES (PROGRAMME - RDEL),Investment,CLARKE WILLMOTT LLP,17/05/2021,480,M,80121600,Business law services
"Ministry of Housing, Communities and Local Government",Homes England,LEGAL FEES (PROGRAMME - RDEL),Investment,CLARKE WILLMOTT LLP,21/05/2021,840,M,80121600,Business law services
"Ministry of Housing, Communities and Local Government",Homes England,CLEANING,Development,CHURCHILL CONTRACT SERVICES LTD,11/05/2021,4253.89,S,76111504,Window or window blind cleaning services
"Ministry of Housing, Communities and Local Government",Homes England,BUILDINGS-VACANT RATES,MPP,CENTRAL BEDFORDSHIRE COUNCIL,19/05/2021,4033.83,G,80131500,Lease and rental of property or building
"Ministry of Housing, Communities and Local Government",Homes England,CAP GRNTS TO LOCAL AUTHORITIES,Investment,CENTRAL BEDFORDSHIRE COUNCIL,12/05/2021,274545,G,,Grants
"Ministry of Housing, Communities and Local Government",Homes England,ST FUND LOANS ADDITIONS,Investment,CITADEL HOMES LS LIMITED,21/05/2021,228644,L,,Loans
"Ministry of Housing, Communities and Local Government",Homes England,ESTATE GENERAL MAINTENANCE,Development,C.M.A. (NEMESIS) LTD,18/05/2021,369.6,S,72102100,Pest control
"Ministry of Housing, Communities and Local Government",Homes England,MANAGEMENT COSTS,MPP,C.M.A. (NEMESIS) LTD,18/05/2021,858,S,72102100,Pest control
"Ministry of Housing, Communities and Local Government",Homes England,MANAGEMENT COSTS,Development,C.M.A. (NEMESIS) LTD,24/05/2021,390,S,72102100,Pest control
"Ministry of Housing, Communities and Local Government",Homes England,ESTATE GENERAL MAINTENANCE,MPP,FRANK COOPER & SON LIMITED,19/05/2021,286.01,M,76121500,Refuse collection and disposal
"Ministry of Housing, Communities and Local Government",Homes England,SECONDED STAFF COSTS,Corporate Resources,CIVIL SERVICE RESOURCING,04/05/2021,15842.86,G,80111600,Temporary personnel services
"Ministry of Housing, Communities and Local Government",Homes England,SECONDED STAFF COSTS,Corporate Resources,CIVIL SERVICE RESOURCING,26/05/2021,15842.86,G,80111600,Temporary personnel services
"Ministry of Housing, Communities and Local Government",Homes England,GLOBAL ON-LINE EXPENSES,Corporate Resources,CONCUR HOLDINGS (NETHERLANDS) B.V,11/05/2021,17747.88,L,43231500,Business function specific software
"Ministry of Housing, Communities and Local Government",Homes England,ESTATE GENERAL MAINTENANCE,Development,CONCEPT BUILDING SERVICES  (SOUTHERN) LTD,04/05/2021,5198.4,M,72101500,Building maintenance and repair services
"Ministry of Housing, Communities and Local Government",Homes England,ESTATE GENERAL MAINTENANCE,Development,CONCEPT BUILDING SERVICES  (SOUTHERN) LTD,04/05/2021,3150,M,72101500,Building maintenance and repair services
"Ministry of Housing, Communities and Local Government",Homes England,MISC PROFESSIONAL FEES,MPP,CACI LIMITED,07/05/2021,43878,L,43231500,Business function specific software
"Ministry of Housing, Communities and Local Government",Homes England,EXTERNAL BUILDING MAINTENANCE,MPP,C-ELECT ASSOCIATES LIMITED,14/05/2021,438,S,72101500,Building maintenance and repair services
"Ministry of Housing, Communities and Local Government",Homes England,ENGINEERING FEES,Development,CENTRAL & COUNTY (WHITCHURCH) LIMITED,19/05/2021,2763.36,L,80121600,Business law services
"Ministry of Housing, Communities and Local Government",Homes England,EXTERNAL BUILDING MAINTENANCE,Development,PETER COX LTD,10/05/2021,31455.6,M,81151604,Land surveying
"Ministry of Housing, Communities and Local Government",Homes England,ST FUND LOANS ADDITIONS,Investment,CHERRY TREE DEVELOPMENTS LTD,04/05/2021,24269,S,,Loans
"Ministry of Housing, Communities and Local Government",Homes England,MISC PROFESSIONAL FEES,Investment,CB RICHARD ELLIS,24/05/2021,38400,L,80131800,Real estate management services
"Ministry of Housing, Communities and Local Government",Homes England,RI - MONIITORING SURVEYOR FEES,Investment,CB RICHARD ELLIS,04/05/2021,1980,L,80131800,Real estate management services
"Ministry of Housing, Communities and Local Government",Homes England,RI - MONIITORING SURVEYOR FEES,Investment,CB RICHARD ELLIS,28/05/2021,5880,L,80131800,Real estate management services
"Ministry of Housing, Communities and Local Government",Homes England,RI - MONIITORING SURVEYOR FEES,Investment,CB RICHARD ELLIS,28/05/2021,5880,L,80131800,Real estate management services
"Ministry of Housing, Communities and Local Government",Homes England,RI - SITE VALUATION FEES,Investment,CB RICHARD ELLIS,26/05/2021,6000,L,80131800,Real estate management services
"Ministry of Housing, Communities and Local Government",Homes England,ST FUND LOANS ADDITIONS,Investment,CAUTLEY PROPERTIES LIMITED,28/05/2021,90617,S,,Loans
"Ministry of Housing, Communities and Local Government",Homes England,SERVICE CHARGE,Development,COLLIERS INTERNATIONAL,14/05/2021,487.38,L,80131500,Lease and rental of property or building
"Ministry of Housing, Communities and Local Government",Homes England,SERVICE CHARGE,Development,COLLIERS INTERNATIONAL,14/05/2021,938.75,L,80131500,Lease and rental of property or building
"Ministry of Housing, Communities and Local Government",Homes England,SERVICE CHARGE,Development,COLLIERS INTERNATIONAL,14/05/2021,1037.5,L,80131500,Lease and rental of property or building
"Ministry of Housing, Communities and Local Government",Homes England,SERVICE CHARGE,Development,COLLIERS INTERNATIONAL,14/05/2021,2029.75,L,80131500,Lease and rental of property or building
"Ministry of Housing, Communities and Local Government",Homes England,ST FUND LOANS ADDITIONS,Investment,CLEANSLATE (HURSTBOURNE PRIORS) LTD,25/05/2021,355309.85,L,,Loans
"Ministry of Housing, Communities and Local Government",Homes England,ST FUND LOANS ADDITIONS,Development,CHARDALE COUNTRY HOMES LIMITED,13/05/2021,221582.56,S,,Loans
"Ministry of Housing, Communities and Local Government",Homes England,ESTATE GENERAL MAINTENANCE,Development,CGM GROUP LTD,21/05/2021,7500,M,72101500,Building maintenance and repair services
"Ministry of Housing, Communities and Local Government",Homes England,ESTATE GENERAL MAINTENANCE,Development,CGM GROUP LTD,21/05/2021,883.86,M,72101500,Building maintenance and repair services
"Ministry of Housing, Communities and Local Government",Homes England,FENCE MAINTENANCE,Development,CGM GROUP LTD,25/05/2021,1798.85,M,72101500,Building maintenance and repair services
"Ministry of Housing, Communities and Local Government",Homes England,LT FUND LOANS (PS) ADDITIONS,Investment,CAMLAND HYTHE LIMITED,21/05/2021,45047.72,L,,Loans
"Ministry of Housing, Communities and Local Government",Homes England,CAP GRNTS TO PRIVATE SECTOR,MPP,COUNTRYSIDE MARITIME LIMITED,27/05/2021,400000,M,,Grants
"Ministry of Housing, Communities and Local Government",Homes England,ST FUND LOANS ADDITIONS,Investment,CBH DEVELOPMENTS LTD,18/05/2021,104300,S,,Loans
"Ministry of Housing, Communities and Local Government",Homes England,DRAINS & SEWERS,Development,CHANNEL ENGINEERING LTD,21/05/2021,540,S,72101500,Building maintenance and repair services
"Ministry of Housing, Communities and Local Government",Homes England,EXTERNAL BUILDING MAINTENANCE,MPP,CHANNEL ENGINEERING LTD,20/05/2021,270,S,72101500,Building maintenance and repair services
"Ministry of Housing, Communities and Local Government",Homes England,FENCE MAINTENANCE,MPP,CHANNEL ENGINEERING LTD,04/05/2021,270,S,72101500,Building maintenance and repair services
"Ministry of Housing, Communities and Local Government",Homes England,FENCE MAINTENANCE,MPP,CHANNEL ENGINEERING LTD,06/05/2021,540,S,72101500,Building maintenance and repair services
"Ministry of Housing, Communities and Local Government",Homes England,FENCE MAINTENANCE,MPP,CHANNEL ENGINEERING LTD,07/05/2021,270,S,72101500,Building maintenance and repair services
"Ministry of Housing, Communities and Local Government",Homes England,MANAGEMENT COSTS,Development,CHANNEL ENGINEERING LTD,04/05/2021,327.6,S,72101500,Building maintenance and repair services
"Ministry of Housing, Communities and Local Government",Homes England,ROADS AND CAR PARKS,Development,CHANNEL ENGINEERING LTD,21/05/2021,270,S,72101500,Building maintenance and repair services
"Ministry of Housing, Communities and Local Government",Homes England,SECURITY,Development,CAM-TEC SYSTEMS LIMITED,06/05/2021,450,S,72102900,Facility maintenance and repair services
"Ministry of Housing, Communities and Local Government",Homes England,PROMOTIONAL EVENTS,Executive Office,COMPOSURE MEDIA,28/05/2021,1800,S,86101800,In service training and manpower development
"Ministry of Housing, Communities and Local Government",Homes England,ESTATE GENERAL MAINTENANCE,Development,ENGIE FM LIMITED,24/05/2021,1087.67,L,72102900,Facility maintenance and repair services
"Ministry of Housing, Communities and Local Government",Homes England,FURNITURE & EQUIPMENT-MAINT,Development,ENGIE FM LIMITED,24/05/2021,667.92,L,72102900,Facility maintenance and repair services
"Ministry of Housing, Communities and Local Government",Homes England,PLANNED PREVENTATIVE MAINT CON,Development,ENGIE FM LIMITED,21/05/2021,2140.63,L,72102900,Facility maintenance and repair services
"Ministry of Housing, Communities and Local Government",Homes England,PLANNED PREVENTATIVE MAINT CON,Development,ENGIE FM LIMITED,26/05/2021,3601.92,L,72102900,Facility maintenance and repair services
"Ministry of Housing, Communities and Local Government",Homes England,STAFF WELFARE,Development,ENGIE FM LIMITED,14/05/2021,1870.6,L,72102900,Facility maintenance and repair services
"Ministry of Housing, Communities and Local Government",Homes England,DATA CENTRE,Corporate Resources,VODAFONE LIMITED,20/05/2021,5183.72,L,81112000,Data services
"Ministry of Housing, Communities and Local Government",Homes England,LEGAL FEES (ADMIN ONLY),Service Design And Transformation,MILLS & REEVE,18/05/2021,23474.4,L,80121600,Business law services
"Ministry of Housing, Communities and Local Government",Homes England,DATA CENTRE,Corporate Resources,OASIS UK NORTH LIMITED,13/05/2021,299.41,L,81111200,Data services
"Ministry of Housing, Communities and Local Government",Homes England,MISC PROFESSIONAL FEES,Corporate Resources,DELOITTE & TOUCHE,06/05/2021,47961.6,L,84111700,Corporate Finance
"Ministry of Housing, Communities and Local Government",Homes England,MISC PROFESSIONAL FEES,Corporate Resources,DELOITTE & TOUCHE,12/05/2021,41172,L,84111700,Corporate Finance
"Ministry of Housing, Communities and Local Government",Homes England,BUILDINGS-DILAPIDATIONS,Development,CUSHMAN & WAKEFIELD DEBENHAM TIE LEUNG,13/05/2021,720,L,80131800,Real estate management services
"Ministry of Housing, Communities and Local Government",Homes England,BUILDINGS-DILAPIDATIONS,Development,CUSHMAN & WAKEFIELD DEBENHAM TIE LEUNG,13/05/2021,660,L,80131800,Real estate management services
"Ministry of Housing, Communities and Local Government",Homes England,MISC PROFESSIONAL FEES,Investment,CUSHMAN & WAKEFIELD DEBENHAM TIE LEUNG,04/05/2021,19816.8,L,80131800,Real estate management services
"Ministry of Housing, Communities and Local Government",Homes England,MISC PROFESSIONAL FEES,Investment,CUSHMAN & WAKEFIELD DEBENHAM TIE LEUNG,20/05/2021,4674.84,L,80131800,Real estate management services
"Ministry of Housing, Communities and Local Government",Homes England,PROF FEES LOANS CAPITALISED,Investment,CUSHMAN & WAKEFIELD DEBENHAM TIE LEUNG,07/05/2021,900,L,80131800,Real estate management services
"Ministry of Housing, Communities and Local Government",Homes England,PROPERTY SERVICES,MPP,CUSHMAN & WAKEFIELD DEBENHAM TIE LEUNG,06/05/2021,3420,L,80131800,Real estate management services
"Ministry of Housing, Communities and Local Government",Homes England,PROPERTY SERVICES,Development,CUSHMAN & WAKEFIELD DEBENHAM TIE LEUNG,06/05/2021,1704,L,80131800,Real estate management services
"Ministry of Housing, Communities and Local Government",Homes England,PROPERTY SERVICES,MPP,CUSHMAN & WAKEFIELD DEBENHAM TIE LEUNG,17/05/2021,1690.8,L,80131800,Real estate management services
"Ministry of Housing, Communities and Local Government",Homes England,RI - MONIITORING SURVEYOR FEES,Investment,CUSHMAN & WAKEFIELD DEBENHAM TIE LEUNG,04/05/2021,840,L,80131800,Real estate management services
"Ministry of Housing, Communities and Local Government",Homes England,RI - MONIITORING SURVEYOR FEES,Investment,CUSHMAN & WAKEFIELD DEBENHAM TIE LEUNG,05/05/2021,840,L,80131800,Real estate management services
"Ministry of Housing, Communities and Local Government",Homes England,RI - MONIITORING SURVEYOR FEES,Investment,CUSHMAN & WAKEFIELD DEBENHAM TIE LEUNG,05/05/2021,900,L,80131800,Real estate management services
"Ministry of Housing, Communities and Local Government",Homes England,RI - MONIITORING SURVEYOR FEES,Investment,CUSHMAN & WAKEFIELD DEBENHAM TIE LEUNG,05/05/2021,840,L,80131800,Real estate management services
"Ministry of Housing, Communities and Local Government",Homes England,RI - MONIITORING SURVEYOR FEES,Investment,CUSHMAN & WAKEFIELD DEBENHAM TIE LEUNG,05/05/2021,900,L,80131800,Real estate management services
"Ministry of Housing, Communities and Local Government",Homes England,RI - MONIITORING SURVEYOR FEES,Investment,CUSHMAN & WAKEFIELD DEBENHAM TIE LEUNG,05/05/2021,840,L,80131800,Real estate management services
"Ministry of Housing, Communities and Local Government",Homes England,RI - MONIITORING SURVEYOR FEES,Investment,CUSHMAN & WAKEFIELD DEBENHAM TIE LEUNG,05/05/2021,840,L,80131800,Real estate management services
"Ministry of Housing, Communities and Local Government",Homes England,RI - MONIITORING SURVEYOR FEES,Investment,CUSHMAN & WAKEFIELD DEBENHAM TIE LEUNG,05/05/2021,840,L,80131800,Real estate management services
"Ministry of Housing, Communities and Local Government",Homes England,RI - MONIITORING SURVEYOR FEES,Investment,CUSHMAN & WAKEFIELD DEBENHAM TIE LEUNG,05/05/2021,840,L,80131800,Real estate management services
"Ministry of Housing, Communities and Local Government",Homes England,RI - MONIITORING SURVEYOR FEES,Investment,CUSHMAN & WAKEFIELD DEBENHAM TIE LEUNG,07/05/2021,840,L,80131800,Real estate management services
"Ministry of Housing, Communities and Local Government",Homes England,RI - MONIITORING SURVEYOR FEES,Investment,CUSHMAN & WAKEFIELD DEBENHAM TIE LEUNG,07/05/2021,1020,L,80131800,Real estate management services
"Ministry of Housing, Communities and Local Government",Homes England,RI - MONIITORING SURVEYOR FEES,Investment,CUSHMAN & WAKEFIELD DEBENHAM TIE LEUNG,10/05/2021,1056,L,80131800,Real estate management services
"Ministry of Housing, Communities and Local Government",Homes England,RI - MONIITORING SURVEYOR FEES,Investment,CUSHMAN & WAKEFIELD DEBENHAM TIE LEUNG,10/05/2021,900,L,80131800,Real estate management services
"Ministry of Housing, Communities and Local Government",Homes England,RI - MONIITORING SURVEYOR FEES,Investment,CUSHMAN & WAKEFIELD DEBENHAM TIE LEUNG,12/05/2021,840,L,80131800,Real estate management services
"Ministry of Housing, Communities and Local Government",Homes England,RI - MONIITORING SURVEYOR FEES,Investment,CUSHMAN & WAKEFIELD DEBENHAM TIE LEUNG,26/05/2021,840,L,80131800,Real estate management services
"Ministry of Housing, Communities and Local Government",Homes England,RI - SITE VALUATION FEES,Investment,CUSHMAN & WAKEFIELD DEBENHAM TIE LEUNG,26/05/2021,18000,L,80131800,Real estate management services
"Ministry of Housing, Communities and Local Government",Homes England,OTHER PROFESSIONAL FEES,Development,DESIGN FOR HOMES,18/05/2021,2448,M,86101800,In service training and manpower development
"Ministry of Housing, Communities and Local Government",Homes England,TRAINING COURSES & CONFERENCES,Development,DESIGN FOR HOMES,17/05/2021,9000,M,86101800,In service training and manpower development
"Ministry of Housing, Communities and Local Government",Homes England,RENT PAYABLE,Development,DERBY CITY COUNCIL,07/05/2021,3450,G,80131500,Lease and rental of property or building
"Ministry of Housing, Communities and Local Government",Homes England,RENT PAYABLE,Development,DERBY CITY COUNCIL,07/05/2021,975,G,80131500,Lease and rental of property or building
"Ministry of Housing, Communities and Local Government",Homes England,RENT PAYABLE,Development,DERBY CITY COUNCIL,07/05/2021,930,G,80131500,Lease and rental of property or building
"Ministry of Housing, Communities and Local Government",Homes England,TRAINING COURSES & CONFERENCES,Development,DNA COACH,21/05/2021,14605,S,86101800,In service training and manpower development
"Ministry of Housing, Communities and Local Government",Homes England,DISPOSAL FEES - LEGAL,Development,DWF LLP,26/05/2021,641.04,L,80121600,Business law services
"Ministry of Housing, Communities and Local Government",Homes England,DISPOSAL FEES - LEGAL,MPP,DWF LLP,27/05/2021,1814.4,L,80121600,Business law services
"Ministry of Housing, Communities and Local Government",Homes England,LEGAL FEES (PROGRAMME - CDEL),MPP,DWF LLP,17/05/2021,11200,L,80121600,Business law services
"Ministry of Housing, Communities and Local Government",Homes England,LEGAL FEES (PROGRAMME - CDEL),MPP,DWF LLP,25/05/2021,3304.92,L,80121600,Business law services
"Ministry of Housing, Communities and Local Government",Homes England,LEGAL FEES (PROGRAMME - CDEL),MPP,DWF LLP,26/05/2021,3307.74,L,80121600,Business law services
"Ministry of Housing, Communities and Local Government",Homes England,LEGAL FEES (PROGRAMME - RDEL),MPP,DWF LLP,17/05/2021,1200,L,80121600,Business law services
"Ministry of Housing, Communities and Local Government",Homes England,LEGAL FEES (PROGRAMME - RDEL),MPP,DWF LLP,21/05/2021,775.2,L,80121600,Business law services
"Ministry of Housing, Communities and Local Government",Homes England,LEGAL FEES (PROGRAMME - RDEL),MPP,DWF LLP,26/05/2021,576.6,L,80121600,Business law services
"Ministry of Housing, Communities and Local Government",Homes England,LEGAL FEES (PROGRAMME - RDEL),MPP,DWF LLP,27/05/2021,3973.8,L,80121600,Business law services
"Ministry of Housing, Communities and Local Government",Homes England,PROF FEES LOANS CAPITALISED,Investment,DWF LLP,27/05/2021,2400,L,80121600,Business law services
"Ministry of Housing, Communities and Local Government",Homes England,ST FUND LOANS ADDITIONS,Investment,80 DOVECOTE ROAD LTD,12/05/2021,169365,L,,Loans
"Ministry of Housing, Communities and Local Government",Homes England,ST FUND LOANS ADDITIONS,Investment,DURLEY ROAD DEVELOPMENTS LLP,14/05/2021,56200,S,,Loans
"Ministry of Housing, Communities and Local Government",Homes England,BUILDINGS-VACANT RATES,Development,DERBY CITY COUNCIL,28/05/2021,20608,G,80131500,Lease and rental of property or building
"Ministry of Housing, Communities and Local Government",Homes England,BUILDINGS-VACANT RATES,Development,DERBY CITY COUNCIL,28/05/2021,2470.05,G,80131500,Lease and rental of property or building
"Ministry of Housing, Communities and Local Government",Homes England,BUILDINGS-VACANT RATES,Development,DERBY CITY COUNCIL,28/05/2021,2320.35,G,80131500,Lease and rental of property or building
"Ministry of Housing, Communities and Local Government",Homes England,BUILDINGS-VACANT RATES,Development,DERBY CITY COUNCIL,28/05/2021,2270.45,G,80131500,Lease and rental of property or building
"Ministry of Housing, Communities and Local Government",Homes England,BUILDINGS-VACANT RATES,Development,DERBY CITY COUNCIL,28/05/2021,5114.75,G,80131500,Lease and rental of property or building
"Ministry of Housing, Communities and Local Government",Homes England,BUILDINGS-VACANT RATES,Development,DERBY CITY COUNCIL,28/05/2021,18712.5,G,80131500,Lease and rental of property or building
"Ministry of Housing, Communities and Local Government",Homes England,TAXIS,Development,DEAN TAXI LIMITED,05/05/2021,998.8,S,78111800,Passenger road transportation
"Ministry of Housing, Communities and Local Government",Homes England,CONTRACT WORKS,Development,DCS ENVIRONMENTAL LTD,19/05/2021,12794.87,S,72102900,Building maintenance and repair services
"Ministry of Housing, Communities and Local Government",Homes England,BESPOKE DEVELOPMENT SUPPORT,Corporate Resources,THE DIGITAL ACCESSIBILITY CENTRE,11/05/2021,8100,M,73231500,Business function specific software
"Ministry of Housing, Communities and Local Government",Homes England,BESPOKE DEVELOPMENT SUPPORT,Corporate Resources,THE DIGITAL ACCESSIBILITY CENTRE,26/05/2021,14580,M,86101800,In service training and manpower development
"Ministry of Housing, Communities and Local Government",Homes England,ESTATE GENERAL MAINTENANCE,Development,THE WATT GROUP (NORTH EAST) LTD,17/05/2021,1278,S,72101500,Building maintenance and repair services
"Ministry of Housing, Communities and Local Government",Homes England,CAP GRNTS TO LOCAL AUTHORITIES,Investment,DERBY CITY COUNCIL,25/05/2021,637120.91,G,,Grants
"Ministry of Housing, Communities and Local Government",Homes England,NETWORKS,Corporate Resources,DAISY CORPORATE SERVICES TRADING LIMITED,19/05/2021,8249.7,L,81112105,World wide web WWW site operation host services�
"Ministry of Housing, Communities and Local Government",Homes England,MISC PROFESSIONAL FEES,Service Design And Transformation,DXW,07/05/2021,19950,M,80101500,Business and corporate management consultation services 
"Ministry of Housing, Communities and Local Government",Homes England,MISC PROFESSIONAL FEES,Service Design And Transformation,DXW,19/05/2021,41610,M,80101500,Business and corporate management consultation services 
"Ministry of Housing, Communities and Local Government",Homes England,MISC PROFESSIONAL FEES,Service Design And Transformation,DXW,19/05/2021,33060,M,80101500,Business and corporate management consultation services 
"Ministry of Housing, Communities and Local Government",Homes England,MISC PROFESSIONAL FEES,Service Design And Transformation,DXW,19/05/2021,16530,M,80101500,Business and corporate management consultation services 
"Ministry of Housing, Communities and Local Government",Homes England,DISPOSAL FEES - LEGAL,Development,DWF LAW LLP,27/05/2021,960,L,80121600,Business law services
"Ministry of Housing, Communities and Local Government",Homes England,LEGAL FEES (ADMIN ONLY),Corporate Resources,DWF LAW LLP,04/05/2021,600,L,80121600,Business law services
"Ministry of Housing, Communities and Local Government",Homes England,LEGAL FEES (PROGRAMME - CDEL),Development,DWF LAW LLP,05/05/2021,2692.8,L,80121600,Business law services
"Ministry of Housing, Communities and Local Government",Homes England,LEGAL FEES (PROGRAMME - CDEL),Development,DWF LAW LLP,05/05/2021,4018.8,L,80121600,Business law services
"Ministry of Housing, Communities and Local Government",Homes England,LEGAL FEES (PROGRAMME - CDEL),MPP,DWF LAW LLP,13/05/2021,604.56,L,80121600,Business law services
"Ministry of Housing, Communities and Local Government",Homes England,LEGAL FEES (PROGRAMME - RDEL),MPP,DWF LAW LLP,05/05/2021,901.8,L,80121600,Business law services
"Ministry of Housing, Communities and Local Government",Homes England,LEGAL FEES (PROGRAMME - RDEL),Development,DWF LAW LLP,07/05/2021,734.4,L,80121600,Business law services
"Ministry of Housing, Communities and Local Government",Homes England,LEGAL FEES (PROGRAMME - RDEL),MPP,DWF LAW LLP,19/05/2021,540,L,80121600,Business law services
"Ministry of Housing, Communities and Local Government",Homes England,LEGAL FEES (PROGRAMME - RDEL),MPP,DWF LAW LLP,24/05/2021,13800,L,80121600,Business law services
"Ministry of Housing, Communities and Local Government",Homes England,LEGAL FEES (PROGRAMME - RDEL),Development,DWF LAW LLP,24/05/2021,912,L,80121600,Business law services
"Ministry of Housing, Communities and Local Government",Homes England,LEGAL FEES (PROGRAMME - RDEL),MPP,DWF LAW LLP,27/05/2021,502.2,L,80121600,Business law services
"Ministry of Housing, Communities and Local Government",Homes England,LEGAL FEES (PROGRAMME - RDEL),MPP,DWF LAW LLP,28/05/2021,968.14,L,80121600,Business law services
"Ministry of Housing, Communities and Local Government",Homes England,LEGAL FEES (PROGRAMME - RDEL),Development,DWF LAW LLP,28/05/2021,1500,L,80121600,Business law services
"Ministry of Housing, Communities and Local Government",Homes England,PROF FEES LOANS CAPITALISED,Investment,DWF LAW LLP,12/05/2021,9108,L,80121600,Business law services
"Ministry of Housing, Communities and Local Government",Homes England,PROF FEES LOANS CAPITALISED,Investment,DWF LAW LLP,12/05/2021,18351.6,L,80121600,Business law services
"Ministry of Housing, Communities and Local Government",Homes England,PROF FEES LOANS CAPITALISED,Investment,DWF LAW LLP,18/05/2021,15544.8,L,80121600,Business law services
"Ministry of Housing, Communities and Local Government",Homes England,LEGAL FEES (ADMIN ONLY),Service Design And Transformation,DENTONS UK & MIDDLES EAT LLP,11/05/2021,18045.96,L,80121600,Business law services
"Ministry of Housing, Communities and Local Government",Homes England,LEGAL FEES (PROGRAMME - RDEL),Investment,DENTONS UK & MIDDLES EAT LLP,11/05/2021,24568.8,L,80121600,Business law services
"Ministry of Housing, Communities and Local Government",Homes England,CONTRACT WORKS,MPP,WOOD ENVIRONMENT & INFRASTRUCTURE SOLUTIONS,28/05/2021,545.4,L,80131800,Real estate management services
"Ministry of Housing, Communities and Local Government",Homes England,MISC PROFESSIONAL FEES,Development,WOOD ENVIRONMENT & INFRASTRUCTURE SOLUTIONS,26/05/2021,3450,L,80131800,Real estate management services
"Ministry of Housing, Communities and Local Government",Homes England,PLANNING APPLICATIONS,MPP,WOOD ENVIRONMENT & INFRASTRUCTURE SOLUTIONS,25/05/2021,25200,L,80131800,Real estate management services
"Ministry of Housing, Communities and Local Government",Homes England,PLANNING APPLICATIONS,MPP,WOOD ENVIRONMENT & INFRASTRUCTURE SOLUTIONS,28/05/2021,60912,L,80131800,Real estate management services
"Ministry of Housing, Communities and Local Government",Homes England,PLANNING FEES,MPP,WOOD ENVIRONMENT & INFRASTRUCTURE SOLUTIONS,12/05/2021,1800,L,80131800,Real estate management services
"Ministry of Housing, Communities and Local Government",Homes England,PLANNING FEES,Development,WOOD ENVIRONMENT & INFRASTRUCTURE SOLUTIONS,20/05/2021,32400,L,80131800,Real estate management services
"Ministry of Housing, Communities and Local Government",Homes England,PROPERTY SERVICES,MPP,WOOD ENVIRONMENT & INFRASTRUCTURE SOLUTIONS,11/05/2021,300,L,80131800,Real estate management services
"Ministry of Housing, Communities and Local Government",Homes England,PROPERTY SERVICES,MPP,WOOD ENVIRONMENT & INFRASTRUCTURE SOLUTIONS,11/05/2021,1568.04,L,80131800,Real estate management services
"Ministry of Housing, Communities and Local Government",Homes England,PROPERTY SERVICES,MPP,WOOD ENVIRONMENT & INFRASTRUCTURE SOLUTIONS,11/05/2021,6484.2,L,80131800,Real estate management services
"Ministry of Housing, Communities and Local Government",Homes England,PROPERTY SERVICES,MPP,WOOD ENVIRONMENT & INFRASTRUCTURE SOLUTIONS,11/05/2021,666.6,L,80131800,Real estate management services
"Ministry of Housing, Communities and Local Government",Homes England,PROPERTY SERVICES,MPP,WOOD ENVIRONMENT & INFRASTRUCTURE SOLUTIONS,11/05/2021,897.72,L,80131800,Real estate management services
"Ministry of Housing, Communities and Local Government",Homes England,PROPERTY SERVICES,MPP,WOOD ENVIRONMENT & INFRASTRUCTURE SOLUTIONS,11/05/2021,769.62,L,80131800,Real estate management services
"Ministry of Housing, Communities and Local Government",Homes England,PROPERTY SERVICES,MPP,WOOD ENVIRONMENT & INFRASTRUCTURE SOLUTIONS,28/05/2021,2628.77,L,80131800,Real estate management services
"Ministry of Housing, Communities and Local Government",Homes England,PROPERTY SERVICES,MPP,WOOD ENVIRONMENT & INFRASTRUCTURE SOLUTIONS,28/05/2021,3436.02,L,80131800,Real estate management services
"Ministry of Housing, Communities and Local Government",Homes England,PROPERTY SERVICES,MPP,WOOD ENVIRONMENT & INFRASTRUCTURE SOLUTIONS,28/05/2021,727.2,L,80131800,Real estate management services
"Ministry of Housing, Communities and Local Government",Homes England,PROPERTY SERVICES,MPP,WOOD ENVIRONMENT & INFRASTRUCTURE SOLUTIONS,28/05/2021,2463.43,L,80131800,Real estate management services
"Ministry of Housing, Communities and Local Government",Homes England,PROPERTY SERVICES,MPP,WOOD ENVIRONMENT & INFRASTRUCTURE SOLUTIONS,28/05/2021,8585.28,L,80131800,Real estate management services
"Ministry of Housing, Communities and Local Government",Homes England,PROPERTY SERVICES,MPP,WOOD ENVIRONMENT & INFRASTRUCTURE SOLUTIONS,28/05/2021,545.4,L,80131800,Real estate management services
"Ministry of Housing, Communities and Local Government",Homes England,PROPERTY SERVICES,MPP,WOOD ENVIRONMENT & INFRASTRUCTURE SOLUTIONS,28/05/2021,1953.91,L,80131800,Real estate management services
"Ministry of Housing, Communities and Local Government",Homes England,PROPERTY SERVICES,MPP,WOOD ENVIRONMENT & INFRASTRUCTURE SOLUTIONS,28/05/2021,666.6,L,80131800,Real estate management services
"Ministry of Housing, Communities and Local Government",Homes England,PROPERTY SERVICES,MPP,WOOD ENVIRONMENT & INFRASTRUCTURE SOLUTIONS,28/05/2021,943.17,L,80131800,Real estate management services
"Ministry of Housing, Communities and Local Government",Homes England,SUBS TO OTHER BODIES,Corporate Resources,LNRS DATA SERVICES LTD (FORMALLY) REED BUS,18/05/2021,10266,M,86101800,In service training and manpower development
"Ministry of Housing, Communities and Local Government",Homes England,ST FUND LOANS ADDITIONS,Investment,EAST CHALLOWS LLP,18/05/2021,348715,L,,Loans
"Ministry of Housing, Communities and Local Government",Homes England,L&OD STRATEGIC - HR USE ONLY,Corporate Resources,ERNST & YOUNG,06/05/2021,3970.62,L,80131800,Real estate management services
"Ministry of Housing, Communities and Local Government",Homes England,INTERNAL COMMUNICATIONS,Executive Office,E-SEARCH DAC T/A POPPULO,14/05/2021,15800,M,43231500,Business function specific software
"Ministry of Housing, Communities and Local Government",Homes England,L&OD STRATEGIC - HR USE ONLY,Corporate Resources,ELIESHA TRAINING LTD.,28/05/2021,11220,S,86101800,In service training and manpower development
"Ministry of Housing, Communities and Local Government",Homes England,ENGINEERING FEES,Development,EGNIOL CONSULTING LIMITED,19/05/2021,2640,S,81101500,Civil Engineering
"Ministry of Housing, Communities and Local Government",Homes England,REWARD & EXCELLENCE,Corporate Resources,EDENRED (UK GROUP) LTD,06/05/2021,725,L,14111803,Vouchers
"Ministry of Housing, Communities and Local Government",Homes England,VALUATION FEES,Development,ECKERSLEY PROPERTY LIMITED,19/05/2021,3000,S,80121600,Business law services
"Ministry of Housing, Communities and Local Government",Homes England,ST FUND LOANS ADDITIONS,Investment,EDG IRONMONGER LTD,11/05/2021,60981.35,S,,Loans
"Ministry of Housing, Communities and Local Government",Homes England,LEGAL FEES (PROGRAMME - CDEL),Development,EVERSHEDS CLIENT ACCOUNT,04/05/2021,3877.27,L,80121600,Business law services
"Ministry of Housing, Communities and Local Government",Homes England,LEGAL FEES (PROGRAMME - CDEL),Development,EVERSHEDS CLIENT ACCOUNT,19/05/2021,5818.8,L,80121600,Business law services
"Ministry of Housing, Communities and Local Government",Homes England,LEGAL FEES (PROGRAMME - RDEL),Development,EVERSHEDS CLIENT ACCOUNT,06/05/2021,1080,L,80121600,Business law services
"Ministry of Housing, Communities and Local Government",Homes England,PROF FEES LOANS CAPITALISED,Investment,EVERSHEDS CLIENT ACCOUNT,13/05/2021,61044,L,80121600,Business law services
"Ministry of Housing, Communities and Local Government",Homes England,ST FUND LOANS ADDITIONS,Investment,EDEN PROJECTS AND DEVELOPMENTS LTD,07/05/2021,9583.33,S,,Loans
"Ministry of Housing, Communities and Local Government",Homes England,CONTRACT WORKS,Development,ERIC WRIGHT CIVIL ENGINEERING LIMITED,12/05/2021,8341.93,S,81101500,Civil Engineering
"Ministry of Housing, Communities and Local Government",Homes England,ST FUND LOANS ADDITIONS,Investment,ERRIS HOMES (YORKSHIRE) LIMITED,12/05/2021,342111,S,,Loans
"Ministry of Housing, Communities and Local Government",Homes England,ST FUND LOANS ADDITIONS,Investment,ERRIS HOMES (YORKSHIRE) LIMITED,24/05/2021,136991,S,,Loans
"Ministry of Housing, Communities and Local Government",Homes England,CONTRACT INSURANCE,Development,ENVIRONET UK LTD,24/05/2021,18420,S,77101500,Environmental auditing
"Ministry of Housing, Communities and Local Government",Homes England,ST FUND LOANS ADDITIONS,Investment,EVANS MANN COMMERCIAL LTD,18/05/2021,109049,L,,Loans
"Ministry of Housing, Communities and Local Government",Homes England,INVESTMENT IN ASSOC JV ADDITIO,Investment,ECF (GENERAL PARTNER) LTD,26/05/2021,1456700,M,,Grants
"Ministry of Housing, Communities and Local Government",Homes England,MISC PROFESSIONAL FEES,Development,EXPERIAN,06/05/2021,642,L,94101500,Business associations
"Ministry of Housing, Communities and Local Government",Homes England,CAP GRNTS TO LOCAL AUTHORITIES,Investment,EASTLEIGH BOROUGH COUNCIL,27/05/2021,796110.42,G,,Grants
"Ministry of Housing, Communities and Local Government",Homes England,ST FUND LOANS ADDITIONS,Investment,EDWARDS HOMES (ST HELENS) LIMITED,17/05/2021,319038.81,L,,Loans
"Ministry of Housing, Communities and Local Government",Homes England,PROF FEES LOANS CAPITALISED,Investment,EDDISONS COMMERCIAL LIMITED,12/05/2021,3000,M,80131800,Real estate management services
"Ministry of Housing, Communities and Local Government",Homes England,RI - MONIITORING SURVEYOR FEES,Development,EDDISONS COMMERCIAL LIMITED,07/05/2021,840,M,80131800,Real estate management services
"Ministry of Housing, Communities and Local Government",Homes England,RI - MONIITORING SURVEYOR FEES,Investment,EDDISONS COMMERCIAL LIMITED,12/05/2021,900,M,80131800,Real estate management services
"Ministry of Housing, Communities and Local Government",Homes England,RI - MONIITORING SURVEYOR FEES,Investment,EDDISONS COMMERCIAL LIMITED,12/05/2021,900,M,80131800,Real estate management services
"Ministry of Housing, Communities and Local Government",Homes England,RI - MONIITORING SURVEYOR FEES,Investment,EDDISONS COMMERCIAL LIMITED,17/05/2021,834,M,80131800,Real estate management services
"Ministry of Housing, Communities and Local Government",Homes England,RI - MONIITORING SURVEYOR FEES,Development,EDDISONS COMMERCIAL LIMITED,18/05/2021,840,M,80131800,Real estate management services
"Ministry of Housing, Communities and Local Government",Homes England,MASTERPLANNING FEES,Development,EAST HAMPSHIRE DISTRICT COUNCIL,26/05/2021,127811.64,G,80131800,Real estate management services
"Ministry of Housing, Communities and Local Government",Homes England,MASTERPLANNING FEES,Development,EAST HAMPSHIRE DISTRICT COUNCIL,27/05/2021,53947.73,G,80131800,Real estate management services
"Ministry of Housing, Communities and Local Government",Homes England,ENGINEERING CONSULTANTS,Development,AECOM LIMITED,11/05/2021,1896,L,72101500,Building maintenance and repair services
"Ministry of Housing, Communities and Local Government",Homes England,ENVIRONMENTAL ASSESMENT,MPP,AECOM LIMITED,06/05/2021,10246.4,L,72101500,Building maintenance and repair services
"Ministry of Housing, Communities and Local Government",Homes England,MASTERPLANNING FEES,MPP,AECOM LIMITED,27/05/2021,16667.11,L,72101500,Building maintenance and repair services
"Ministry of Housing, Communities and Local Government",Homes England,MASTERPLANNING FEES,MPP,AECOM LIMITED,27/05/2021,7560,L,72101500,Building maintenance and repair services
"Ministry of Housing, Communities and Local Government",Homes England,MISC PROFESSIONAL FEES,MPP,AECOM LIMITED,14/05/2021,5221.97,L,72101500,Building maintenance and repair services
"Ministry of Housing, Communities and Local Government",Homes England,MISC PROFESSIONAL FEES,MPP,AECOM LIMITED,19/05/2021,9953.98,L,72101500,Building maintenance and repair services
"Ministry of Housing, Communities and Local Government",Homes England,MISC PROFESSIONAL FEES,Development,AECOM LIMITED,25/05/2021,2520,L,72101500,Building maintenance and repair services
"Ministry of Housing, Communities and Local Government",Homes England,MISC PROFESSIONAL FEES,MPP,AECOM LIMITED,28/05/2021,1839.6,L,72101500,Building maintenance and repair services
"Ministry of Housing, Communities and Local Government",Homes England,PLANNING APPLICATIONS,MPP,AECOM LIMITED,10/05/2021,11843.83,L,72101500,Building maintenance and repair services
"Ministry of Housing, Communities and Local Government",Homes England,PLANNING APPLICATIONS,MPP,AECOM LIMITED,27/05/2021,1512.89,L,72101500,Building maintenance and repair services
"Ministry of Housing, Communities and Local Government",Homes England,PLANNING APPLICATIONS,MPP,AECOM LIMITED,27/05/2021,4800,L,72101500,Building maintenance and repair services
"Ministry of Housing, Communities and Local Government",Homes England,RI - MONIITORING SURVEYOR FEES,Investment,AECOM LIMITED,07/05/2021,3860.84,L,72101500,Building maintenance and repair services
"Ministry of Housing, Communities and Local Government",Homes England,RI - MONIITORING SURVEYOR FEES,Investment,AECOM LIMITED,12/05/2021,1980,L,72101500,Building maintenance and repair services
"Ministry of Housing, Communities and Local Government",Homes England,RI - MONIITORING SURVEYOR FEES,Investment,AECOM LIMITED,19/05/2021,2301.74,L,72101500,Building maintenance and repair services
"Ministry of Housing, Communities and Local Government",Homes England,RI - MONIITORING SURVEYOR FEES,Investment,AECOM LIMITED,24/05/2021,8175.6,L,72101500,Building maintenance and repair services
"Ministry of Housing, Communities and Local Government",Homes England,ESTATE GENERAL MAINTENANCE,Development,FOXLEYS LTD,26/05/2021,302.28,S,72101500,Building maintenance and repair services
"Ministry of Housing, Communities and Local Government",Homes England,ESTATE GENERAL MAINTENANCE,Development,FOXLEYS LTD,26/05/2021,270,S,72101500,Building maintenance and repair services
"Ministry of Housing, Communities and Local Government",Homes England,ESTATE GENERAL MAINTENANCE,Development,FOXLEYS LTD,26/05/2021,263.9,S,72101500,Building maintenance and repair services
"Ministry of Housing, Communities and Local Government",Homes England,EXTERNAL BUILDING MAINTENANCE,MPP,FOXLEYS LTD,26/05/2021,5292,S,72101500,Building maintenance and repair services
"Ministry of Housing, Communities and Local Government",Homes England,EXTERNAL BUILDING MAINTENANCE,MPP,FOXLEYS LTD,26/05/2021,3357.6,S,72101500,Building maintenance and repair services
"Ministry of Housing, Communities and Local Government",Homes England,PROF FEES LOANS CAPITALISED,Investment,SAVILLS UK LIMITED,19/05/2021,5400,L,80131800,Real estate management services
"Ministry of Housing, Communities and Local Government",Homes England,PROF FEES LOANS CAPITALISED,Investment,SAVILLS UK LIMITED,27/05/2021,4200,L,80131800,Real estate management services
"Ministry of Housing, Communities and Local Government",Homes England,ST FUND LOANS ADDITIONS,Investment,FP (YE CORNER) LIMITED,13/05/2021,200760.74,L,,Loans
"Ministry of Housing, Communities and Local Government",Homes England,LANDSCAPE MAINT-BUILT ESTATE,Development,FASSFERN FORESTRY LIMITED,18/05/2021,7746,S,80131800,Real estate management services
"Ministry of Housing, Communities and Local Government",Homes England,BUILDINGS-WATER,Development,R FOX T/A SOUTHCOAST MAINTENANCE,17/05/2021,670.8,S,72101500,Building maintenance and repair services
"Ministry of Housing, Communities and Local Government",Homes England,DRAINS & SEWERS,Development,R FOX T/A SOUTHCOAST MAINTENANCE,17/05/2021,1440,S,72101500,Building maintenance and repair services
"Ministry of Housing, Communities and Local Government",Homes England,DRAINS & SEWERS,Development,R FOX T/A SOUTHCOAST MAINTENANCE,27/05/2021,9840,S,72101500,Building maintenance and repair services
"Ministry of Housing, Communities and Local Government",Homes England,DRAINS & SEWERS,Development,R FOX T/A SOUTHCOAST MAINTENANCE,28/05/2021,8725.2,S,72101500,Building maintenance and repair services
"Ministry of Housing, Communities and Local Government",Homes England,DRAINS & SEWERS,Development,R FOX T/A SOUTHCOAST MAINTENANCE,28/05/2021,19838.4,S,72101500,Building maintenance and repair services
"Ministry of Housing, Communities and Local Government",Homes England,ESTATE GENERAL MAINTENANCE,Development,R FOX T/A SOUTHCOAST MAINTENANCE,17/05/2021,840,S,72101500,Building maintenance and repair services
"Ministry of Housing, Communities and Local Government",Homes England,ESTATE GENERAL MAINTENANCE,MPP,R FOX T/A SOUTHCOAST MAINTENANCE,24/05/2021,480,S,72101500,Building maintenance and repair services
"Ministry of Housing, Communities and Local Government",Homes England,EXTERNAL BUILDING MAINTENANCE,Development,R FOX T/A SOUTHCOAST MAINTENANCE,17/05/2021,840,S,72101500,Building maintenance and repair services
"Ministry of Housing, Communities and Local Government",Homes England,MANAGEMENT COSTS,Development,R FOX T/A SOUTHCOAST MAINTENANCE,17/05/2021,420,S,72101500,Building maintenance and repair services
"Ministry of Housing, Communities and Local Government",Homes England,MANAGEMENT COSTS,Development,R FOX T/A SOUTHCOAST MAINTENANCE,17/05/2021,734.4,S,72101500,Building maintenance and repair services
"Ministry of Housing, Communities and Local Government",Homes England,MANAGEMENT COSTS,Development,R FOX T/A SOUTHCOAST MAINTENANCE,17/05/2021,756,S,72101500,Building maintenance and repair services
"Ministry of Housing, Communities and Local Government",Homes England,MANAGEMENT COSTS,Development,R FOX T/A SOUTHCOAST MAINTENANCE,17/05/2021,720,S,72101500,Building maintenance and repair services
"Ministry of Housing, Communities and Local Government",Homes England,MANAGEMENT COSTS,Development,R FOX T/A SOUTHCOAST MAINTENANCE,17/05/2021,1200,S,72101500,Building maintenance and repair services
"Ministry of Housing, Communities and Local Government",Homes England,MANAGEMENT COSTS,Development,R FOX T/A SOUTHCOAST MAINTENANCE,24/05/2021,480,S,72101500,Building maintenance and repair services
"Ministry of Housing, Communities and Local Government",Homes England,MANAGEMENT COSTS,Development,R FOX T/A SOUTHCOAST MAINTENANCE,24/05/2021,480,S,72101500,Building maintenance and repair services
"Ministry of Housing, Communities and Local Government",Homes England,MANAGEMENT COSTS,Development,R FOX T/A SOUTHCOAST MAINTENANCE,24/05/2021,480,S,72101500,Building maintenance and repair services
"Ministry of Housing, Communities and Local Government",Homes England,MANAGEMENT COSTS,Development,R FOX T/A SOUTHCOAST MAINTENANCE,27/05/2021,2006.4,S,72101500,Building maintenance and repair services
"Ministry of Housing, Communities and Local Government",Homes England,MANAGEMENT COSTS,Development,R FOX T/A SOUTHCOAST MAINTENANCE,27/05/2021,2937.6,S,72101500,Building maintenance and repair services
"Ministry of Housing, Communities and Local Government",Homes England,MANAGEMENT COSTS,Development,R FOX T/A SOUTHCOAST MAINTENANCE,28/05/2021,5085.6,S,72101500,Building maintenance and repair services
"Ministry of Housing, Communities and Local Government",Homes England,SECURITY,Development,R FOX T/A SOUTHCOAST MAINTENANCE,17/05/2021,304.8,S,72101500,Building maintenance and repair services
"Ministry of Housing, Communities and Local Government",Homes England,SECURITY,Development,R FOX T/A SOUTHCOAST MAINTENANCE,27/05/2021,964.8,S,72101500,Building maintenance and repair services
"Ministry of Housing, Communities and Local Government",Homes England,SECURITY,Development,R FOX T/A SOUTHCOAST MAINTENANCE,27/05/2021,2976,S,72101500,Building maintenance and repair services
"Ministry of Housing, Communities and Local Government",Homes England,LT FUND LOANS (PS) ADDITIONS,Investment,FAIRHAM PASTURES DEVELOPMENT LTD,25/05/2021,992003.9,S,,Loans
"Ministry of Housing, Communities and Local Government",Homes England,SECURITY,Development,FALCON SECURITY,05/05/2021,30520.66,M,92121500,Guard services
"Ministry of Housing, Communities and Local Government",Homes England,SECURITY,Development,FALCON SECURITY,06/05/2021,5745.6,M,92121500,Guard services
"Ministry of Housing, Communities and Local Government",Homes England,SECURITY,Development,FALCON SECURITY,11/05/2021,4928.26,M,92121500,Guard services
"Ministry of Housing, Communities and Local Government",Homes England,SECURITY,Development,FALCON SECURITY,11/05/2021,5488.13,M,92121500,Guard services
"Ministry of Housing, Communities and Local Government",Homes England,SECURITY,Development,FALCON SECURITY,17/05/2021,25453.44,M,92121500,Guard services
"Ministry of Housing, Communities and Local Government",Homes England,SECURITY,Development,FALCON SECURITY,17/05/2021,5745.6,M,92121500,Guard services
"Ministry of Housing, Communities and Local Government",Homes England,SECURITY,Development,FALCON SECURITY,17/05/2021,27655.68,M,92121500,Guard services
"Ministry of Housing, Communities and Local Government",Homes England,SECURITY,Development,FALCON SECURITY,18/05/2021,2376,M,92121500,Guard services
"Ministry of Housing, Communities and Local Government",Homes England,SECURITY,MPP,FALCON SECURITY,21/05/2021,3696,M,92121500,Guard services
"Ministry of Housing, Communities and Local Government",Homes England,SECURITY,MPP,FALCON SECURITY,21/05/2021,7473.6,M,92121500,Guard services
"Ministry of Housing, Communities and Local Government",Homes England,SECURITY,MPP,FALCON SECURITY,21/05/2021,4152,M,92121500,Guard services
"Ministry of Housing, Communities and Local Government",Homes England,SECURITY,Development,FALCON SECURITY,27/05/2021,7140,M,92121500,Guard services
"Ministry of Housing, Communities and Local Government",Homes England,EXTERNAL BUILDING MAINTENANCE,Development,FIRST NATIONAL SERVICES LTD,19/05/2021,283.08,S,72102900,Facility maintenance and repair services
"Ministry of Housing, Communities and Local Government",Homes England,LANDSCAPE MAINT-BUILT ESTATE,Development,FALCON PEST CONTROL,11/05/2021,444,S,72102100,Pest control
"Ministry of Housing, Communities and Local Government",Homes England,ESTATE GENERAL MAINTENANCE,Development,FIRST CHOICE CLEANING & MAINTENANCE LTD,07/05/2021,2730,S,72153501,Building exterior cleaning service  
"Ministry of Housing, Communities and Local Government",Homes England,MANAGEMENT COSTS,Development,FINISHING TOUCH PROPERTY MAINTENANCE SERVICES,27/05/2021,425,S,72101500,Building maintenance and repair services
"Ministry of Housing, Communities and Local Government",Homes England,SECURITY,Development,FIRST RESPONSE GROUP LTD,17/05/2021,17439.3,L,92121500,Guard services
"Ministry of Housing, Communities and Local Government",Homes England,ESTATE GENERAL MAINTENANCE,Development,FOREMOST TREE SURGEONS LTD,24/05/2021,354,S,72101500,Building maintenance and repair services
"Ministry of Housing, Communities and Local Government",Homes England,DISPOSAL FEES - PROPERTY AGENT,MPP,AVISON YOUNG (UK) LTD,20/05/2021,2994,L,80131800,Real estate management services
"Ministry of Housing, Communities and Local Government",Homes England,MANAGEMENT COSTS,MPP,AVISON YOUNG (UK) LTD,27/05/2021,1440,L,80131800,Real estate management services
"Ministry of Housing, Communities and Local Government",Homes England,MISC PROFESSIONAL FEES,Executive Office,AVISON YOUNG (UK) LTD,06/05/2021,23220,L,80131800,Real estate management services
"Ministry of Housing, Communities and Local Government",Homes England,MISC PROFESSIONAL FEES,MPP,AVISON YOUNG (UK) LTD,13/05/2021,46480.8,L,80131800,Real estate management services
"Ministry of Housing, Communities and Local Government",Homes England,MISC PROFESSIONAL FEES,Development,AVISON YOUNG (UK) LTD,14/05/2021,27068.4,L,80131800,Real estate management services
"Ministry of Housing, Communities and Local Government",Homes England,MISC PROFESSIONAL FEES,Executive Office,AVISON YOUNG (UK) LTD,21/05/2021,22320,L,80131800,Real estate management services
"Ministry of Housing, Communities and Local Government",Homes England,PLANNING APPLICATIONS,MPP,AVISON YOUNG (UK) LTD,28/05/2021,300,L,80131800,Real estate management services
"Ministry of Housing, Communities and Local Government",Homes England,PROF FEES LOANS CAPITALISED,Investment,AVISON YOUNG (UK) LTD,27/05/2021,3414,L,80131800,Real estate management services
"Ministry of Housing, Communities and Local Government",Homes England,PROPERTY SERVICES,MPP,AVISON YOUNG (UK) LTD,04/05/2021,34833.19,L,80131800,Real estate management services
"Ministry of Housing, Communities and Local Government",Homes England,PROPERTY SERVICES,MPP,AVISON YOUNG (UK) LTD,04/05/2021,24645.66,L,80131800,Real estate management services
"Ministry of Housing, Communities and Local Government",Homes England,RI - MONIITORING SURVEYOR FEES,Investment,AVISON YOUNG (UK) LTD,11/05/2021,900,L,80131800,Real estate management services
"Ministry of Housing, Communities and Local Government",Homes England,RI - MONIITORING SURVEYOR FEES,Investment,AVISON YOUNG (UK) LTD,12/05/2021,1200,L,80131800,Real estate management services
"Ministry of Housing, Communities and Local Government",Homes England,RI - MONIITORING SURVEYOR FEES,Development,AVISON YOUNG (UK) LTD,12/05/2021,900,L,80131800,Real estate management services
"Ministry of Housing, Communities and Local Government",Homes England,RI - MONIITORING SURVEYOR FEES,Investment,AVISON YOUNG (UK) LTD,14/05/2021,960,L,80131800,Real estate management services
"Ministry of Housing, Communities and Local Government",Homes England,RI - MONIITORING SURVEYOR FEES,Investment,AVISON YOUNG (UK) LTD,14/05/2021,1234.2,L,80131800,Real estate management services
"Ministry of Housing, Communities and Local Government",Homes England,RI - MONIITORING SURVEYOR FEES,Investment,AVISON YOUNG (UK) LTD,19/05/2021,1920,L,80131800,Real estate management services
"Ministry of Housing, Communities and Local Government",Homes England,RI - MONIITORING SURVEYOR FEES,Investment,AVISON YOUNG (UK) LTD,26/05/2021,900,L,80131800,Real estate management services
"Ministry of Housing, Communities and Local Government",Homes England,RI - MONIITORING SURVEYOR FEES,Investment,AVISON YOUNG (UK) LTD,28/05/2021,1740,L,80131800,Real estate management services
"Ministry of Housing, Communities and Local Government",Homes England,SERVICE CHARGE,Development,GVA LTD,26/05/2021,35557.2,L,80131500,Lease and rental of property or building
"Ministry of Housing, Communities and Local Government",Homes England,SECONDED STAFF COSTS,Corporate Resources,GOVERNMENT ACTUARY'S DEPARTMENT,21/05/2021,8263.2,L,84000000,Financial and Insurance Services
"Ministry of Housing, Communities and Local Government",Homes England,MISC PROFESSIONAL FEES,Service Design And Transformation,GULP DIGITAL LIMITED,07/05/2021,141900,S,80101500,Business and corporate management consultation services�
"Ministry of Housing, Communities and Local Government",Homes England,ST FUND LOANS ADDITIONS,Investment,GBR DEVELOPMENTS LLP,10/05/2021,39632,S,,Loans
"Ministry of Housing, Communities and Local Government",Homes England,ST FUND LOANS ADDITIONS,Investment,GENUS DESIGN HOMES LIMITED,05/05/2021,30507.03,L,,Loans
"Ministry of Housing, Communities and Local Government",Homes England,MISC PROFESSIONAL FEES,MPP,GERALD EVE LLP,18/05/2021,6732,L,80131800,Real estate management services
"Ministry of Housing, Communities and Local Government",Homes England,SECURITY,Development,GUARDING UK LTD,17/05/2021,1119,L,92121500,Guard services
"Ministry of Housing, Communities and Local Government",Homes England,SECURITY,Development,GUARDING UK LTD,17/05/2021,1119,L,92121500,Guard services
"Ministry of Housing, Communities and Local Government",Homes England,CAP GRNTS TO LOCAL AUTHORITIES,Investment,GLOUCESTERSHIRE COUNTY COUNCIL,24/05/2021,645735.29,G,,Grants
"Ministry of Housing, Communities and Local Government",Homes England,OTHER PROFESSIONAL FEES,Development,GALLAGHER TECHNICAL & DESIGN LTD,28/05/2021,1573.74,S,80131800,Real estate management services
"Ministry of Housing, Communities and Local Government",Homes England,ST FUND LOANS ADDITIONS,Investment,GRC DEVELOPMENTS LIMITED,18/05/2021,76150,L,,Loans
"Ministry of Housing, Communities and Local Government",Homes England,ST FUND LOANS ADDITIONS,Investment,GILBY HOMES LTD,25/05/2021,120000,L,,Loans
"Ministry of Housing, Communities and Local Government",Homes England,SERVICE RENTS/CHARGES,MPP,AVISON YOUNG (UK) LTD,24/05/2021,3730.96,L,80131800,Real estate management services
"Ministry of Housing, Communities and Local Government",Homes England,SERVICE CHARGES,Development,GOVERNMENT PROPERTY AGENCY,04/05/2021,39165.03,G,80131500,Lease and rental of property or building
"Ministry of Housing, Communities and Local Government",Homes England,RI - MONIITORING SURVEYOR FEES,Investment,GLEEDS ADVISORY LTD,13/05/2021,1200,M,80131800,Real estate management services
"Ministry of Housing, Communities and Local Government",Homes England,AGENCY STAFF,Development,GREEN PARK INTERIM & EXECUTIVE LTD,06/05/2021,9240,M,80111600,Temporary personnel services
"Ministry of Housing, Communities and Local Government",Homes England,AGENCY STAFF,Development,GREEN PARK INTERIM & EXECUTIVE LTD,07/05/2021,10560,M,80111600,Temporary personnel services
"Ministry of Housing, Communities and Local Government",Homes England,CAP GRNTS TO LOCAL AUTHORITIES,Investment,HYNDBURN BOROUGH COUNCIL,18/05/2021,98136.69,G,,Grants
"Ministry of Housing, Communities and Local Government",Homes England,AGENCY STAFF,Development,HAYS ACCOUNTANCY & FINANCE,04/05/2021,589.51,L,80111600,Temporary personnel services
"Ministry of Housing, Communities and Local Government",Homes England,AGENCY STAFF,Corporate Resources,HAYS ACCOUNTANCY & FINANCE,05/05/2021,318.24,L,80111600,Temporary personnel services
"Ministry of Housing, Communities and Local Government",Homes England,AGENCY STAFF,Corporate Resources,HAYS ACCOUNTANCY & FINANCE,05/05/2021,1086.96,L,80111600,Temporary personnel services
"Ministry of Housing, Communities and Local Government",Homes England,AGENCY STAFF,Corporate Resources,HAYS ACCOUNTANCY & FINANCE,07/05/2021,3540,L,80111600,Temporary personnel services
"Ministry of Housing, Communities and Local Government",Homes England,AGENCY STAFF,Investment,HAYS ACCOUNTANCY & FINANCE,12/05/2021,7900.2,L,80111600,Temporary personnel services
"Ministry of Housing, Communities and Local Government",Homes England,AGENCY STAFF,Corporate Resources,HAYS ACCOUNTANCY & FINANCE,12/05/2021,7492.8,L,80111600,Temporary personnel services
"Ministry of Housing, Communities and Local Government",Homes England,AGENCY STAFF,Development,HAYS ACCOUNTANCY & FINANCE,12/05/2021,1868.26,L,80111600,Temporary personnel services
"Ministry of Housing, Communities and Local Government",Homes England,AGENCY STAFF,Corporate Resources,HAYS ACCOUNTANCY & FINANCE,12/05/2021,7080,L,80111600,Temporary personnel services
"Ministry of Housing, Communities and Local Government",Homes England,AGENCY STAFF,Investment,HAYS ACCOUNTANCY & FINANCE,12/05/2021,7900.2,L,80111600,Temporary personnel services
"Ministry of Housing, Communities and Local Government",Homes England,AGENCY STAFF,Corporate Resources,HAYS ACCOUNTANCY & FINANCE,12/05/2021,2832,L,80111600,Temporary personnel services
"Ministry of Housing, Communities and Local Government",Homes England,AGENCY STAFF,Corporate Resources,HAYS ACCOUNTANCY & FINANCE,19/05/2021,4034.4,L,80111600,Temporary personnel services
"Ministry of Housing, Communities and Local Government",Homes England,AGENCY STAFF,Corporate Resources,HAYS ACCOUNTANCY & FINANCE,19/05/2021,5446.48,L,80111600,Temporary personnel services
"Ministry of Housing, Communities and Local Government",Homes England,AGENCY STAFF,Corporate Resources,HAYS ACCOUNTANCY & FINANCE,19/05/2021,3540,L,80111600,Temporary personnel services
"Ministry of Housing, Communities and Local Government",Homes England,AGENCY STAFF,Corporate Resources,HAYS ACCOUNTANCY & FINANCE,25/05/2021,2756.42,L,80111600,Temporary personnel services
"Ministry of Housing, Communities and Local Government",Homes England,AGENCY STAFF,Investment,HAYS ACCOUNTANCY & FINANCE,25/05/2021,7900.2,L,80111600,Temporary personnel services
"Ministry of Housing, Communities and Local Government",Homes England,AGENCY STAFF,Corporate Resources,HAYS ACCOUNTANCY & FINANCE,27/05/2021,3540,L,80111600,Temporary personnel services
"Ministry of Housing, Communities and Local Government",Homes England,ENGINEERING CONSULTANTS,Development,ARCADIS CONSULTING (UK) LIMITED,07/05/2021,2856.76,L,81101500,Civil Engineering
"Ministry of Housing, Communities and Local Government",Homes England,ENGINEERING FEES,MPP,ARCADIS CONSULTING (UK) LIMITED,04/05/2021,46735.56,L,81101500,Civil Engineering
"Ministry of Housing, Communities and Local Government",Homes England,ENGINEERING FEES,MPP,ARCADIS CONSULTING (UK) LIMITED,27/05/2021,40417.92,L,81101500,Civil Engineering
"Ministry of Housing, Communities and Local Government",Homes England,OTHER PROFESSIONAL FEES,MPP,ARCADIS CONSULTING (UK) LIMITED,04/05/2021,8864.4,L,81101500,Civil Engineering
"Ministry of Housing, Communities and Local Government",Homes England,OTHER PROFESSIONAL FEES,MPP,ARCADIS CONSULTING (UK) LIMITED,07/05/2021,58294.8,L,81101500,Civil Engineering
"Ministry of Housing, Communities and Local Government",Homes England,PLANNING APPLICATIONS,MPP,ARCADIS CONSULTING (UK) LIMITED,11/05/2021,17136,L,81101500,Civil Engineering
"Ministry of Housing, Communities and Local Government",Homes England,PROF FEES LOANS CAPITALISED,Investment,ARCADIS CONSULTING (UK) LIMITED,19/05/2021,7200,L,81101500,Civil Engineering
"Ministry of Housing, Communities and Local Government",Homes England,PROF FEES LOANS CAPITALISED,Investment,ARCADIS CONSULTING (UK) LIMITED,20/05/2021,3000,L,81101500,Civil Engineering
"Ministry of Housing, Communities and Local Government",Homes England,PROJECT MANAGEMENT,MPP,ARCADIS CONSULTING (UK) LIMITED,04/05/2021,31204.28,L,81101500,Civil Engineering
"Ministry of Housing, Communities and Local Government",Homes England,PROJECT MANAGEMENT,Development,ARCADIS CONSULTING (UK) LIMITED,10/05/2021,11410.93,L,81101500,Civil Engineering
"Ministry of Housing, Communities and Local Government",Homes England,PROJECT MANAGEMENT,Development,ARCADIS CONSULTING (UK) LIMITED,27/05/2021,11342.26,L,81101500,Civil Engineering
"Ministry of Housing, Communities and Local Government",Homes England,RI - MONIITORING SURVEYOR FEES,Investment,ARCADIS CONSULTING (UK) LIMITED,06/05/2021,2100,L,81101500,Civil Engineering
"Ministry of Housing, Communities and Local Government",Homes England,RI - MONIITORING SURVEYOR FEES,Investment,ARCADIS CONSULTING (UK) LIMITED,11/05/2021,1500,L,81101500,Civil Engineering
"Ministry of Housing, Communities and Local Government",Homes England,RI - MONIITORING SURVEYOR FEES,Investment,ARCADIS CONSULTING (UK) LIMITED,12/05/2021,1680,L,81101500,Civil Engineering
"Ministry of Housing, Communities and Local Government",Homes England,RI - MONIITORING SURVEYOR FEES,Investment,ARCADIS CONSULTING (UK) LIMITED,12/05/2021,1740,L,81101500,Civil Engineering
"Ministry of Housing, Communities and Local Government",Homes England,RI - MONIITORING SURVEYOR FEES,Investment,ARCADIS CONSULTING (UK) LIMITED,12/05/2021,1740,L,81101500,Civil Engineering
"Ministry of Housing, Communities and Local Government",Homes England,RI - MONIITORING SURVEYOR FEES,Investment,ARCADIS CONSULTING (UK) LIMITED,12/05/2021,1740,L,81101500,Civil Engineering
"Ministry of Housing, Communities and Local Government",Homes England,RI - MONIITORING SURVEYOR FEES,Investment,ARCADIS CONSULTING (UK) LIMITED,12/05/2021,1740,L,81101500,Civil Engineering
"Ministry of Housing, Communities and Local Government",Homes England,RI - MONIITORING SURVEYOR FEES,Investment,ARCADIS CONSULTING (UK) LIMITED,13/05/2021,1500,L,81101500,Civil Engineering
"Ministry of Housing, Communities and Local Government",Homes England,RI - MONIITORING SURVEYOR FEES,Investment,ARCADIS CONSULTING (UK) LIMITED,19/05/2021,1560,L,81101500,Civil Engineering
"Ministry of Housing, Communities and Local Government",Homes England,RI - MONIITORING SURVEYOR FEES,Investment,ARCADIS CONSULTING (UK) LIMITED,21/05/2021,900,L,81101500,Civil Engineering
"Ministry of Housing, Communities and Local Government",Homes England,RI - MONIITORING SURVEYOR FEES,Investment,ARCADIS CONSULTING (UK) LIMITED,26/05/2021,2100,L,81101500,Civil Engineering
"Ministry of Housing, Communities and Local Government",Homes England,RI - MONIITORING SURVEYOR FEES,Investment,ARCADIS CONSULTING (UK) LIMITED,28/05/2021,1500,L,81101500,Civil Engineering
"Ministry of Housing, Communities and Local Government",Homes England,PROPERTY SERVICES,MPP,HARTNELL TAYLOR COOK LLP,14/05/2021,2106,M,80131800,Real estate management services
"Ministry of Housing, Communities and Local Government",Homes England,PROPERTY SERVICES,MPP,HARTNELL TAYLOR COOK LLP,14/05/2021,1320,M,80131800,Real estate management services
"Ministry of Housing, Communities and Local Government",Homes England,PROPERTY SERVICES,MPP,HARTNELL TAYLOR COOK LLP,14/05/2021,1593,M,80131800,Real estate management services
"Ministry of Housing, Communities and Local Government",Homes England,PROPERTY SERVICES,MPP,HARTNELL TAYLOR COOK LLP,24/05/2021,1115.1,M,80131800,Real estate management services
"Ministry of Housing, Communities and Local Government",Homes England,PROPERTY SERVICES,MPP,HARTNELL TAYLOR COOK LLP,24/05/2021,318.6,M,80131800,Real estate management services
"Ministry of Housing, Communities and Local Government",Homes England,RI - MONIITORING SURVEYOR FEES,Investment,HARTNELL TAYLOR COOK LLP,17/05/2021,1020,M,80131800,Real estate management services
"Ministry of Housing, Communities and Local Government",Homes England,ST FUND LOANS ADDITIONS,Investment,HARTFORTH HOMES (WEST WITTON) LIMITED,07/05/2021,102793.25,S,,Loans
"Ministry of Housing, Communities and Local Government",Homes England,STAFF MEDICAL FEES,Corporate Resources,HAPPINOSIS,20/05/2021,840,S,86101800,In service training and manpower development
"Ministry of Housing, Communities and Local Government",Homes England,ESTATE GENERAL MAINTENANCE,Development,HYDROSURE LIMITED,17/05/2021,1800,S,72101500,Building maintenance and repair services
"Ministry of Housing, Communities and Local Government",Homes England,MISC PROFESSIONAL FEES,Development,HARVEYHR LTD,04/05/2021,3780,S,86101800,In service training and manpower development
"Ministry of Housing, Communities and Local Government",Homes England,MANAGED FUNDS - ADDITIONS,Investment,HOUSING GROWTH PARTNERSHIP LIMITED,26/05/2021,251250,S,,Loans
"Ministry of Housing, Communities and Local Government",Homes England,MANAGED FUNDS - ADDITIONS,Investment,HOUSING GROWTH PARTNERSHIP LIMITED,27/05/2021,514924.88,S,,Loans
"Ministry of Housing, Communities and Local Government",Homes England,OFFICE RELOCATION COSTS,Development,HARROW GREEN LIMITED,19/05/2021,619.8,L,72102900,Facility maintenance and repair services
"Ministry of Housing, Communities and Local Government",Homes England,OFFICE RELOCATION COSTS,Development,HARROW GREEN LIMITED,24/05/2021,869.4,L,72102900,Facility maintenance and repair services
"Ministry of Housing, Communities and Local Government",Homes England,ST FUND LOANS ADDITIONS,Development,HARDFIELD HOMES (BELPER) LTD,20/05/2021,90483,L,,Loans
"Ministry of Housing, Communities and Local Government",Homes England,ST FUND LOANS ADDITIONS,Investment,HOLLINS HOMES (TILSTOCK) LTD,14/05/2021,227430,S,,Loans
"Ministry of Housing, Communities and Local Government",Homes England,ST FUND LOANS ADDITIONS,Investment,HOLLINS HOMES (TILSTOCK) LTD,25/05/2021,256132,S,,Loans
"Ministry of Housing, Communities and Local Government",Homes England,SECURITY,Development,HIGH SECURITY GROUP LIMITED,20/05/2021,450,M,72102900,Facility maintenance and repair services
"Ministry of Housing, Communities and Local Government",Homes England,CAPITAL GRANTS TO RPs,Investment,TRANSFORM HOUSING & SUPPORT,19/05/2021,57600,L,,Grants
"Ministry of Housing, Communities and Local Government",Homes England,CAPITAL GRANTS TO RPs,Investment,TRANSFORM HOUSING & SUPPORT,24/05/2021,45000,L,,Grants
"Ministry of Housing, Communities and Local Government",Homes England,CAPITAL GRANTS TO RPs,Investment,TRANSFORM HOUSING & SUPPORT,26/05/2021,57600,L,,Grants
"Ministry of Housing, Communities and Local Government",Homes England,CAPITAL GRANTS TO RPs,Investment,TRANSFORM HOUSING & SUPPORT,26/05/2021,64000,L,,Grants
"Ministry of Housing, Communities and Local Government",Homes England,ESTATE GENERAL MAINTENANCE,Development,HARDY ACCESS SERVICES LTD,07/05/2021,1260,S,72101500,Building maintenance and repair services
"Ministry of Housing, Communities and Local Government",Homes England,DISPOSAL FEES - LEGAL,MPP,HEWITSONS SOLICITORS,04/05/2021,798,M,80121600,Business law services
"Ministry of Housing, Communities and Local Government",Homes England,DISPOSAL FEES - LEGAL,MPP,HEWITSONS SOLICITORS,04/05/2021,456,M,80121600,Business law services
"Ministry of Housing, Communities and Local Government",Homes England,DISPOSAL FEES - LEGAL,MPP,HEWITSONS SOLICITORS,04/05/2021,912,M,80121600,Business law services
"Ministry of Housing, Communities and Local Government",Homes England,DISPOSAL FEES - LEGAL,MPP,HEWITSONS SOLICITORS,05/05/2021,1272,M,80121600,Business law services
"Ministry of Housing, Communities and Local Government",Homes England,DISPOSAL FEES - LEGAL,MPP,HEWITSONS SOLICITORS,06/05/2021,5952.6,M,80121600,Business law services
"Ministry of Housing, Communities and Local Government",Homes England,DISPOSAL FEES - LEGAL,MPP,HEWITSONS SOLICITORS,06/05/2021,684,M,80121600,Business law services
"Ministry of Housing, Communities and Local Government",Homes England,DISPOSAL FEES - LEGAL,MPP,HEWITSONS SOLICITORS,06/05/2021,570,M,80121600,Business law services
"Ministry of Housing, Communities and Local Government",Homes England,DISPOSAL FEES - LEGAL,MPP,HEWITSONS SOLICITORS,07/05/2021,486,M,80121600,Business law services
"Ministry of Housing, Communities and Local Government",Homes England,DISPOSAL FEES - LEGAL,MPP,HEWITSONS SOLICITORS,10/05/2021,684,M,80121600,Business law services
"Ministry of Housing, Communities and Local Government",Homes England,DISPOSAL FEES - LEGAL,MPP,HEWITSONS SOLICITORS,12/05/2021,1710,M,80121600,Business law services
"Ministry of Housing, Communities and Local Government",Homes England,DISPOSAL FEES - LEGAL,Development,HEWITSONS SOLICITORS,20/05/2021,1518,M,80121600,Business law services
"Ministry of Housing, Communities and Local Government",Homes England,DISPOSAL FEES - LEGAL,MPP,HEWITSONS SOLICITORS,27/05/2021,1026,M,80121600,Business law services
"Ministry of Housing, Communities and Local Government",Homes England,LEGAL FEES (PROGRAMME - RDEL),Investment,HEWITSONS SOLICITORS,06/05/2021,725.77,M,80121600,Business law services
"Ministry of Housing, Communities and Local Government",Homes England,LEGAL FEES (PROGRAMME - RDEL),MPP,HEWITSONS SOLICITORS,06/05/2021,570,M,80121600,Business law services
"Ministry of Housing, Communities and Local Government",Homes England,LEGAL FEES (PROGRAMME - RDEL),MPP,HEWITSONS SOLICITORS,07/05/2021,2199.6,M,80121600,Business law services
"Ministry of Housing, Communities and Local Government",Homes England,LEGAL FEES (PROGRAMME - RDEL),Development,HEWITSONS SOLICITORS,10/05/2021,2160,M,80121600,Business law services
"Ministry of Housing, Communities and Local Government",Homes England,LEGAL FEES (PROGRAMME - RDEL),MPP,HEWITSONS SOLICITORS,11/05/2021,1399.8,M,80121600,Business law services
"Ministry of Housing, Communities and Local Government",Homes England,CAP GRNTS TO LOCAL AUTHORITIES,Investment,HERTFORDSHIRE COUNTY COUNCIL,28/05/2021,1121084.12,G,,Grants
"Ministry of Housing, Communities and Local Government",Homes England,CAPITAL GRANTS TO RPs,Investment,IMPAKT HOUSING & SUPPORT LTD,18/05/2021,75000,M,,Grants
"Ministry of Housing, Communities and Local Government",Homes England,CAPITAL GRANTS TO RPs,Investment,IMPAKT HOUSING & SUPPORT LTD,18/05/2021,75000,M,,Grants
"Ministry of Housing, Communities and Local Government",Homes England,CAPITAL GRANTS TO RPs,Investment,IMPAKT HOUSING & SUPPORT LTD,18/05/2021,75000,M,,Grants
"Ministry of Housing, Communities and Local Government",Homes England,CAPITAL GRANTS TO RPs,Investment,BRIDGWATER YMCA,28/05/2021,71250,L,,Grants
"Ministry of Housing, Communities and Local Government",Homes England,CAPITAL GRANTS TO RPs,Investment,BRIDGWATER YMCA,28/05/2021,33000,L,,Grants
"Ministry of Housing, Communities and Local Government",Homes England,LANDSCAPING & PLANTS,Development,INDUSTRIAL LANDSCAPES LIMITED,06/05/2021,546.31,S,72101500,Building maintenance and repair services
"Ministry of Housing, Communities and Local Government",Homes England,CLEANING,Development,INDEPTH MANAGED SERVICES,25/05/2021,3107.91,L,76111500,General building and office cleaining and maintenance services
"Ministry of Housing, Communities and Local Government",Homes England,ST FUND LOANS ADDITIONS,Investment,ISP DEVELOPMENTS BILSTHORPE LTD,06/05/2021,67143,L,,Loans
"Ministry of Housing, Communities and Local Government",Homes England,ST FUND LOANS ADDITIONS,Investment,ISP DEVELOPMENTS BILSTHORPE LTD,27/05/2021,119253,L,,Loans
"Ministry of Housing, Communities and Local Government",Homes England,LT FUND LOANS (PS) ADDITIONS,Investment,ILKE HOMES HOLDINGS LIMITED,19/05/2021,10000000,M,,Loans
"Ministry of Housing, Communities and Local Government",Homes England,AGENCY STAFF,Service Design And Transformation,INVESTIGO LIMITED,04/05/2021,3591,L,80111600,Temporary personnel services
"Ministry of Housing, Communities and Local Government",Homes England,AGENCY STAFF,Service Design And Transformation,INVESTIGO LIMITED,04/05/2021,2872.8,L,80111600,Temporary personnel services
"Ministry of Housing, Communities and Local Government",Homes England,AGENCY STAFF,Service Design And Transformation,INVESTIGO LIMITED,04/05/2021,3591,L,80111600,Temporary personnel services
"Ministry of Housing, Communities and Local Government",Homes England,AGENCY STAFF,Service Design And Transformation,INVESTIGO LIMITED,07/05/2021,2873.23,L,80111600,Temporary personnel services
"Ministry of Housing, Communities and Local Government",Homes England,AGENCY STAFF,Service Design And Transformation,INVESTIGO LIMITED,07/05/2021,3299.94,L,80111600,Temporary personnel services
"Ministry of Housing, Communities and Local Government",Homes England,AGENCY STAFF,Service Design And Transformation,INVESTIGO LIMITED,07/05/2021,3591.54,L,80111600,Temporary personnel services
"Ministry of Housing, Communities and Local Government",Homes England,AGENCY STAFF,Service Design And Transformation,INVESTIGO LIMITED,07/05/2021,3591.54,L,80111600,Temporary personnel services
"Ministry of Housing, Communities and Local Government",Homes England,AGENCY STAFF,Service Design And Transformation,INVESTIGO LIMITED,14/05/2021,6599.88,L,80111600,Temporary personnel services
"Ministry of Housing, Communities and Local Government",Homes England,AGENCY STAFF,Service Design And Transformation,INVESTIGO LIMITED,14/05/2021,3591,L,80111600,Temporary personnel services
"Ministry of Housing, Communities and Local Government",Homes England,AGENCY STAFF,Service Design And Transformation,INVESTIGO LIMITED,17/05/2021,3591,L,80111600,Temporary personnel services
"Ministry of Housing, Communities and Local Government",Homes England,AGENCY STAFF,Service Design And Transformation,INVESTIGO LIMITED,17/05/2021,2872.8,L,80111600,Temporary personnel services
"Ministry of Housing, Communities and Local Government",Homes England,AGENCY STAFF,Service Design And Transformation,INVESTIGO LIMITED,17/05/2021,2639.95,L,80111600,Temporary personnel services
"Ministry of Housing, Communities and Local Government",Homes England,AGENCY STAFF,Service Design And Transformation,INVESTIGO LIMITED,17/05/2021,2872.8,L,80111600,Temporary personnel services
"Ministry of Housing, Communities and Local Government",Homes England,AGENCY STAFF,Service Design And Transformation,INVESTIGO LIMITED,19/05/2021,3591.54,L,80111600,Temporary personnel services
"Ministry of Housing, Communities and Local Government",Homes England,AGENCY STAFF,Service Design And Transformation,INVESTIGO LIMITED,19/05/2021,2873.23,L,80111600,Temporary personnel services
"Ministry of Housing, Communities and Local Government",Homes England,AGENCY STAFF,Service Design And Transformation,INVESTIGO LIMITED,24/05/2021,5027.4,L,80111600,Temporary personnel services
"Ministry of Housing, Communities and Local Government",Homes England,AGENCY STAFF,Service Design And Transformation,INVESTIGO LIMITED,25/05/2021,3009.6,L,80111600,Temporary personnel services
"Ministry of Housing, Communities and Local Government",Homes England,AGENCY STAFF,Service Design And Transformation,INVESTIGO LIMITED,25/05/2021,3762,L,80111600,Temporary personnel services
"Ministry of Housing, Communities and Local Government",Homes England,AGENCY STAFF,Service Design And Transformation,INVESTIGO LIMITED,25/05/2021,3762,L,80111600,Temporary personnel services
"Ministry of Housing, Communities and Local Government",Homes England,AGENCY STAFF,Service Design And Transformation,INVESTIGO LIMITED,25/05/2021,3009.6,L,80111600,Temporary personnel services
"Ministry of Housing, Communities and Local Government",Homes England,AGENCY STAFF,Service Design And Transformation,INVESTIGO LIMITED,25/05/2021,3762,L,80111600,Temporary personnel services
"Ministry of Housing, Communities and Local Government",Homes England,AGENCY STAFF,Service Design And Transformation,INVESTIGO LIMITED,25/05/2021,3762,L,80111600,Temporary personnel services
"Ministry of Housing, Communities and Local Government",Homes England,AGENCY STAFF,Service Design And Transformation,INVESTIGO LIMITED,25/05/2021,3762,L,80111600,Temporary personnel services
"Ministry of Housing, Communities and Local Government",Homes England,AGENCY STAFF,Service Design And Transformation,INVESTIGO LIMITED,25/05/2021,3009.6,L,80111600,Temporary personnel services
"Ministry of Housing, Communities and Local Government",Homes England,AGENCY STAFF,Service Design And Transformation,INVESTIGO LIMITED,25/05/2021,3591,L,80111600,Temporary personnel services
"Ministry of Housing, Communities and Local Government",Homes England,AGENCY STAFF,Service Design And Transformation,INVESTIGO LIMITED,25/05/2021,3299.94,L,80111600,Temporary personnel services
"Ministry of Housing, Communities and Local Government",Homes England,AGENCY STAFF,Service Design And Transformation,INVESTIGO LIMITED,25/05/2021,3591,L,80111600,Temporary personnel services
"Ministry of Housing, Communities and Local Government",Homes England,AGENCY STAFF,Service Design And Transformation,INVESTIGO LIMITED,25/05/2021,3762,L,80111600,Temporary personnel services
"Ministry of Housing, Communities and Local Government",Homes England,ST FUND LOANS ADDITIONS,Investment,IPCJC LIMITED,18/05/2021,59167,L,,Loans
"Ministry of Housing, Communities and Local Government",Homes England,MISC PROFESSIONAL FEES,MPP,IAN FARMER ASSOCIATES (1998) LTD,28/05/2021,360,S,81101500,Civil Engineering
"Ministry of Housing, Communities and Local Government",Homes England,DRAINS & SEWERS,MPP,HYDRO DESCALING LTD T/A INSEWER SURVEYS,04/05/2021,1788,S,77101500,Environmental auditing
"Ministry of Housing, Communities and Local Government",Homes England,AGENCY STAFF,Service Design And Transformation,INTERQUEST GROUP UK LIMITED,06/05/2021,3600,L,80111600,Temporary personnel services
"Ministry of Housing, Communities and Local Government",Homes England,AGENCY STAFF,Service Design And Transformation,INTERQUEST GROUP UK LIMITED,07/05/2021,17640,L,80111600,Temporary personnel services
"Ministry of Housing, Communities and Local Government",Homes England,AGENCY STAFF,Service Design And Transformation,INTERQUEST GROUP UK LIMITED,07/05/2021,16008,L,80111600,Temporary personnel services
"Ministry of Housing, Communities and Local Government",Homes England,AGENCY STAFF,Corporate Resources,INTERQUEST GROUP UK LIMITED,07/05/2021,12272.69,L,80111600,Temporary personnel services
"Ministry of Housing, Communities and Local Government",Homes England,AGENCY STAFF,Service Design And Transformation,INTERQUEST GROUP UK LIMITED,07/05/2021,15840,L,80111600,Temporary personnel services
"Ministry of Housing, Communities and Local Government",Homes England,AGENCY STAFF,Corporate Resources,INTERQUEST GROUP UK LIMITED,07/05/2021,3409.08,L,80111600,Temporary personnel services
"Ministry of Housing, Communities and Local Government",Homes England,AGENCY STAFF,Service Design And Transformation,INTERQUEST GROUP UK LIMITED,07/05/2021,7200,L,80111600,Temporary personnel services
"Ministry of Housing, Communities and Local Government",Homes England,AGENCY STAFF,Service Design And Transformation,INTERQUEST GROUP UK LIMITED,07/05/2021,12852,L,80111600,Temporary personnel services
"Ministry of Housing, Communities and Local Government",Homes England,AGENCY STAFF,Service Design And Transformation,INTERQUEST GROUP UK LIMITED,07/05/2021,3570,L,80111600,Temporary personnel services
"Ministry of Housing, Communities and Local Government",Homes England,AGENCY STAFF,Service Design And Transformation,INTERQUEST GROUP UK LIMITED,07/05/2021,16560,L,80111600,Temporary personnel services
"Ministry of Housing, Communities and Local Government",Homes England,AGENCY STAFF,Service Design And Transformation,INTERQUEST GROUP UK LIMITED,10/05/2021,11700,L,80111600,Temporary personnel services
"Ministry of Housing, Communities and Local Government",Homes England,AGENCY STAFF,Corporate Resources,INTERQUEST GROUP UK LIMITED,10/05/2021,16128,L,80111600,Temporary personnel services
"Ministry of Housing, Communities and Local Government",Homes England,AGENCY STAFF,Service Design And Transformation,INTERQUEST GROUP UK LIMITED,10/05/2021,5760,L,80111600,Temporary personnel services
"Ministry of Housing, Communities and Local Government",Homes England,AGENCY STAFF,Service Design And Transformation,INTERQUEST GROUP UK LIMITED,13/05/2021,2880,L,80111600,Temporary personnel services
"Ministry of Housing, Communities and Local Government",Homes England,AGENCY STAFF,Service Design And Transformation,INTERQUEST GROUP UK LIMITED,13/05/2021,15840,L,80111600,Temporary personnel services
"Ministry of Housing, Communities and Local Government",Homes England,AGENCY STAFF,Service Design And Transformation,INTERQUEST GROUP UK LIMITED,21/05/2021,2880,L,80111600,Temporary personnel services
"Ministry of Housing, Communities and Local Government",Homes England,AGENCY STAFF,Service Design And Transformation,INTERQUEST GROUP UK LIMITED,27/05/2021,3600,L,80111600,Temporary personnel services
"Ministry of Housing, Communities and Local Government",Homes England,BESPOKE DEVELOPMENT SUPPORT,Corporate Resources,INTERQUEST GROUP UK LIMITED,07/05/2021,17940,L,80111600,Temporary personnel services
"Ministry of Housing, Communities and Local Government",Homes England,BESPOKE DEVELOPMENT SUPPORT,Corporate Resources,INTERQUEST GROUP UK LIMITED,07/05/2021,1800,L,80111600,Temporary personnel services
"Ministry of Housing, Communities and Local Government",Homes England,DISPOSAL FEES - PROPERTY AGENT,MPP,JONES LANG LASALLE,14/05/2021,18000,L,80131800,Real estate management services
"Ministry of Housing, Communities and Local Government",Homes England,PROF FEES LOANS CAPITALISED,Investment,JONES LANG LASALLE,14/05/2021,9000,L,80131800,Real estate management services
"Ministry of Housing, Communities and Local Government",Homes England,PROPERTY SERVICES,Development,JONES LANG LASALLE,04/05/2021,15600,L,80131800,Real estate management services
"Ministry of Housing, Communities and Local Government",Homes England,VALUATION FEES,Development,JONES LANG LASALLE,21/05/2021,1920,L,80131800,Real estate management services
"Ministry of Housing, Communities and Local Government",Homes England,VALUATION FEES,Development,JONES LANG LASALLE,25/05/2021,11970,L,80131800,Real estate management services
"Ministry of Housing, Communities and Local Government",Homes England,ENGINEERING FEES,Development,JLES CENTRAL LIMITED,19/05/2021,1071.6,M,81101500,Civil Engineering
"Ministry of Housing, Communities and Local Government",Homes England,SECURITY,MPP,HS JACKSON & SON FENCING LTD,13/05/2021,859.02,L,72101500,Building maintenance and repair services
"Ministry of Housing, Communities and Local Government",Homes England,CONTRACT WORKS,Development,JACKSON CIVIL ENGINEERING GROUP LTD,19/05/2021,595231.46,L,72141500,Land preparation services
"Ministry of Housing, Communities and Local Government",Homes England,ESTATE GENERAL MAINTENANCE,Development,JB LANDSCAPE & PROPERTY MAINTENANCE LTD,04/05/2021,450,S,72101500,Building maintenance and repair services
"Ministry of Housing, Communities and Local Government",Homes England,ESTATE GENERAL MAINTENANCE,MPP,JB LANDSCAPE & PROPERTY MAINTENANCE LTD,07/05/2021,342,S,72101500,Building maintenance and repair services
"Ministry of Housing, Communities and Local Government",Homes England,ESTATE GENERAL MAINTENANCE,MPP,JB LANDSCAPE & PROPERTY MAINTENANCE LTD,07/05/2021,455,S,72101500,Building maintenance and repair services
"Ministry of Housing, Communities and Local Government",Homes England,ESTATE GENERAL MAINTENANCE,Development,JB LANDSCAPE & PROPERTY MAINTENANCE LTD,07/05/2021,821.5,S,72101500,Building maintenance and repair services
"Ministry of Housing, Communities and Local Government",Homes England,FENCE MAINTENANCE,Development,JB LANDSCAPE & PROPERTY MAINTENANCE LTD,07/05/2021,825,S,72101500,Building maintenance and repair services
"Ministry of Housing, Communities and Local Government",Homes England,MISC PROFESSIONAL FEES,Development,JOULE INFRASTRUCTURE LTD,20/05/2021,11040,M,80131800,Real estate management services
"Ministry of Housing, Communities and Local Government",Homes England,POSTAGE/COURIERS,Development,JCP LIGHT HAULAGE,10/05/2021,5022,S,78102200,Postal and small parcel and courier services
"Ministry of Housing, Communities and Local Government",Homes England,RI - SITE VALUATION FEES,Investment,KNIGHT FRANK LLP,28/05/2021,7200,L,80131800,Real estate management services
"Ministry of Housing, Communities and Local Government",Homes England,L&OD STRATEGIC - HR USE ONLY,Corporate Resources,CSL - KPMG LLP,17/05/2021,2030.4,L,86101800,In service training and manpower development
"Ministry of Housing, Communities and Local Government",Homes England,L&OD STRATEGIC - HR USE ONLY,Corporate Resources,CSL - KPMG LLP,25/05/2021,3480,L,86101800,In service training and manpower development
"Ministry of Housing, Communities and Local Government",Homes England,L&OD STRATEGIC - HR USE ONLY,Corporate Resources,CSL - KPMG LLP,25/05/2021,3000,L,86101800,In service training and manpower development
"Ministry of Housing, Communities and Local Government",Homes England,TRAINING COURSES & CONFERENCES,Investment,CSL - KPMG LLP,12/05/2021,1267.2,L,86101800,In service training and manpower development
"Ministry of Housing, Communities and Local Government",Homes England,ST FUND LOANS REPAYMENTS,Investment,KC PROPERTY SERVICES LTD,04/05/2021,485.12,S,,Loans
"Ministry of Housing, Communities and Local Government",Homes England,MISC PROFESSIONAL FEES,Service Design And Transformation,KAINOS SOFTWARE LTD,19/05/2021,39926.4,L,80101500,Business and corporate management consultation services�
"Ministry of Housing, Communities and Local Government",Homes England,MISC PROFESSIONAL FEES,Service Design And Transformation,KAINOS SOFTWARE LTD,19/05/2021,215724.96,L,80101500,Business and corporate management consultation services�
"Ministry of Housing, Communities and Local Government",Homes England,EXTERNAL BUILDING MAINTENANCE,Development,K.D.E LTD,26/05/2021,288,M,72102900,Facility maintenance and repair services
"Ministry of Housing, Communities and Local Government",Homes England,TEAM MEETINGS,Development,KATASANA,05/05/2021,450,S,90111600,Meeting facilities
"Ministry of Housing, Communities and Local Government",Homes England,TEAM MEETINGS,Development,KATASANA,06/05/2021,300,S,90111600,Meeting facilities
"Ministry of Housing, Communities and Local Government",Homes England,OTHER PROFESSIONAL FEES,MPP,KIER LIVING - CENTRAL,18/05/2021,4160.08,L,72101500,Building maintenance and repair services
"Ministry of Housing, Communities and Local Government",Homes England,SERVICE CHARGES,Development,NORTH EAST PROPERTY PARTNERSHIP,21/05/2021,743.69,S,80131800,Real estate management services
"Ministry of Housing, Communities and Local Government",Homes England,TRAINING COURSES & CONFERENCES,Corporate Resources,THE KNOWLEDGE ACADEMY LIMITED,26/05/2021,2400,M,86101800,In service training and manpower development
"Ministry of Housing, Communities and Local Government",Homes England,DRAINS & SEWERS,Development,KELMEC LTD,07/05/2021,1054.5,S,72101500,Building maintenance and repair services
"Ministry of Housing, Communities and Local Government",Homes England,DRAINS & SEWERS,Development,KELMEC LTD,21/05/2021,1405.2,S,72101500,Building maintenance and repair services
"Ministry of Housing, Communities and Local Government",Homes England,DRAINS & SEWERS,Development,KELMEC LTD,21/05/2021,1917.6,S,72101500,Building maintenance and repair services
"Ministry of Housing, Communities and Local Government",Homes England,ESTATE AGENT FEES,MPP,LAMBERT SMITH HAMPTON,05/05/2021,420,L,80131800,Real estate management services
"Ministry of Housing, Communities and Local Government",Homes England,PROF FEES LOANS CAPITALISED,Investment,LAMBERT SMITH HAMPTON,24/05/2021,5220,L,80131800,Real estate management services
"Ministry of Housing, Communities and Local Government",Homes England,PROF FEES LOANS CAPITALISED,Investment,LAMBERT SMITH HAMPTON,24/05/2021,8940,L,80131800,Real estate management services
"Ministry of Housing, Communities and Local Government",Homes England,PROF FEES LOANS CAPITALISED,Investment,LAMBERT SMITH HAMPTON,27/05/2021,2040,L,80131800,Real estate management services
"Ministry of Housing, Communities and Local Government",Homes England,PROF FEES LOANS CAPITALISED,Investment,LAMBERT SMITH HAMPTON,27/05/2021,840,L,80131800,Real estate management services
"Ministry of Housing, Communities and Local Government",Homes England,PROF FEES LOANS CAPITALISED,Investment,LAMBERT SMITH HAMPTON,28/05/2021,4710,L,80131800,Real estate management services
"Ministry of Housing, Communities and Local Government",Homes England,RI - MONIITORING SURVEYOR FEES,Investment,LAMBERT SMITH HAMPTON,04/05/2021,1020,L,80131800,Real estate management services
"Ministry of Housing, Communities and Local Government",Homes England,RI - MONIITORING SURVEYOR FEES,Investment,LAMBERT SMITH HAMPTON,04/05/2021,1140,L,80131800,Real estate management services
"Ministry of Housing, Communities and Local Government",Homes England,RI - MONIITORING SURVEYOR FEES,Investment,LAMBERT SMITH HAMPTON,04/05/2021,1140,L,80131800,Real estate management services
"Ministry of Housing, Communities and Local Government",Homes England,RI - MONIITORING SURVEYOR FEES,Investment,LAMBERT SMITH HAMPTON,07/05/2021,840,L,80131800,Real estate management services
"Ministry of Housing, Communities and Local Government",Homes England,RI - MONIITORING SURVEYOR FEES,Investment,LAMBERT SMITH HAMPTON,18/05/2021,840,L,80131800,Real estate management services
"Ministry of Housing, Communities and Local Government",Homes England,RI - MONIITORING SURVEYOR FEES,Investment,LAMBERT SMITH HAMPTON,27/05/2021,1020,L,80131800,Real estate management services
"Ministry of Housing, Communities and Local Government",Homes England,RI - MONIITORING SURVEYOR FEES,Investment,LAMBERT SMITH HAMPTON,27/05/2021,1140,L,80131800,Real estate management services
"Ministry of Housing, Communities and Local Government",Homes England,RI - MONIITORING SURVEYOR FEES,Investment,LAMBERT SMITH HAMPTON,27/05/2021,1140,L,80131800,Real estate management services
"Ministry of Housing, Communities and Local Government",Homes England,RI - MONIITORING SURVEYOR FEES,Investment,LAMBERT SMITH HAMPTON,28/05/2021,840,L,80131800,Real estate management services
"Ministry of Housing, Communities and Local Government",Homes England,VALUATION FEES,Development,LAMBERT SMITH HAMPTON,18/05/2021,1118.4,L,80131800,Real estate management services
"Ministry of Housing, Communities and Local Government",Homes England,MISC PROFESSIONAL FEES,Development,LDA DESIGN CONSULTING LIMITED,04/05/2021,600,S,80131800,Real estate management services
"Ministry of Housing, Communities and Local Government",Homes England,CAPITAL GRANTS TO RPs,Investment,ORWELL HOUSING ASSOCIATION LIMITED,14/05/2021,365657,L,,Grants
"Ministry of Housing, Communities and Local Government",Homes England,CAPITAL GRANTS TO RPs,Investment,THE RIVERSIDE GROUP,05/05/2021,9000,L,,Grants
"Ministry of Housing, Communities and Local Government",Homes England,CAPITAL GRANTS TO RPs,Investment,THE RIVERSIDE GROUP,17/05/2021,9000,L,,Grants
"Ministry of Housing, Communities and Local Government",Homes England,CAPITAL GRANTS TO RPs,Investment,THE RIVERSIDE GROUP,24/05/2021,9000,L,,Grants
"Ministry of Housing, Communities and Local Government",Homes England,CAPITAL GRANTS TO RPs,Investment,THE RIVERSIDE GROUP,24/05/2021,9000,L,,Grants
"Ministry of Housing, Communities and Local Government",Homes England,CAPITAL GRANTS TO RPs,Investment,THE RIVERSIDE GROUP,24/05/2021,9000,L,,Grants
"Ministry of Housing, Communities and Local Government",Homes England,CAPITAL GRANTS TO RPs,Investment,THE RIVERSIDE GROUP,24/05/2021,9000,L,,Grants
"Ministry of Housing, Communities and Local Government",Homes England,CAPITAL GRANTS TO RPs,Investment,SOUTH YORKSHIRE HOUSING ASSOC LTD,04/05/2021,10000,L,,Grants
"Ministry of Housing, Communities and Local Government",Homes England,CAPITAL GRANTS TO RPs,Investment,SOUTH YORKSHIRE HOUSING ASSOC LTD,17/05/2021,9000,L,,Grants
"Ministry of Housing, Communities and Local Government",Homes England,INSURANCE PREMIUMS,Development,LOCKTON COMPANIES LLP,18/05/2021,22400,L,84131500,Insurance services for strcutures and property and possessions
"Ministry of Housing, Communities and Local Government",Homes England,CAPITAL GRANTS TO RPs,Investment,SOLON SOUTH WEST HOUSING ASSOCIATION LTD,07/05/2021,330000,L,,Grants
"Ministry of Housing, Communities and Local Government",Homes England,CONTRACT WORKS,MPP,LAR LIMITED,19/05/2021,37002.25,M,72101500,Building maintenance and repair services
"Ministry of Housing, Communities and Local Government",Homes England,CAPITAL GRANTS TO RPs,Investment,SANCTUARY HOUSING ASSOCIATION,06/05/2021,100000,L,,Grants
"Ministry of Housing, Communities and Local Government",Homes England,CAPITAL GRANTS TO RPs,Investment,SANCTUARY HOUSING ASSOCIATION,07/05/2021,9944,L,,Grants
"Ministry of Housing, Communities and Local Government",Homes England,CAPITAL GRANTS TO RPs,Investment,SANCTUARY HOUSING ASSOCIATION,20/05/2021,10000,L,,Grants
"Ministry of Housing, Communities and Local Government",Homes England,CAPITAL GRANTS TO RPs,Investment,SANCTUARY HOUSING ASSOCIATION,20/05/2021,10000,L,,Grants
"Ministry of Housing, Communities and Local Government",Homes England,CAPITAL GRANTS TO RPs,Investment,KNIGHTSTONE HOUSING ASSOCIATION LIMITED,24/05/2021,10000,L,,Grants
"Ministry of Housing, Communities and Local Government",Homes England,CAP GRNTS TO LOCAL AUTHORITIES,MPP,LANCASHIRE COUNTY COUNCIL,04/05/2021,1028642,G,,Grants
"Ministry of Housing, Communities and Local Government",Homes England,CITY DEALS LOANS LA ADDITIONS,MPP,LANCASHIRE COUNTY COUNCIL,04/05/2021,111358,G,,Loans
"Ministry of Housing, Communities and Local Government",Homes England,RATES,Development,LIVERPOOL CITY COUNCIL,11/05/2021,67072,G,80131500,Lease and rental of property or building
"Ministry of Housing, Communities and Local Government",Homes England,PROJECT MANAGEMENT,MPP,THOMAS LISTER LTD,28/05/2021,4433.39,S,80131800,Real estate management services
"Ministry of Housing, Communities and Local Government",Homes England,PROPERTY SERVICES,MPP,THOMAS LISTER LTD,17/05/2021,4850.4,S,80131800,Real estate management services
"Ministry of Housing, Communities and Local Government",Homes England,VALUATION FEES,MPP,THOMAS LISTER LTD,06/05/2021,1200,S,80131800,Real estate management services
"Ministry of Housing, Communities and Local Government",Homes England,VALUATION FEES,Development,THOMAS LISTER LTD,12/05/2021,1800,S,80131800,Real estate management services
"Ministry of Housing, Communities and Local Government",Homes England,VALUATION FEES,Development,THOMAS LISTER LTD,19/05/2021,600,S,80131800,Real estate management services
"Ministry of Housing, Communities and Local Government",Homes England,VALUATION FEES,Development,THOMAS LISTER LTD,27/05/2021,486,S,80131800,Real estate management services
"Ministry of Housing, Communities and Local Government",Homes England,HELP TO BUY ADDITIONS,Investment,PLACES FOR PEOPLE,10/05/2021,51200,L,,Grants
"Ministry of Housing, Communities and Local Government",Homes England,CONTRIBUTIONS,Development,Bournville Village Trust,14/05/2021,11059.75,L,,Grants
"Ministry of Housing, Communities and Local Government",Homes England,CAR LEASING - HIRE CHARGES,Development,LEX AUTOLEASE LTD,14/05/2021,343.71,L,25101500,Passenger motor vehicles
"Ministry of Housing, Communities and Local Government",Homes England,CAR LEASING - HIRE CHARGES,Development,LEX AUTOLEASE LTD,14/05/2021,304.86,L,25101500,Passenger motor vehicles
"Ministry of Housing, Communities and Local Government",Homes England,CAR LEASING - HIRE CHARGES,Service Design And Transformation,LEX AUTOLEASE LTD,14/05/2021,281.75,L,25101500,Passenger motor vehicles
"Ministry of Housing, Communities and Local Government",Homes England,CAR LEASING - HIRE CHARGES,Service Design And Transformation,LEX AUTOLEASE LTD,14/05/2021,375.28,L,25101500,Passenger motor vehicles
"Ministry of Housing, Communities and Local Government",Homes England,CAR LEASING - HIRE CHARGES,Development,LEX AUTOLEASE LTD,19/05/2021,313.14,L,25101500,Passenger motor vehicles
"Ministry of Housing, Communities and Local Government",Homes England,CAR LEASING - HIRE CHARGES,Development,LEX AUTOLEASE LTD,19/05/2021,343.71,L,25101500,Passenger motor vehicles
"Ministry of Housing, Communities and Local Government",Homes England,CAR LEASING - HIRE CHARGES,Service Design And Transformation,LEX AUTOLEASE LTD,19/05/2021,281.75,L,25101500,Passenger motor vehicles
"Ministry of Housing, Communities and Local Government",Homes England,CAR LEASING - HIRE CHARGES,Service Design And Transformation,LEX AUTOLEASE LTD,19/05/2021,375.28,L,25101500,Passenger motor vehicles
"Ministry of Housing, Communities and Local Government",Homes England,CAR LEASING - HIRE CHARGES,Development,LEX AUTOLEASE LTD,19/05/2021,262.45,L,25101500,Passenger motor vehicles
"Ministry of Housing, Communities and Local Government",Homes England,CAR LEASING - HIRE CHARGES,Development,LEX AUTOLEASE LTD,19/05/2021,2775.1,L,25101500,Passenger motor vehicles
"Ministry of Housing, Communities and Local Government",Homes England,CAR LEASING - HIRE CHARGES,Development,LEX AUTOLEASE LTD,19/05/2021,3747.52,L,25101500,Passenger motor vehicles
"Ministry of Housing, Communities and Local Government",Homes England,CAR LEASING - HIRE CHARGES,MPP,LEX AUTOLEASE LTD,19/05/2021,2420.28,L,25101500,Passenger motor vehicles
"Ministry of Housing, Communities and Local Government",Homes England,CAR LEASING - HIRE CHARGES,MPP,LEX AUTOLEASE LTD,19/05/2021,3165.34,L,25101500,Passenger motor vehicles
"Ministry of Housing, Communities and Local Government",Homes England,CAR LEASING - HIRE CHARGES,Investment,LEX AUTOLEASE LTD,19/05/2021,2881.66,L,25101500,Passenger motor vehicles
"Ministry of Housing, Communities and Local Government",Homes England,CAR LEASING - HIRE CHARGES,Investment,LEX AUTOLEASE LTD,19/05/2021,3871.07,L,25101500,Passenger motor vehicles
"Ministry of Housing, Communities and Local Government",Homes England,CAR LEASING - HIRE CHARGES,Investment,LEX AUTOLEASE LTD,20/05/2021,254.66,L,25101500,Passenger motor vehicles
"Ministry of Housing, Communities and Local Government",Homes England,CAR LEASING - HIRE CHARGES,Investment,LEX AUTOLEASE LTD,20/05/2021,320.57,L,25101500,Passenger motor vehicles
"Ministry of Housing, Communities and Local Government",Homes England,CAR LEASING - HIRE CHARGES,Investment,LEX AUTOLEASE LTD,26/05/2021,2690.93,L,25101500,Passenger motor vehicles
"Ministry of Housing, Communities and Local Government",Homes England,CAR LEASING - HIRE CHARGES,Investment,LEX AUTOLEASE LTD,26/05/2021,3401.71,L,25101500,Passenger motor vehicles
"Ministry of Housing, Communities and Local Government",Homes England,CAR LEASING - HIRE CHARGES,Development,LEX AUTOLEASE LTD,26/05/2021,2329.63,L,25101500,Passenger motor vehicles
"Ministry of Housing, Communities and Local Government",Homes England,CAR LEASING - HIRE CHARGES,Development,LEX AUTOLEASE LTD,26/05/2021,2744.35,L,25101500,Passenger motor vehicles
"Ministry of Housing, Communities and Local Government",Homes England,CAR LEASING - HIRE CHARGES,Executive Office,LEX AUTOLEASE LTD,27/05/2021,3129.33,L,25101500,Passenger motor vehicles
"Ministry of Housing, Communities and Local Government",Homes England,CAR LEASING - HIRE CHARGES,Executive Office,LEX AUTOLEASE LTD,27/05/2021,3745.8,L,25101500,Passenger motor vehicles
"Ministry of Housing, Communities and Local Government",Homes England,CAR LEASING - HIRE CHARGES,Development,LEX AUTOLEASE LTD,27/05/2021,2129.4,L,25101500,Passenger motor vehicles
"Ministry of Housing, Communities and Local Government",Homes England,CAR LEASING - HIRE CHARGES,Development,LEX AUTOLEASE LTD,27/05/2021,3080.66,L,25101500,Passenger motor vehicles
"Ministry of Housing, Communities and Local Government",Homes England,CAR LEASING - HIRE CHARGES,Investment,LEX AUTOLEASE LTD,27/05/2021,2665.44,L,25101500,Passenger motor vehicles
"Ministry of Housing, Communities and Local Government",Homes England,CAR LEASING - HIRE CHARGES,Investment,LEX AUTOLEASE LTD,27/05/2021,3567.89,L,25101500,Passenger motor vehicles
"Ministry of Housing, Communities and Local Government",Homes England,CAR LEASING - OTHER COSTS,Development,LEX AUTOLEASE LTD,14/05/2021,769.27,L,25101500,Passenger motor vehicles
"Ministry of Housing, Communities and Local Government",Homes England,CONTRACT WORKS,Development,LILLEKER BROS LIMITED,06/05/2021,899.21,S,81151604,Land surveying
"Ministry of Housing, Communities and Local Government",Homes England,CAPITAL GRANTS TO RPs,Investment,GREAT PLACES HOUSING ASSOCIATION,05/05/2021,132000,L,,Grants
"Ministry of Housing, Communities and Local Government",Homes England,CAPITAL GRANTS TO RPs,Investment,GREAT PLACES HOUSING ASSOCIATION,10/05/2021,144000,L,,Grants
"Ministry of Housing, Communities and Local Government",Homes England,CAPITAL GRANTS TO RPs,Investment,GREAT PLACES HOUSING ASSOCIATION,20/05/2021,11000,L,,Grants
"Ministry of Housing, Communities and Local Government",Homes England,CAPITAL GRANTS TO RPs,Investment,GREAT PLACES HOUSING ASSOCIATION,28/05/2021,29700,L,,Grants
"Ministry of Housing, Communities and Local Government",Homes England,HELP TO BUY ADDITIONS,Investment,GREAT PLACES HOUSING ASSOCIATION,14/05/2021,112000,L,,Grants
"Ministry of Housing, Communities and Local Government",Homes England,ENGINEERING FEES,Development,LEES ROXBURGH LTD,28/05/2021,291.6,S,80131800,Real estate management services
"Ministry of Housing, Communities and Local Government",Homes England,CAPITAL GRANTS TO RPs,Investment,LUTON COMMUNITY HOUSING LIMITED T/A SQUARED,26/05/2021,3660,M,,Grants
"Ministry of Housing, Communities and Local Government",Homes England,CAPITAL GRANTS TO RPs,Investment,YOUR HOUSING LIMITED,24/05/2021,10000,L,,Grants
"Ministry of Housing, Communities and Local Government",Homes England,CAPITAL GRANTS TO RPs,Investment,YOUR HOUSING LIMITED,24/05/2021,9000,L,,Grants
"Ministry of Housing, Communities and Local Government",Homes England,CAPITAL GRANTS TO RPs,Investment,TEES VALLEY HOUSING LIMITED,05/05/2021,20250,L,,Grants
"Ministry of Housing, Communities and Local Government",Homes England,CAPITAL GRANTS TO RPs,Investment,TEES VALLEY HOUSING LIMITED,10/05/2021,19000,L,,Grants
"Ministry of Housing, Communities and Local Government",Homes England,CAPITAL GRANTS TO RPs,Investment,TEES VALLEY HOUSING LIMITED,11/05/2021,9750,L,,Grants
"Ministry of Housing, Communities and Local Government",Homes England,CAPITAL GRANTS TO RPs,Investment,TEES VALLEY HOUSING LIMITED,12/05/2021,6500,L,,Grants
"Ministry of Housing, Communities and Local Government",Homes England,CAPITAL GRANTS TO RPs,Investment,TEES VALLEY HOUSING LIMITED,13/05/2021,19500,L,,Grants
"Ministry of Housing, Communities and Local Government",Homes England,CAPITAL GRANTS TO RPs,Investment,TEES VALLEY HOUSING LIMITED,13/05/2021,19500,L,,Grants
"Ministry of Housing, Communities and Local Government",Homes England,CAPITAL GRANTS TO RPs,Investment,TEES VALLEY HOUSING LIMITED,13/05/2021,10800,L,,Grants
"Ministry of Housing, Communities and Local Government",Homes England,CAPITAL GRANTS TO RPs,Investment,TEES VALLEY HOUSING LIMITED,13/05/2021,6500,L,,Grants
"Ministry of Housing, Communities and Local Government",Homes England,CAPITAL GRANTS TO RPs,Investment,TEES VALLEY HOUSING LIMITED,14/05/2021,6500,L,,Grants
"Ministry of Housing, Communities and Local Government",Homes England,CAPITAL GRANTS TO RPs,Investment,TEES VALLEY HOUSING LIMITED,14/05/2021,9450,L,,Grants
"Ministry of Housing, Communities and Local Government",Homes England,CAPITAL GRANTS TO RPs,Investment,TEES VALLEY HOUSING LIMITED,14/05/2021,6500,L,,Grants
"Ministry of Housing, Communities and Local Government",Homes England,CAPITAL GRANTS TO RPs,Investment,TEES VALLEY HOUSING LIMITED,24/05/2021,84375,L,,Grants
"Ministry of Housing, Communities and Local Government",Homes England,CAPITAL GRANTS TO RPs,Investment,HIGHTOWN HOUSING ASSOCIATION LTD,05/05/2021,252000,L,,Grants
"Ministry of Housing, Communities and Local Government",Homes England,CAPITAL GRANTS TO RPs,Investment,HIGHTOWN HOUSING ASSOCIATION LTD,05/05/2021,169500,L,,Grants
"Ministry of Housing, Communities and Local Government",Homes England,CAPITAL GRANTS TO RPs,Investment,HIGHTOWN HOUSING ASSOCIATION LTD,06/05/2021,220500,L,,Grants
"Ministry of Housing, Communities and Local Government",Homes England,CAPITAL GRANTS TO RPs,Investment,HIGHTOWN HOUSING ASSOCIATION LTD,06/05/2021,148313,L,,Grants
"Ministry of Housing, Communities and Local Government",Homes England,CAPITAL GRANTS TO RPs,Investment,CONNECT HOUSING ASSOCIATION LIMITED,06/05/2021,30000,L,,Grants
"Ministry of Housing, Communities and Local Government",Homes England,CAPITAL GRANTS TO RPs,Investment,CONNECT HOUSING ASSOCIATION LIMITED,10/05/2021,18000,L,,Grants
"Ministry of Housing, Communities and Local Government",Homes England,CAPITAL GRANTS TO RPs,Investment,CONNECT HOUSING ASSOCIATION LIMITED,28/05/2021,15750,L,,Grants
"Ministry of Housing, Communities and Local Government",Homes England,MISC PROFESSIONAL FEES,Development,LICHFIELDS,19/05/2021,1500,L,80131800,Real estate management services
"Ministry of Housing, Communities and Local Government",Homes England,ST FUND LOANS ADDITIONS,Investment,LONDON BTR INVESTMENTS HOLDINGS 1 LTD,26/05/2021,2356360.04,S,,Loans
"Ministry of Housing, Communities and Local Government",Homes England,ST FUND LOANS ADDITIONS,Investment,LONDON BTR INVESTMENTS HOLDINGS 1 LTD,28/05/2021,723229.94,S,,Loans
"Ministry of Housing, Communities and Local Government",Homes England,CAPITAL GRANTS TO RPs,Investment,HOME GROUP LIMITED,25/05/2021,9000,L,,Grants
"Ministry of Housing, Communities and Local Government",Homes England,Help to Buy 2 Additions,Investment,HOME GROUP LIMITED,21/05/2021,41000,L,,Grants
"Ministry of Housing, Communities and Local Government",Homes England,Help to Buy 2 Additions,Investment,HOME GROUP LIMITED,28/05/2021,41000,L,,Grants
"Ministry of Housing, Communities and Local Government",Homes England,CAPITAL GRANTS TO RPs,Investment,CONTOUR HOMES LIMITED,05/05/2021,9000,L,,Grants
"Ministry of Housing, Communities and Local Government",Homes England,CAPITAL GRANTS TO RPs,Investment,CONTOUR HOMES LIMITED,06/05/2021,78000,L,,Grants
"Ministry of Housing, Communities and Local Government",Homes England,CAPITAL GRANTS TO RPs,Investment,CONTOUR HOMES LIMITED,06/05/2021,126750,L,,Grants
"Ministry of Housing, Communities and Local Government",Homes England,CAPITAL GRANTS TO RPs,Investment,CONTOUR HOMES LIMITED,06/05/2021,38490,L,,Grants
"Ministry of Housing, Communities and Local Government",Homes England,CAPITAL GRANTS TO RPs,Investment,MANNINGHAM HOUSING ASSOCIATION LIMITED,04/05/2021,9000,S,,Grants
"Ministry of Housing, Communities and Local Government",Homes England,CAPITAL GRANTS TO RPs,Investment,MANNINGHAM HOUSING ASSOCIATION LIMITED,13/05/2021,9000,S,,Grants
"Ministry of Housing, Communities and Local Government",Homes England,REVENUE GRANTS TO RPs,Investment,TUNTUM HOUSING ASSOCIATION LIMITED,21/05/2021,82900,M,,Grants
"Ministry of Housing, Communities and Local Government",Homes England,CAPITAL GRANTS TO RPs,Investment,SHA 2016 LIMITED,24/05/2021,183750,L,,Grants
"Ministry of Housing, Communities and Local Government",Homes England,CAPITAL GRANTS TO RPs,Investment,SHA 2016 LIMITED,24/05/2021,1046250,L,,Grants
"Ministry of Housing, Communities and Local Government",Homes England,Help to Buy 2 Additions,Investment,ORBIT HOUSING GROUP LTD,10/05/2021,26700,L,,Grants
"Ministry of Housing, Communities and Local Government",Homes England,Help to Buy 2 Additions,Investment,ORBIT HOUSING GROUP LTD,11/05/2021,54600,L,,Grants
"Ministry of Housing, Communities and Local Government",Homes England,Help to Buy 2 Additions,Investment,ORBIT HOUSING GROUP LTD,26/05/2021,39000,L,,Grants
"Ministry of Housing, Communities and Local Government",Homes England,Help to Buy 2 Additions,Investment,ORBIT HOUSING GROUP LTD,27/05/2021,61000,L,,Grants
"Ministry of Housing, Communities and Local Government",Homes England,Help to Buy 2 Additions,Investment,ORBIT HOUSING GROUP LTD,28/05/2021,47500,L,,Grants
"Ministry of Housing, Communities and Local Government",Homes England,Help to Buy 2 Additions,Investment,ORBIT HOUSING GROUP LTD,28/05/2021,47500,L,,Grants
"Ministry of Housing, Communities and Local Government",Homes England,Help to Buy 2 Additions,Investment,ORBIT HOUSING GROUP LTD,28/05/2021,58000,L,,Grants
"Ministry of Housing, Communities and Local Government",Homes England,HELP TO BUY ADDITIONS,Investment,ORBIT HOUSING GROUP LTD,27/05/2021,83000,L,,Grants
"Ministry of Housing, Communities and Local Government",Homes England,CAPITAL GRANTS TO RPs,Investment,SOHA HOUSING LIMITED,11/05/2021,11000,M,,Grants
"Ministry of Housing, Communities and Local Government",Homes England,CAPITAL GRANTS TO RPs,Investment,TOGETHER HOUSING ASSOCIATION LTD,06/05/2021,24300,L,,Grants
"Ministry of Housing, Communities and Local Government",Homes England,CAPITAL GRANTS TO RPs,Investment,TOGETHER HOUSING ASSOCIATION LTD,07/05/2021,27000,L,,Grants
"Ministry of Housing, Communities and Local Government",Homes England,CAPITAL GRANTS TO RPs,Investment,CITIZEN HOUSING GROUP LIMITED,20/05/2021,58000,L,,Grants
"Ministry of Housing, Communities and Local Government",Homes England,CAPITAL GRANTS TO RPs,Investment,CITIZEN HOUSING GROUP LIMITED,27/05/2021,60375,L,,Grants
"Ministry of Housing, Communities and Local Government",Homes England,CAPITAL GRANTS TO RPs,Investment,CITIZEN HOUSING GROUP LIMITED,27/05/2021,155748,L,,Grants
"Ministry of Housing, Communities and Local Government",Homes England,CAPITAL GRANTS TO RPs,Investment,WYTHENSHAWE COMMUNITY HOUSING GROUP LIMITED,11/05/2021,25015,L,,Grants
"Ministry of Housing, Communities and Local Government",Homes England,CAPITAL GRANTS TO RPs,Investment,WYTHENSHAWE COMMUNITY HOUSING GROUP LIMITED,24/05/2021,92475,L,,Grants
"Ministry of Housing, Communities and Local Government",Homes England,CAPITAL GRANTS TO RPs,Investment,WYTHENSHAWE COMMUNITY HOUSING GROUP LIMITED,25/05/2021,102750,L,,Grants
"Ministry of Housing, Communities and Local Government",Homes England,CAPITAL GRANTS TO RPs,Investment,SOUTH LIVERPOOL HOMES LTD,07/05/2021,9000,M,,Grants
"Ministry of Housing, Communities and Local Government",Homes England,CAPITAL GRANTS TO RPs,Investment,CALICO HOMES LIMITED,04/05/2021,9625,M,,Grants
"Ministry of Housing, Communities and Local Government",Homes England,CAPITAL GRANTS TO RPs,Investment,CALICO HOMES LIMITED,21/05/2021,11000,M,,Grants
"Ministry of Housing, Communities and Local Government",Homes England,CAPITAL GRANTS TO RPs,Investment,CALICO HOMES LIMITED,24/05/2021,9625,M,,Grants
"Ministry of Housing, Communities and Local Government",Homes England,CAPITAL GRANTS TO RPs,Investment,CALICO HOMES LIMITED,27/05/2021,6875,M,,Grants
"Ministry of Housing, Communities and Local Government",Homes England,CAPITAL GRANTS TO RPs,Investment,CALICO HOMES LIMITED,27/05/2021,9000,M,,Grants
"Ministry of Housing, Communities and Local Government",Homes England,CAPITAL GRANTS TO RPs,Investment,LONGHURST GROUP LIMITED,07/05/2021,75000,L,,Grants
"Ministry of Housing, Communities and Local Government",Homes England,CAPITAL GRANTS TO RPs,Investment,LONGHURST GROUP LIMITED,07/05/2021,17500,L,,Grants
"Ministry of Housing, Communities and Local Government",Homes England,CAPITAL GRANTS TO RPs,Investment,TRENT & DOVE HOUSE,12/05/2021,9000,L,,Grants
"Ministry of Housing, Communities and Local Government",Homes England,CAPITAL GRANTS TO RPs,Investment,TRENT & DOVE HOUSE,12/05/2021,9000,L,,Grants
"Ministry of Housing, Communities and Local Government",Homes England,CAPITAL GRANTS TO RPs,Investment,TRENT & DOVE HOUSE,12/05/2021,9000,L,,Grants
"Ministry of Housing, Communities and Local Government",Homes England,CAPITAL GRANTS TO RPs,Investment,TRENT & DOVE HOUSE,13/05/2021,20250,L,,Grants
"Ministry of Housing, Communities and Local Government",Homes England,CAPITAL GRANTS TO RPs,Investment,TRENT & DOVE HOUSE,27/05/2021,40000,L,,Grants
"Ministry of Housing, Communities and Local Government",Homes England,CAPITAL GRANTS TO RPs,Investment,GENTOO GROUP LIMITED,07/05/2021,9750,L,,Grants
"Ministry of Housing, Communities and Local Government",Homes England,CAPITAL GRANTS TO RPs,Investment,GENTOO GROUP LIMITED,07/05/2021,9750,L,,Grants
"Ministry of Housing, Communities and Local Government",Homes England,HELP TO BUY ADDITIONS,Investment,GENTOO GROUP LIMITED,20/05/2021,49000,L,,Grants
"Ministry of Housing, Communities and Local Government",Homes England,CAPITAL GRANTS TO RPs,Investment,COBALT HOUSING LIMITED,05/05/2021,9000,M,,Grants
"Ministry of Housing, Communities and Local Government",Homes England,CAPITAL GRANTS TO RPs,Investment,COBALT HOUSING LIMITED,05/05/2021,9000,M,,Grants
"Ministry of Housing, Communities and Local Government",Homes England,CAPITAL GRANTS TO RPs,Investment,INCOMMUNITIES GROUP LIMITED,14/05/2021,9000,L,,Grants
"Ministry of Housing, Communities and Local Government",Homes England,CAPITAL GRANTS TO RPs,Investment,INCOMMUNITIES GROUP LIMITED,14/05/2021,9000,L,,Grants
"Ministry of Housing, Communities and Local Government",Homes England,CAPITAL GRANTS TO RPs,Investment,SETTLE GROUP,07/05/2021,665250,L,,Grants
"Ministry of Housing, Communities and Local Government",Homes England,CAPITAL GRANTS TO RPs,Investment,SETTLE GROUP,07/05/2021,420000,L,,Grants
"Ministry of Housing, Communities and Local Government",Homes England,CAPITAL GRANTS TO RPs,Investment,SETTLE GROUP,11/05/2021,102500,L,,Grants
"Ministry of Housing, Communities and Local Government",Homes England,CAPITAL GRANTS TO RPs,Investment,WALSALL HOUSING TRUST LIMITED,05/05/2021,31500,L,,Grants
"Ministry of Housing, Communities and Local Government",Homes England,CAPITAL GRANTS TO RPs,Investment,WALSALL HOUSING TRUST LIMITED,18/05/2021,9000,L,,Grants
"Ministry of Housing, Communities and Local Government",Homes England,CAPITAL GRANTS TO RPs,Investment,WALSALL HOUSING TRUST LIMITED,18/05/2021,9000,L,,Grants
"Ministry of Housing, Communities and Local Government",Homes England,CAPITAL GRANTS TO RPs,Investment,WALSALL HOUSING TRUST LIMITED,18/05/2021,9000,L,,Grants
"Ministry of Housing, Communities and Local Government",Homes England,CAPITAL GRANTS TO RPs,Investment,WALSALL HOUSING TRUST LIMITED,18/05/2021,9000,L,,Grants
"Ministry of Housing, Communities and Local Government",Homes England,CAPITAL GRANTS TO RPs,Investment,ASTER GROUP LTD C/O ASTER COMMUNITIES,10/05/2021,9750,L,,Grants
"Ministry of Housing, Communities and Local Government",Homes England,CAPITAL GRANTS TO RPs,Investment,MAGENTA LIVING,10/05/2021,95000,L,,Grants
"Ministry of Housing, Communities and Local Government",Homes England,CAPITAL GRANTS TO RPs,Investment,MAGENTA LIVING,10/05/2021,60000,L,,Grants
"Ministry of Housing, Communities and Local Government",Homes England,CAPITAL GRANTS TO RPs,Investment,WAKEFIELD AND DISTRICT HOUSING LIMITED,17/05/2021,14375,L,,Grants
"Ministry of Housing, Communities and Local Government",Homes England,CAPITAL GRANTS TO RPs,Investment,WAKEFIELD AND DISTRICT HOUSING LIMITED,18/05/2021,20250,L,,Grants
"Ministry of Housing, Communities and Local Government",Homes England,CAPITAL GRANTS TO RPs,Investment,TOGETHER HOUSING GROUP LIMITED,19/05/2021,9000,L,,Grants
"Ministry of Housing, Communities and Local Government",Homes England,CAPITAL GRANTS TO RPs,Investment,TOGETHER HOUSING GROUP LIMITED,19/05/2021,9000,L,,Grants
"Ministry of Housing, Communities and Local Government",Homes England,CAPITAL GRANTS TO RPs,Investment,TOGETHER HOUSING GROUP LIMITED,28/05/2021,9000,L,,Grants
"Ministry of Housing, Communities and Local Government",Homes England,CAPITAL GRANTS TO RPs,Investment,TOGETHER HOUSING GROUP LIMITED,28/05/2021,9000,L,,Grants
"Ministry of Housing, Communities and Local Government",Homes England,CAPITAL GRANTS TO RPs,Investment,CONNEXUS HOUSING LIMITED,20/05/2021,243750,L,,Grants
"Ministry of Housing, Communities and Local Government",Homes England,CAPITAL GRANTS TO RPs,Investment,CONNEXUS HOUSING LIMITED,20/05/2021,341250,L,,Grants
"Ministry of Housing, Communities and Local Government",Homes England,CAPITAL GRANTS TO RPs,Investment,WATFORD COMMUNITY HOUSING TRUST,10/05/2021,49150,L,,Grants
"Ministry of Housing, Communities and Local Government",Homes England,CAPITAL GRANTS TO RPs,Investment,WATFORD COMMUNITY HOUSING TRUST,10/05/2021,49150,L,,Grants
"Ministry of Housing, Communities and Local Government",Homes England,CAPITAL GRANTS TO RPs,Investment,WATFORD COMMUNITY HOUSING TRUST,19/05/2021,3000,L,,Grants
"Ministry of Housing, Communities and Local Government",Homes England,CAPITAL GRANTS TO RPs,Investment,FUTURES HOUSING GROUP LTD,26/05/2021,10000,L,,Grants
"Ministry of Housing, Communities and Local Government",Homes England,CAPITAL GRANTS TO RPs,Investment,SOUTHWAY HOUSING TRUST,05/05/2021,81250,L,,Grants
"Ministry of Housing, Communities and Local Government",Homes England,CAPITAL GRANTS TO RPs,Investment,SOUTHWAY HOUSING TRUST,20/05/2021,209552,L,,Grants
"Ministry of Housing, Communities and Local Government",Homes England,CAPITAL GRANTS TO RPs,Investment,THIRTEEN GROUP LTD,19/05/2021,9000,L,,Grants
"Ministry of Housing, Communities and Local Government",Homes England,CAPITAL GRANTS TO RPs,Investment,THIRTEEN GROUP LTD,26/05/2021,9000,L,,Grants
"Ministry of Housing, Communities and Local Government",Homes England,CAPITAL GRANTS TO RPs,Investment,THIRTEEN GROUP LTD,26/05/2021,9000,L,,Grants
"Ministry of Housing, Communities and Local Government",Homes England,BUILDINGS-ELECTRICITY,Development,EDF ENERGY,11/05/2021,817.28,L,83101800,Electric utilities
"Ministry of Housing, Communities and Local Government",Homes England,BUILDINGS-ELECTRICITY,MPP,EDF ENERGY,11/05/2021,718.23,L,83101800,Electric utilities
"Ministry of Housing, Communities and Local Government",Homes England,BUILDINGS-ELECTRICITY,MPP,EDF ENERGY,11/05/2021,395.52,L,83101800,Electric utilities
"Ministry of Housing, Communities and Local Government",Homes England,BUILDINGS-ELECTRICITY,MPP,EDF ENERGY,18/05/2021,358.15,L,83101800,Electric utilities
"Ministry of Housing, Communities and Local Government",Homes England,BUILDINGS-ELECTRICITY,MPP,EDF ENERGY,18/05/2021,373.64,L,83101800,Electric utilities
"Ministry of Housing, Communities and Local Government",Homes England,BUILDINGS-ELECTRICITY,Development,EDF ENERGY,26/05/2021,14868.09,L,83101800,Electric utilities
